Workbook

Sheet Luca_73 Media
B2: VALORIZZAZIONE GIACENZE DI MAGAZZINO AL 31/12/2014 SULLA SCORTA DELL'ULTIMO PREZZO DI ACQUISTO REGISTRATO
B4: COD. ART. | C4: DESCRIZIONE ARTICOLO | D4: STOCCAGGIO | E4: QUANTITA' | F4: DATA ACQUISTO | G4: ULTIMO PREZZO | H4: ID_ORDINE | I4: IMPORTO TOT.
B5: BVD-350/EJ | C5: CARTUCCIA FILTRO DA 8 MICRON | D5: C-36 | E5: 200 | F5: =MAX(IF($B$34:$B$463=B5,$F$34:$F$463,"a")) -> 2014-12-15 | G5: =SUMIFS($G$34:$G$463,$B$34:$B$463,B5,$F$34:$F$463,F5)/COUNTIFS($B$34:$B$463,B5,$F$34:$F$463,F5) -> 8.08 | H5: =IF(COUNTIFS($B$34:$B$463,B5,$F$34:$F$463,F5)=1,VLOOKUP(B5&F5,CHOOSE({1,2},$B$33:$B$463&$F$33:$F$463,$D$33:$D$463),2,0),"VARIOUS") -> 4884KRQ/14 | I5: =E5*G5 -> 1616
B6: DBY-128/GN | C6: AMMONIACA ANIDRA IN BOMBOLA DA KG.25 | D6: F-45 | E6: 167 | F6: =MAX(IF($B$34:$B$463=B6,$F$34:$F$463,"a")) -> 2014-12-20 | G6: =SUMIFS($G$34:$G$463,$B$34:$B$463,B6,$F$34:$F$463,F6)/COUNTIFS($B$34:$B$463,B6,$F$34:$F$463,F6) -> 22.26 | H6: =IF(COUNTIFS($B$34:$B$463,B6,$F$34:$F$463,F6)=1,VLOOKUP(B6&F6,CHOOSE({1,2},$B$33:$B$463&$F$33:$F$463,$D$33:$D$463),2,0),"VARIOUS") -> 778GDG/14 | I6: =E6*G6 -> 3717.42
B7: EJJ-243/RK | C7: OLFLEX FD CLASSIC 810 7G0,5 | D7: F-95 | E7: 207 | F7: =MAX(IF($B$34:$B$463=B7,$F$34:$F$463,"a")) -> 2014-11-18 | G7: 8.4 | H7: =IF(COUNTIFS($B$34:$B$463,B7,$F$34:$F$463,F7)=1,VLOOKUP(B7&F7,CHOOSE({1,2},$B$33:$B$463&$F$33:$F$463,$D$33:$D$463),2,0),"VARIOUS") -> 3468LPW/14 | I7: =E7*G7 -> 1738.8
B8: EVW-340/RN | C8: OLFLEX FD CLASSIC 810 CY 4G0,5 | D8: C-72 | E8: 158 | F8: =MAX(IF($B$34:$B$463=B8,$F$34:$F$463,"a")) -> 2014-12-17 | G8: 9.54 | H8: =IF(COUNTIFS($B$34:$B$463,B8,$F$34:$F$463,F8)=1,VLOOKUP(B8&F8,CHOOSE({1,2},$B$33:$B$463&$F$33:$F$463,$D$33:$D$463),2,0),"VARIOUS") -> 4578ZUM/14 | I8: 1507.32
B9: FRF-171/ZE | C9: KIT GUARNIZIONI LC25...6X/LC25DB/DR-5X | D9: I-45 | E9: 119 | F9: =MAX(IF($B$34:$B$463=B9,$F$34:$F$463,"a")) -> 2014-12-16 | G9: 30.8 | H9: =IF(COUNTIFS($B$34:$B$463,B9,$F$34:$F$463,F9)=1,VLOOKUP(B9&F9,CHOOSE({1,2},$B$33:$B$463&$F$33:$F$463,$D$33:$D$463),2,0),"VARIOUS") -> 2789QUI/14 | I9: 3665.2
B10: GTN-188/OI | C10: VALVOLA RITEGNO A PIASTRA Z1S 10 P2-3X/V | D10: U-62 | E10: 202 | F10: =MAX(IF($B$34:$B$463=B10,$F$34:$F$463,"a")) -> 2014-11-23 | G10: 45 | H10: =IF(COUNTIFS($B$34:$B$463,B10,$F$34:$F$463,F10)=1,VLOOKUP(B10&F10,CHOOSE({1,2},$B$33:$B$463&$F$33:$F$463,$D$33:$D$463),2,0),"VARIOUS") -> VARIOUS | I10: 9090
B11: HOU-335/QO | C11: VALVOLA DI RITEGNO PILOTATA Z2FS 16-3X/S2 | D11: R-51 | E11: 194 | F11: =MAX(IF($B$34:$B$463=B11,$F$34:$F$463,"a")) -> 2014-12-19 | G11: 126.25 | H11: =IF(COUNTIFS($B$34:$B$463,B11,$F$34:$F$463,F11)=1,VLOOKUP(B11&F11,CHOOSE({1,2},$B$33:$B$463&$F$33:$F$463,$D$33:$D$463),2,0),"VARIOUS") -> 4507IXW/14 | I11: 24492.5
B12: HYM-126/TJ | C12: VALVOLA RIDUTTRICE DI PRESSIONE DA 40 MBAR | D12: S-46 | E12: 150 | F12: =MAX(IF($B$34:$B$463=B12,$F$34:$F$463,"a")) -> 2014-12-09 | G12: 156.2 | H12: =IF(COUNTIFS($B$34:$B$463,B12,$F$34:$F$463,F12)=1,VLOOKUP(B12&F12,CHOOSE({1,2},$B$33:$B$463&$F$33:$F$463,$D$33:$D$463),2,0),"VARIOUS") -> 144AKV/14 | I12: 23430
B13: IAB-347/TY | C13: REGOLATORE DI FLUSSO Z2FS 10-3-3 X/ V | D13: N-68 | E13: 154 | F13: =MAX(IF($B$34:$B$463=B13,$F$34:$F$463,"a")) -> 2014-11-18 | G13: 110.16 | H13: =IF(COUNTIFS($B$34:$B$463,B13,$F$34:$F$463,F13)=1,VLOOKUP(B13&F13,CHOOSE({1,2},$B$33:$B$463&$F$33:$F$463,$D$33:$D$463),2,0),"VARIOUS") -> 1847TYW/14 | I13: 16964.64
B14: IGF-330/RW | C14: RUOTE 65 SERIE RINFORZATA CON FRENO | D14: H-96 | E14: 157 | F14: =MAX(IF($B$34:$B$463=B14,$F$34:$F$463,"a")) -> 2014-12-07 | G14: 61.1 | H14: =IF(COUNTIFS($B$34:$B$463,B14,$F$34:$F$463,F14)=1,VLOOKUP(B14&F14,CHOOSE({1,2},$B$33:$B$463&$F$33:$F$463,$D$33:$D$463),2,0),"VARIOUS") -> 3404VZV/14 | I14: 9592.7
B15: KWO-343/SK | C15: VITI TCCEI 12.9 UNI 5931 BR. M20 X 140 | D15: K-39 | E15: 208 | F15: =MAX(IF($B$34:$B$463=B15,$F$34:$F$463,"a")) -> 2014-11-04 | G15: 10.64 | H15: =IF(COUNTIFS($B$34:$B$463,B15,$F$34:$F$463,F15)=1,VLOOKUP(B15&F15,CHOOSE({1,2},$B$33:$B$463&$F$33:$F$463,$D$33:$D$463),2,0),"VARIOUS") -> 2219TJQ/14 | I15: 2213.12
B16: KWX-234/AH | C16: KIT REVISIONE CILINDRO M.W. | D16: A-89 | E16: 213 | F16: =MAX(IF($B$34:$B$463=B16,$F$34:$F$463,"a")) -> 2014-11-22 | G16: 45.39 | H16: =IF(COUNTIFS($B$34:$B$463,B16,$F$34:$F$463,F16)=1,VLOOKUP(B16&F16,CHOOSE({1,2},$B$33:$B$463&$F$33:$F$463,$D$33:$D$463),2,0),"VARIOUS") -> 4274GFQ/14 | I16: 9668.07
B17: LBW-277/ME | C17: KIT COMPLETO GUARNIZIONI PER CILINDRO 80 | D17: L-56 | E17: 209 | F17: =MAX(IF($B$34:$B$463=B17,$F$34:$F$463,"a")) -> 2014-12-17 | G17: 11 | H17: =IF(COUNTIFS($B$34:$B$463,B17,$F$34:$F$463,F17)=1,VLOOKUP(B17&F17,CHOOSE({1,2},$B$33:$B$463&$F$33:$F$463,$D$33:$D$463),2,0),"VARIOUS") -> 4014TXL/14 | I17: 2299
B18: LCJ-304/BX | C18: KIT REVISIONE CILINDRO M.W. | D18: E-53 | E18: 160 | F18: =MAX(IF($B$34:$B$463=B18,$F$34:$F$463,"a")) -> 2014-11-28 | G18: 15.59 | H18: =IF(COUNTIFS($B$34:$B$463,B18,$F$34:$F$463,F18)=1,VLOOKUP(B18&F18,CHOOSE({1,2},$B$33:$B$463&$F$33:$F$463,$D$33:$D$463),2,0),"VARIOUS") -> 292UGU/14 | I18: 2494.4
B19: NWC-213/WR | C19: KIT MAGNETE M.W. | D19: M-56 | E19: 118 | F19: =MAX(IF($B$34:$B$463=B19,$F$34:$F$463,"a")) -> 2014-11-25 | G19: 17.55 | H19: =IF(COUNTIFS($B$34:$B$463,B19,$F$34:$F$463,F19)=1,VLOOKUP(B19&F19,CHOOSE({1,2},$B$33:$B$463&$F$33:$F$463,$D$33:$D$463),2,0),"VARIOUS") -> 5815OUM/14 | I19: 2070.9
B20: OCI-162/XK | C20: KIT COMPLETO GUARNIZIONI CILINDRO 80 CMPC | D20: J-51 | E20: 137 | F20: =MAX(IF($B$34:$B$463=B20,$F$34:$F$463,"a")) -> 2014-10-25 | G20: 22.02 | H20: =IF(COUNTIFS($B$34:$B$463,B20,$F$34:$F$463,F20)=1,VLOOKUP(B20&F20,CHOOSE({1,2},$B$33:$B$463&$F$33:$F$463,$D$33:$D$463),2,0),"VARIOUS") -> VARIOUS | I20: 3016.74
B21: OQJ-149/CP | C21: KIT COMPLETO GUARNIZIONI CILINDRO 125 | D21: G-68 | E21: 178 | F21: =MAX(IF($B$34:$B$463=B21,$F$34:$F$463,"a")) -> 2014-11-30 | G21: 29.44 | H21: =IF(COUNTIFS($B$34:$B$463,B21,$F$34:$F$463,F21)=1,VLOOKUP(B21&F21,CHOOSE({1,2},$B$33:$B$463&$F$33:$F$463,$D$33:$D$463),2,0),"VARIOUS") -> 5863LMV/14 | I21: 5240.32
B22: OYZ-311/GH | C22: COPERCHIO ELEMENTO LOGICO LFA 25 KWA-7X/ | D22: U-91 | E22: 189 | F22: =MAX(IF($B$34:$B$463=B22,$F$34:$F$463,"a")) -> 2014-11-25 | G22: 8.08 | H22: =IF(COUNTIFS($B$34:$B$463,B22,$F$34:$F$463,F22)=1,VLOOKUP(B22&F22,CHOOSE({1,2},$B$33:$B$463&$F$33:$F$463,$D$33:$D$463),2,0),"VARIOUS") -> 696TEN/14 | I22: 1527.12
B23: QBI-332/YQ | C23: FORCELLA FEMMINA CON SNODO SGS/M16X1.5 | D23: G-56 | E23: 230 | F23: =MAX(IF($B$34:$B$463=B23,$F$34:$F$463,"a")) -> 2014-11-21 | G23: 33.78 | H23: =IF(COUNTIFS($B$34:$B$463,B23,$F$34:$F$463,F23)=1,VLOOKUP(B23&F23,CHOOSE({1,2},$B$33:$B$463&$F$33:$F$463,$D$33:$D$463),2,0),"VARIOUS") -> 856UJJ/14 | I23: 7769.4
B24: RVA-370/MO | C24: ELEMENTO LOGICO LC 40 DB20E7X/ | D24: O-82 | E24: 143 | F24: =MAX(IF($B$34:$B$463=B24,$F$34:$F$463,"a")) -> 2014-12-10 | G24: 11.78 | H24: =IF(COUNTIFS($B$34:$B$463,B24,$F$34:$F$463,F24)=1,VLOOKUP(B24&F24,CHOOSE({1,2},$B$33:$B$463&$F$33:$F$463,$D$33:$D$463),2,0),"VARIOUS") -> 4325TQV/14 | I24: 1684.54
B25: RVG-263/JX | C25: SERVOVALVOLA CON ROTORE DINAMICO | D25: B-93 | E25: 194 | F25: =MAX(IF($B$34:$B$463=B25,$F$34:$F$463,"a")) -> 2014-12-20 | G25: 125.75 | H25: =IF(COUNTIFS($B$34:$B$463,B25,$F$34:$F$463,F25)=1,VLOOKUP(B25&F25,CHOOSE({1,2},$B$33:$B$463&$F$33:$F$463,$D$33:$D$463),2,0),"VARIOUS") -> 1421TYJ/14 | I25: 24395.5
B26: SGY-295/PG | C26: PIGNONE SEMPL. 3/4 Z9" | D26: Y-76 | E26: 206 | F26: =MAX(IF($B$34:$B$463=B26,$F$34:$F$463,"a")) -> 2014-12-18 | G26: 27.08 | H26: =IF(COUNTIFS($B$34:$B$463,B26,$F$34:$F$463,F26)=1,VLOOKUP(B26&F26,CHOOSE({1,2},$B$33:$B$463&$F$33:$F$463,$D$33:$D$463),2,0),"VARIOUS") -> 1602TDS/14 | I26: 5578.48
B27: SYA-341/BM | C27: PIGNONI SEMPLICI 3/4 Z21 | D27: W-83 | E27: 155 | F27: =MAX(IF($B$34:$B$463=B27,$F$34:$F$463,"a")) -> 2014-12-07 | G27: 27.41 | H27: =IF(COUNTIFS($B$34:$B$463,B27,$F$34:$F$463,F27)=1,VLOOKUP(B27&F27,CHOOSE({1,2},$B$33:$B$463&$F$33:$F$463,$D$33:$D$463),2,0),"VARIOUS") -> 6241FLY/14 | I27: 4248.55
B28: WTT-322/YR | C28: CURVA 45ｰ F.F. 1 ZINC." | D28: C-37 | E28: 232 | F28: =MAX(IF($B$34:$B$463=B28,$F$34:$F$463,"a")) -> 2014-12-11 | G28: 5.45 | H28: =IF(COUNTIFS($B$34:$B$463,B28,$F$34:$F$463,F28)=1,VLOOKUP(B28&F28,CHOOSE({1,2},$B$33:$B$463&$F$33:$F$463,$D$33:$D$463),2,0),"VARIOUS") -> 4768WGN/14 | I28: 1264.4
H30: TOTALE GIACENZE : | I30: =SUM(I5:I28) -> 169285.12
B32: TABELLA ACQUISTI EFFETTUATI NEL 2014
B33: COD. ART. | C33: DESCRIZIONE ARTICOLO | D33: ID_ORDINE | E33: COD.FORN. | F33: DATA ACQUISTO | G33: PREZZO UNITARIO
B34: HYM-126/TJ | C34: VALVOLA RIDUTTRICE DI PRESSIONE DA 40 MBAR | D34: 14FYF/14 | E34: ISR-13 | F34: 2014-01-07 | G34: 139.16
B35: WTT-322/YR | C35: CURVA 45ｰ F.F. 1 ZINC." | D35: 2108TZW/14 | E35: QVG-137 | F35: 2014-01-07 | G35: 5.7
B36: WTT-322/YR | C36: CURVA 45ｰ F.F. 1 ZINC." | D36: 570YMT/14 | E36: COB-84 | F36: 2014-01-08 | G36: 5.15
B37: IGF-330/RW | C37: RUOTE 65 SERIE RINFORZATA CON FRENO | D37: 1798OPR/14 | E37: UKU-106 | F37: 2014-01-09 | G37: 57.2
B38: IAB-347/TY | C38: REGOLATORE DI FLUSSO Z2FS 10-3-3 X/ V | D38: 6231GQD/14 | E38: EPH-38 | F38: 2014-01-09 | G38: 115.56
B39: EVW-340/RN | C39: OLFLEX FD CLASSIC 810 CY 4G0,5 | D39: 6223MRI/14 | E39: SFS-48 | F39: 2014-01-10 | G39: 9.99
B40: HYM-126/TJ | C40: VALVOLA RIDUTTRICE DI PRESSIONE DA 40 MBAR | D40: 2906HMY/14 | E40: CBI-156 | F40: 2014-01-10 | G40: 151.94
B41: RVA-370/MO | C41: ELEMENTO LOGICO LC 40 DB20E7X/ | D41: 3835FLC/14 | E41: QBL-116 | F41: 2014-01-10 | G41: 13.06
B42: LBW-277/ME | C42: KIT COMPLETO GUARNIZIONI PER CILINDRO 80 | D42: 426ANG/14 | E42: MOS-20 | F42: 2014-01-10 | G42: 13.38
B43: LBW-277/ME | C43: KIT COMPLETO GUARNIZIONI PER CILINDRO 80 | D43: 5893HLS/14 | E43: ZDS-34 | F43: 2014-01-12 | G43: 13.63
B44: LCJ-304/BX | C44: KIT REVISIONE CILINDRO M.W. | D44: 5302XWG/14 | E44: HUT-145 | F44: 2014-01-14 | G44: 14.35
B45: GTN-188/OI | C45: VALVOLA RITEGNO A PIASTRA Z1S 10 P2-3X/V | D45: 2064OAC/14 | E45: UZC-47 | F45: 2014-01-15 | G45: 44.1
B46: KWX-234/AH | C46: KIT REVISIONE CILINDRO M.W. | D46: 4975PFC/14 | E46: KFF-148 | F46: 2014-01-15 | G46: 46.41
B47: EVW-340/RN | C47: OLFLEX FD CLASSIC 810 CY 4G0,5 | D47: 1711IKG/14 | E47: MIT-152 | F47: 2014-01-15 | G47: 9.09
B48: BVD-350/EJ | C48: CARTUCCIA FILTRO DA 8 MICRON | D48: 2421WLN/14 | E48: XUJ-96 | F48: 2014-01-16 | G48: 8.16
B49: KWX-234/AH | C49: KIT REVISIONE CILINDRO M.W. | D49: 5825PKH/14 | E49: HUF-22 | F49: 2014-01-17 | G49: 44.37
B50: SGY-295/PG | C50: PIGNONE SEMPL. 3/4 Z9" | D50: 4777BGM/14 | E50: KFT-104 | F50: 2014-01-22 | G50: 30.5
B51: IAB-347/TY | C51: REGOLATORE DI FLUSSO Z2FS 10-3-3 X/ V | D51: 3968TBJ/14 | E51: AMX-50 | F51: 2014-01-22 | G51: 98.28
B52: EJJ-243/RK | C52: OLFLEX FD CLASSIC 810 7G0,5 | D52: 2565POU/14 | E52: ZSH-26 | F52: 2014-01-23 | G52: 7.35
B53: EJJ-243/RK | C53: OLFLEX FD CLASSIC 810 7G0,5 | D53: 921EWK/14 | E53: WXR-135 | F53: 2014-01-23 | G53: 7.05
B54: EJJ-243/RK | C54: OLFLEX FD CLASSIC 810 7G0,5 | D54: 2180QRN/14 | E54: ZNM-56 | F54: 2014-01-24 | G54: 6.45
B55: KWO-343/SK | C55: VITI TCCEI 12.9 UNI 5931 BR. M20 X 140 | D55: 2166TUS/14 | E55: VCQ-85 | F55: 2014-01-25 | G55: 8.08
B56: DBY-128/GN | C56: AMMONIACA ANIDRA UN BOMBOLA DA KG.25 | D56: 5932SEV/14 | E56: HXC-107 | F56: 2014-01-26 | G56: 22.05
B57: HYM-126/TJ | C57: VALVOLA RIDUTTRICE DI PRESSIONE DA 40 MBAR | D57: 4056WIP/14 | E57: GUT-17 | F57: 2014-01-26 | G57: 133.48
B58: HYM-126/TJ | C58: VALVOLA RIDUTTRICE DI PRESSIONE DA 40 MBAR | D58: 2401JME/14 | E58: WHR-132 | F58: 2014-01-26 | G58: 150.52
B59: HOU-335/QO | C59: VALVOLA DI RITEGNO PILOTATA Z2FS 16-3X/S2 | D59: 2583ROH/14 | E59: WPG-45 | F59: 2014-01-26 | G59: 106.25
B60: OQJ-149/CP | C60: KIT COMPLETO GUARNIZIONI CILINDRO 125 | D60: 957IGN/14 | E60: HPU-136 | F60: 2014-01-28 | G60: 34.56
B61: DBY-128/GN | C61: AMMONIACA ANIDRA UN BOMBOLA DA KG.25 | D61: 1672BQS/14 | E61: TAW-142 | F61: 2014-01-29 | G61: 18.27
B62: SYA-341/BM | C62: PIGNONI SEMPLICI 3/4 Z21 | D62: 1237IOK/14 | E62: WHG-100 | F62: 2014-01-29 | G62: 30.87
B63: HYM-126/TJ | C63: VALVOLA RIDUTTRICE DI PRESSIONE DA 40 MBAR | D63: 956VGF/14 | E63: CNO-78 | F63: 2014-01-30 | G63: 129.22
B64: GTN-188/OI | C64: VALVOLA RITEGNO A PIASTRA Z1S 10 P2-3X/V | D64: 2538VNU/14 | E64: TUP-30 | F64: 2014-01-30 | G64: 47.25
B65: SYA-341/BM | C65: PIGNONI SEMPLICI 3/4 Z21 | D65: 6483PMU/14 | E65: NNU-74 | F65: 2014-01-31 | G65: 26.78
B66: GTN-188/OI | C66: VALVOLA RITEGNO A PIASTRA Z1S 10 P2-3X/V | D66: 4487VVQ/14 | E66: PDI-71 | F66: 2014-02-01 | G66: 50.85
B67: WTT-322/YR | C67: CURVA 45ｰ F.F. 1 ZINC." | D67: 715YFS/14 | E67: OJB-69 | F67: 2014-02-02 | G67: 4.6
B68: WTT-322/YR | C68: CURVA 45ｰ F.F. 1 ZINC." | D68: 337HGO/14 | E68: BNS-97 | F68: 2014-02-02 | G68: 4.35
B69: FRF-171/ZE | C69: KIT GUARNIZIONI LC25...6X/LC25DB/DR-5X | D69: 3737EOM/14 | E69: BYK-95 | F69: 2014-02-03 | G69: 30.8
B70: QBI-332/YQ | C70: FORCELLA FEMMINA CON SNODO SGS/M16X1.5 | D70: 3753CRB/14 | E70: PSY-128 | F70: 2014-02-04 | G70: 29.19
B71: LCJ-304/BX | C71: KIT REVISIONE CILINDRO M.W. | D71: 3259GEI/14 | E71: YZM-138 | F71: 2014-02-04 | G71: 13.52
B72: NWC-213/WR | C72: KIT MAGNETE M.W. | D72: 4460VJU/14 | E72: NJP-85 | F72: 2014-02-04 | G72: 17.55
B73: OQJ-149/CP | C73: KIT COMPLETO GUARNIZIONI CILINDRO 125 | D73: 1597GUT/14 | E73: AON-152 | F73: 2014-02-04 | G73: 34.24
B74: EVW-340/RN | C74: OLFLEX FD CLASSIC 810 CY 4G0,5 | D74: 1618ITB/14 | E74: PQO-62 | F74: 2014-02-06 | G74: 9.72
B75: RVG-263/JX | C75: SERVOVALVOLA CON ROTORE DINAMICO | D75: 5864CUX/14 | E75: WPL-64 | F75: 2014-02-07 | G75: 133.22
B76: OCI-162/XK | C76: KIT COMPLETO GUARNIZIONI CILINDRO 80 CMPC | D76: 5703MRV/14 | E76: ALC-42 | F76: 2014-02-07 | G76: 22.02
B77: OYZ-311/GH | C77: COPERCHIO ELEMENTO LOGICO LFA 25 KWA-7X/ | D77: 3369HIU/14 | E77: ZSH-70 | F77: 2014-02-07 | G77: 7.12
B78: OQJ-149/CP | C78: KIT COMPLETO GUARNIZIONI CILINDRO 125 | D78: 2391WTQ/14 | E78: LGW-128 | F78: 2014-02-09 | G78: 35.2
B79: FRF-171/ZE | C79: KIT GUARNIZIONI LC25...6X/LC25DB/DR-5X | D79: 5773QVK/14 | E79: HGI-66 | F79: 2014-02-10 | G79: 35
B80: HOU-335/QO | C80: VALVOLA DI RITEGNO PILOTATA Z2FS 16-3X/S2 | D80: 3104WEA/14 | E80: FGK-95 | F80: 2014-02-10 | G80: 133.75
B81: EVW-340/RN | C81: OLFLEX FD CLASSIC 810 CY 4G0,5 | D81: 4997ZFK/14 | E81: LWN-118 | F81: 2014-02-11 | G81: 7.83
B82: EJJ-243/RK | C82: OLFLEX FD CLASSIC 810 7G0,5 | D82: 1866KKI/14 | E82: DAT-28 | F82: 2014-02-11 | G82: 7.8
B83: FRF-171/ZE | C83: KIT GUARNIZIONI LC25...6X/LC25DB/DR-5X | D83: 831XKM/14 | E83: GXJ-116 | F83: 2014-02-12 | G83: 31.85
B84: RVG-263/JX | C84: SERVOVALVOLA CON ROTORE DINAMICO | D84: 2062QWG/14 | E84: HQE-120 | F84: 2014-02-13 | G84: 115.79
B85: OCI-162/XK | C85: KIT COMPLETO GUARNIZIONI CILINDRO 80 CMPC | D85: 3454XQS/14 | E85: JJT-34 | F85: 2014-02-15 | G85: 18.75
B86: RVA-370/MO | C86: ELEMENTO LOGICO LC 40 DB20E7X/ | D86: 1128QDP/14 | E86: HTX-27 | F86: 2014-02-17 | G86: 13.06
B87: GTN-188/OI | C87: VALVOLA RITEGNO A PIASTRA Z1S 10 P2-3X/V | D87: 2314LLM/14 | E87: WYN-23 | F87: 2014-02-17 | G87: 42.3
B88: OQJ-149/CP | C88: KIT COMPLETO GUARNIZIONI CILINDRO 125 | D88: 358UAC/14 | E88: KWO-42 | F88: 2014-02-18 | G88: 27.2
B89: IAB-347/TY | C89: REGOLATORE DI FLUSSO Z2FS 10-3-3 X/ V | D89: 2812HEY/14 | E89: VEI-57 | F89: 2014-02-18 | G89: 116.64
B90: OYZ-311/GH | C90: COPERCHIO ELEMENTO LOGICO LFA 25 KWA-7X/ | D90: 2250YDH/14 | E90: NXL-121 | F90: 2014-02-19 | G90: 8.4
B91: KWO-343/SK | C91: VITI TCCEI 12.9 UNI 5931 BR. M20 X 140 | D91: 2348YEF/14 | E91: BSJ-70 | F91: 2014-02-20 | G91: 8.36
B92: HYM-126/TJ | C92: VALVOLA RIDUTTRICE DI PRESSIONE DA 40 MBAR | D92: 5150MBK/14 | E92: EIY-35 | F92: 2014-02-20 | G92: 151.94
B93: DBY-128/GN | C93: AMMONIACA ANIDRA UN BOMBOLA DA KG.25 | D93: 6303WNG/14 | E93: NZT-33 | F93: 2014-02-21 | G93: 21.42
B94: OCI-162/XK | C94: KIT COMPLETO GUARNIZIONI CILINDRO 80 CMPC | D94: 5726WTM/14 | E94: PXW-71 | F94: 2014-02-21 | G94: 24.2
B95: DBY-128/GN | C95: AMMONIACA ANIDRA UN BOMBOLA DA KG.25 | D95: 5550DED/14 | E95: OZV-16 | F95: 2014-02-25 | G95: 18.9
B96: KWO-343/SK | C96: VITI TCCEI 12.9 UNI 5931 BR. M20 X 140 | D96: 2583NJU/14 | E96: AAY-13 | F96: 2014-02-26 | G96: 9.12
B97: IAB-347/TY | C97: REGOLATORE DI FLUSSO Z2FS 10-3-3 X/ V | D97: 163WUB/14 | E97: ZPS-144 | F97: 2014-02-27 | G97: 105.84
B98: OYZ-311/GH | C98: COPERCHIO ELEMENTO LOGICO LFA 25 KWA-7X/ | D98: 3725UKL/14 | E98: DMM-146 | F98: 2014-02-27 | G98: 8.8
B99: LCJ-304/BX | C99: KIT REVISIONE CILINDRO M.W. | D99: 290DWO/14 | E99: VMY-134 | F99: 2014-02-27 | G99: 12.97
B100: RVA-370/MO | C100: ELEMENTO LOGICO LC 40 DB20E7X/ | D100: 3995BPS/14 | E100: XBI-85 | F100: 2014-02-27 | G100: 12.03
B101: RVA-370/MO | C101: ELEMENTO LOGICO LC 40 DB20E7X/ | D101: 4709VKD/14 | E101: AKI-75 | F101: 2014-02-27 | G101: 11.39
B102: FRF-171/ZE | C102: KIT GUARNIZIONI LC25...6X/LC25DB/DR-5X | D102: 2231MDV/14 | E102: XYL-55 | F102: 2014-02-28 | G102: 32.55
B103: IGF-330/RW | C103: RUOTE 65 SERIE RINFORZATA CON FRENO | D103: 3046SEC/14 | E103: NKK-35 | F103: 2014-02-28 | G103: 59.15
B104: EVW-340/RN | C104: OLFLEX FD CLASSIC 810 CY 4G0,5 | D104: 3532VJO/14 | E104: SBF-27 | F104: 2014-02-28 | G104: 8.28
B105: SYA-341/BM | C105: PIGNONI SEMPLICI 3/4 Z21 | D105: 2960INK/14 | E105: BKH-134 | F105: 2014-03-01 | G105: 34.34
B106: IAB-347/TY | C106: REGOLATORE DI FLUSSO Z2FS 10-3-3 X/ V | D106: 4937PTE/14 | E106: DUZ-113 | F106: 2014-03-01 | G106: 112.32
B107: FRF-171/ZE | C107: KIT GUARNIZIONI LC25...6X/LC25DB/DR-5X | D107: 5296VZJ/14 | E107: JFR-74 | F107: 2014-03-01 | G107: 31.15
B108: EJJ-243/RK | C108: OLFLEX FD CLASSIC 810 7G0,5 | D108: 4742HBW/14 | E108: ICU-113 | F108: 2014-03-02 | G108: 8.03
B109: LBW-277/ME | C109: KIT COMPLETO GUARNIZIONI PER CILINDRO 80 | D109: 2942HJE/14 | E109: KUN-151 | F109: 2014-03-02 | G109: 14
B110: BVD-350/EJ | C110: CARTUCCIA FILTRO DA 8 MICRON | D110: 3587XIM/14 | E110: QAA-14 | F110: 2014-03-05 | G110: 8.24
B111: LCJ-304/BX | C111: KIT REVISIONE CILINDRO M.W. | D111: 869UFB/14 | E111: UDF-49 | F111: 2014-03-05 | G111: 15.73
B112: OYZ-311/GH | C112: COPERCHIO ELEMENTO LOGICO LFA 25 KWA-7X/ | D112: 3078NXZ/14 | E112: RRE-140 | F112: 2014-03-05 | G112: 6.96
B113: LBW-277/ME | C113: KIT COMPLETO GUARNIZIONI PER CILINDRO 80 | D113: 5700OAH/14 | E113: WWL-93 | F113: 2014-03-05 | G113: 14.38
B114: HOU-335/QO | C114: VALVOLA DI RITEGNO PILOTATA Z2FS 16-3X/S2 | D114: 4510CYA/14 | E114: VYA-133 | F114: 2014-03-06 | G114: 118.75
B115: OYZ-311/GH | C115: COPERCHIO ELEMENTO LOGICO LFA 25 KWA-7X/ | D115: 5457ZSJ/14 | E115: ZEP-50 | F115: 2014-03-07 | G115: 7.2
B116: OQJ-149/CP | C116: KIT COMPLETO GUARNIZIONI CILINDRO 125 | D116: 4502ZMZ/14 | E116: OVP-105 | F116: 2014-03-08 | G116: 30.72
B117: LCJ-304/BX | C117: KIT REVISIONE CILINDRO M.W. | D117: 821MAP/14 | E117: VHD-46 | F117: 2014-03-09 | G117: 13.52
B118: OCI-162/XK | C118: KIT COMPLETO GUARNIZIONI CILINDRO 80 CMPC | D118: 1926PDA/14 | E118: PLI-114 | F118: 2014-03-09 | G118: 24.2
B119: OQJ-149/CP | C119: KIT COMPLETO GUARNIZIONI CILINDRO 125 | D119: 332YXC/14 | E119: RGH-140 | F119: 2014-03-09 | G119: 29.76
B120: FRF-171/ZE | C120: KIT GUARNIZIONI LC25...6X/LC25DB/DR-5X | D120: 5540LXZ/14 | E120: DDI-21 | F120: 2014-03-12 | G120: 35.35
B121: BVD-350/EJ | C121: CARTUCCIA FILTRO DA 8 MICRON | D121: 412GXB/14 | E121: FNG-82 | F121: 2014-03-12 | G121: 7.92
B122: SYA-341/BM | C122: PIGNONI SEMPLICI 3/4 Z21 | D122: 1637FKW/14 | E122: WPA-97 | F122: 2014-03-13 | G122: 31.19
B123: OYZ-311/GH | C123: COPERCHIO ELEMENTO LOGICO LFA 25 KWA-7X/ | D123: 542FWP/14 | E123: KDA-161 | F123: 2014-03-14 | G123: 7.36
B124: RVA-370/MO | C124: ELEMENTO LOGICO LC 40 DB20E7X/ | D124: 4613JXJ/14 | E124: ARN-90 | F124: 2014-03-15 | G124: 14.46
B125: QBI-332/YQ | C125: FORCELLA FEMMINA CON SNODO SGS/M16X1.5 | D125: 2054BYI/14 | E125: YMS-138 | F125: 2014-03-16 | G125: 35.75
B126: HYM-126/TJ | C126: VALVOLA RIDUTTRICE DI PRESSIONE DA 40 MBAR | D126: 873JOK/14 | E126: ZMP-94 | F126: 2014-03-17 | G126: 151.94
B127: GTN-188/OI | C127: VALVOLA RITEGNO A PIASTRA Z1S 10 P2-3X/V | D127: 5064CBU/14 | E127: TVJ-24 | F127: 2014-03-17 | G127: 40.05
B128: GTN-188/OI | C128: VALVOLA RITEGNO A PIASTRA Z1S 10 P2-3X/V | D128: 6097DRM/14 | E128: VCW-49 | F128: 2014-03-19 | G128: 51.75
B129: OYZ-311/GH | C129: COPERCHIO ELEMENTO LOGICO LFA 25 KWA-7X/ | D129: 863GLF/14 | E129: FHT-25 | F129: 2014-03-20 | G129: 7.2
B130: WTT-322/YR | C130: CURVA 45ｰ F.F. 1 ZINC." | D130: 1312WAW/14 | E130: ZGZ-28 | F130: 2014-03-20 | G130: 5.5
B131: EVW-340/RN | C131: OLFLEX FD CLASSIC 810 CY 4G0,5 | D131: 3169SKI/14 | E131: UMK-90 | F131: 2014-03-21 | G131: 8.82
B132: OYZ-311/GH | C132: COPERCHIO ELEMENTO LOGICO LFA 25 KWA-7X/ | D132: 795YOE/14 | E132: ERB-147 | F132: 2014-03-21 | G132: 7.76
B133: KWX-234/AH | C133: KIT REVISIONE CILINDRO M.W. | D133: 4881CKI/14 | E133: WFK-115 | F133: 2014-03-22 | G133: 51.51
B134: KWO-343/SK | C134: VITI TCCEI 12.9 UNI 5931 BR. M20 X 140 | D134: 546FOF/14 | E134: KLK-98 | F134: 2014-03-23 | G134: 9.31
B135: RVG-263/JX | C135: SERVOVALVOLA CON ROTORE DINAMICO | D135: 1106AUZ/14 | E135: NTE-72 | F135: 2014-03-23 | G135: 139.44
B136: LCJ-304/BX | C136: KIT REVISIONE CILINDRO M.W. | D136: 721WBX/14 | E136: YST-110 | F136: 2014-03-24 | G136: 14.63
B137: BVD-350/EJ | C137: CARTUCCIA FILTRO DA 8 MICRON | D137: 4000CVK/14 | E137: ORC-146 | F137: 2014-03-25 | G137: 6.8
B138: WTT-322/YR | C138: CURVA 45ｰ F.F. 1 ZINC." | D138: 2383SXB/14 | E138: LJI-32 | F138: 2014-03-26 | G138: 5.1
B139: SGY-295/PG | C139: PIGNONE SEMPL. 3/4 Z9" | D139: 463AYT/14 | E139: EOW-70 | F139: 2014-03-26 | G139: 29.64
B140: IAB-347/TY | C140: REGOLATORE DI FLUSSO Z2FS 10-3-3 X/ V | D140: 216GGX/14 | E140: PCZ-145 | F140: 2014-03-26 | G140: 116.64
B141: RVG-263/JX | C141: SERVOVALVOLA CON ROTORE DINAMICO | D141: 2417AXX/14 | E141: IYN-127 | F141: 2014-03-26 | G141: 118.28
B142: KWO-343/SK | C142: VITI TCCEI 12.9 UNI 5931 BR. M20 X 140 | D142: 3130LGL/14 | E142: OHE-57 | F142: 2014-03-27 | G142: 9.98
B143: SYA-341/BM | C143: PIGNONI SEMPLICI 3/4 Z21 | D143: 6028ILT/14 | E143: FOC-99 | F143: 2014-03-28 | G143: 27.09
B144: BVD-350/EJ | C144: CARTUCCIA FILTRO DA 8 MICRON | D144: 2227OJC/14 | E144: ENV-24 | F144: 2014-03-28 | G144: 8.56
B145: LBW-277/ME | C145: KIT COMPLETO GUARNIZIONI PER CILINDRO 80 | D145: 410EAY/14 | E145: ATI-156 | F145: 2014-03-28 | G145: 10.75
B146: LBW-277/ME | C146: KIT COMPLETO GUARNIZIONI PER CILINDRO 80 | D146: 4423SVH/14 | E146: BMM-30 | F146: 2014-03-29 | G146: 14
B147: BVD-350/EJ | C147: CARTUCCIA FILTRO DA 8 MICRON | D147: 3043VZH/14 | E147: NNO-141 | F147: 2014-03-29 | G147: 7.68
B148: IGF-330/RW | C148: RUOTE 65 SERIE RINFORZATA CON FRENO | D148: 4720ODJ/14 | E148: TNT-163 | F148: 2014-03-30 | G148: 72.8
B149: HYM-126/TJ | C149: VALVOLA RIDUTTRICE DI PRESSIONE DA 40 MBAR | D149: 2501BKD/14 | E149: IRD-108 | F149: 2014-03-31 | G149: 142
B150: IGF-330/RW | C150: RUOTE 65 SERIE RINFORZATA CON FRENO | D150: 5257UNY/14 | E150: MVI-97 | F150: 2014-03-31 | G150: 56.55
B151: HYM-126/TJ | C151: VALVOLA RIDUTTRICE DI PRESSIONE DA 40 MBAR | D151: 4008DHJ/14 | E151: CUR-12 | F151: 2014-04-01 | G151: 161.88
B152: RVG-263/JX | C152: SERVOVALVOLA CON ROTORE DINAMICO | D152: 1056GBK/14 | E152: MTG-100 | F152: 2014-04-02 | G152: 107.07
B153: HYM-126/TJ | C153: VALVOLA RIDUTTRICE DI PRESSIONE DA 40 MBAR | D153: 1328XWP/14 | E153: RMS-72 | F153: 2014-04-05 | G153: 132.06
B154: HOU-335/QO | C154: VALVOLA DI RITEGNO PILOTATA Z2FS 16-3X/S2 | D154: 3029TOB/14 | E154: DOA-55 | F154: 2014-04-05 | G154: 143.75
B155: LCJ-304/BX | C155: KIT REVISIONE CILINDRO M.W. | D155: 5084FMK/14 | E155: COA-105 | F155: 2014-04-05 | G155: 14.08
B156: QBI-332/YQ | C156: FORCELLA FEMMINA CON SNODO SGS/M16X1.5 | D156: 5632RFV/14 | E156: MDQ-124 | F156: 2014-04-05 | G156: 33.13
B157: WTT-322/YR | C157: CURVA 45ｰ F.F. 1 ZINC." | D157: 3561KNF/14 | E157: HYR-83 | F157: 2014-04-07 | G157: 5.6
B158: IAB-347/TY | C158: REGOLATORE DI FLUSSO Z2FS 10-3-3 X/ V | D158: 1245VXE/14 | E158: IHE-155 | F158: 2014-04-09 | G158: 116.64
B159: FRF-171/ZE | C159: KIT GUARNIZIONI LC25...6X/LC25DB/DR-5X | D159: 6407XIS/14 | E159: POF-99 | F159: 2014-04-10 | G159: 30.8
B160: HYM-126/TJ | C160: VALVOLA RIDUTTRICE DI PRESSIONE DA 40 MBAR | D160: 5840ZFB/14 | E160: FYB-123 | F160: 2014-04-11 | G160: 123.54
B161: IAB-347/TY | C161: REGOLATORE DI FLUSSO Z2FS 10-3-3 X/ V | D161: 4263LVE/14 | E161: IYH-18 | F161: 2014-04-12 | G161: 97.2
B162: KWO-343/SK | C162: VITI TCCEI 12.9 UNI 5931 BR. M20 X 140 | D162: 954CHN/14 | E162: DIV-115 | F162: 2014-04-13 | G162: 10.45
B163: GTN-188/OI | C163: VALVOLA RITEGNO A PIASTRA Z1S 10 P2-3X/V | D163: 2363ZWI/14 | E163: TGI-80 | F163: 2014-04-13 | G163: 50.85
B164: GTN-188/OI | C164: VALVOLA RITEGNO A PIASTRA Z1S 10 P2-3X/V | D164: 181AYN/14 | E164: MNF-118 | F164: 2014-04-14 | G164: 38.7
B165: NWC-213/WR | C165: KIT MAGNETE M.W. | D165: 3434LMM/14 | E165: CCN-63 | F165: 2014-04-14 | G165: 16.58
B166: RVA-370/MO | C166: ELEMENTO LOGICO LC 40 DB20E7X/ | D166: 1383ELO/14 | E166: ZLM-151 | F166: 2014-04-15 | G166: 12.67
B167: LBW-277/ME | C167: KIT COMPLETO GUARNIZIONI PER CILINDRO 80 | D167: 786TMG/14 | E167: FGB-33 | F167: 2014-04-16 | G167: 10.63
B168: GTN-188/OI | C168: VALVOLA RITEGNO A PIASTRA Z1S 10 P2-3X/V | D168: 4098FAP/14 | E168: YUT-111 | F168: 2014-04-17 | G168: 40.5
B169: EVW-340/RN | C169: OLFLEX FD CLASSIC 810 CY 4G0,5 | D169: 5626SEU/14 | E169: NKW-120 | F169: 2014-04-17 | G169: 10.26
B170: BVD-350/EJ | C170: CARTUCCIA FILTRO DA 8 MICRON | D170: 1993JIW/14 | E170: LFT-31 | F170: 2014-04-17 | G170: 8.88
B171: LBW-277/ME | C171: KIT COMPLETO GUARNIZIONI PER CILINDRO 80 | D171: 3924CEW/14 | E171: LYQ-18 | F171: 2014-04-17 | G171: 11.75
B172: GTN-188/OI | C172: VALVOLA RITEGNO A PIASTRA Z1S 10 P2-3X/V | D172: 491WFP/14 | E172: CFE-139 | F172: 2014-04-18 | G172: 47.25
B173: OQJ-149/CP | C173: KIT COMPLETO GUARNIZIONI CILINDRO 125 | D173: 5335VKY/14 | E173: FPE-50 | F173: 2014-04-18 | G173: 29.44
B174: SYA-341/BM | C174: PIGNONI SEMPLICI 3/4 Z21 | D174: 2054PTD/14 | E174: XLO-92 | F174: 2014-04-18 | G174: 33.71
B175: DBY-128/GN | C175: AMMONIACA ANIDRA UN BOMBOLA DA KG.25 | D175: 6229XAA/14 | E175: OQD-54 | F175: 2014-04-19 | G175: 21.42
B176: KWX-234/AH | C176: KIT REVISIONE CILINDRO M.W. | D176: 2976UZV/14 | E176: DXE-133 | F176: 2014-04-19 | G176: 57.12
B177: BVD-350/EJ | C177: CARTUCCIA FILTRO DA 8 MICRON | D177: 1030BUY/14 | E177: ADA-67 | F177: 2014-04-19 | G177: 8.56
B178: QBI-332/YQ | C178: FORCELLA FEMMINA CON SNODO SGS/M16X1.5 | D178: 1981JRF/14 | E178: UYP-144 | F178: 2014-04-20 | G178: 32.47
B179: BVD-350/EJ | C179: CARTUCCIA FILTRO DA 8 MICRON | D179: 924RKM/14 | E179: XUH-50 | F179: 2014-04-21 | G179: 8.72
B180: RVA-370/MO | C180: ELEMENTO LOGICO LC 40 DB20E7X/ | D180: 565CYP/14 | E180: OIE-28 | F180: 2014-04-21 | G180: 13.95
B181: SYA-341/BM | C181: PIGNONI SEMPLICI 3/4 Z21 | D181: 5071ZIV/14 | E181: YVD-101 | F181: 2014-04-21 | G181: 33.39
B182: IAB-347/TY | C182: REGOLATORE DI FLUSSO Z2FS 10-3-3 X/ V | D182: 5104FMV/14 | E182: ZJF-127 | F182: 2014-04-22 | G182: 91.8
B183: HOU-335/QO | C183: VALVOLA DI RITEGNO PILOTATA Z2FS 16-3X/S2 | D183: 2571JQO/14 | E183: PCJ-140 | F183: 2014-04-22 | G183: 142.5
B184: NWC-213/WR | C184: KIT MAGNETE M.W. | D184: 5882GMI/14 | E184: KKW-29 | F184: 2014-04-22 | G184: 17.75
B185: LBW-277/ME | C185: KIT COMPLETO GUARNIZIONI PER CILINDRO 80 | D185: 1384KJM/14 | E185: OWD-14 | F185: 2014-04-24 | G185: 13
B186: OQJ-149/CP | C186: KIT COMPLETO GUARNIZIONI CILINDRO 125 | D186: 3272AZP/14 | E186: KKL-54 | F186: 2014-04-26 | G186: 30.08
B187: GTN-188/OI | C187: VALVOLA RITEGNO A PIASTRA Z1S 10 P2-3X/V | D187: 501TUR/14 | E187: SMF-138 | F187: 2014-04-28 | G187: 50.85
B188: RVA-370/MO | C188: ELEMENTO LOGICO LC 40 DB20E7X/ | D188: 1764MUQ/14 | E188: HHE-135 | F188: 2014-04-28 | G188: 12.29
B189: EJJ-243/RK | C189: OLFLEX FD CLASSIC 810 7G0,5 | D189: 1256KYM/14 | E189: PRN-57 | F189: 2014-04-29 | G189: 7.8
B190: OYZ-311/GH | C190: COPERCHIO ELEMENTO LOGICO LFA 25 KWA-7X/ | D190: 2275SSI/14 | E190: KQM-134 | F190: 2014-04-29 | G190: 8.8
B191: WTT-322/YR | C191: CURVA 45ｰ F.F. 1 ZINC." | D191: 255DVY/14 | E191: JDT-88 | F191: 2014-05-01 | G191: 4.3
B192: BVD-350/EJ | C192: CARTUCCIA FILTRO DA 8 MICRON | D192: 5318EOI/14 | E192: MCM-115 | F192: 2014-05-03 | G192: 6.8
B193: OCI-162/XK | C193: KIT COMPLETO GUARNIZIONI CILINDRO 80 CMPC | D193: 4620ETG/14 | E193: INE-151 | F193: 2014-05-03 | G193: 22.89
B194: OQJ-149/CP | C194: KIT COMPLETO GUARNIZIONI CILINDRO 125 | D194: 5045ELQ/14 | E194: IKM-62 | F194: 2014-05-04 | G194: 28.16
B195: WTT-322/YR | C195: CURVA 45ｰ F.F. 1 ZINC." | D195: 3602UWO/14 | E195: KVT-94 | F195: 2014-05-04 | G195: 4.75
B196: LBW-277/ME | C196: KIT COMPLETO GUARNIZIONI PER CILINDRO 80 | D196: 6466QPI/14 | E196: ZIC-110 | F196: 2014-05-05 | G196: 14.25
B197: SYA-341/BM | C197: PIGNONI SEMPLICI 3/4 Z21 | D197: 1947JBD/14 | E197: DBP-26 | F197: 2014-05-05 | G197: 26.78
B198: KWO-343/SK | C198: VITI TCCEI 12.9 UNI 5931 BR. M20 X 140 | D198: 5359ZZB/14 | E198: ZAS-69 | F198: 2014-05-05 | G198: 10.45
B199: NWC-213/WR | C199: KIT MAGNETE M.W. | D199: 791HKX/14 | E199: CWC-121 | F199: 2014-05-07 | G199: 17.75
B200: HYM-126/TJ | C200: VALVOLA RIDUTTRICE DI PRESSIONE DA 40 MBAR | D200: 1099RIS/14 | E200: LPP-50 | F200: 2014-05-09 | G200: 147.68
B201: HOU-335/QO | C201: VALVOLA DI RITEGNO PILOTATA Z2FS 16-3X/S2 | D201: 5069GYZ/14 | E201: ZIM-84 | F201: 2014-05-10 | G201: 106.25
B202: HOU-335/QO | C202: VALVOLA DI RITEGNO PILOTATA Z2FS 16-3X/S2 | D202: 5370HZE/14 | E202: DMX-27 | F202: 2014-05-10 | G202: 132.5
B203: RVG-263/JX | C203: SERVOVALVOLA CON ROTORE DINAMICO | D203: 2083OAI/14 | E203: YWH-33 | F203: 2014-05-10 | G203: 126.99
B204: OYZ-311/GH | C204: COPERCHIO ELEMENTO LOGICO LFA 25 KWA-7X/ | D204: 3539FKH/14 | E204: SBN-130 | F204: 2014-05-11 | G204: 8
... 259 more rows

Sheet Luca_73 UltimaRiga
B2: VALORIZZAZIONE GIACENZE DI MAGAZZINO AL 31/12/2014 SULLA SCORTA DELL'ULTIMO PREZZO DI ACQUISTO REGISTRATO
B4: COD. ART. | C4: DESCRIZIONE ARTICOLO | D4: STOCCAGGIO | E4: QUANTITA' | F4: DATA ACQUISTO | G4: ULTIMO PREZZO | H4: ID_ORDINE | I4: IMPORTO TOT.
B5: BVD-350/EJ | C5: CARTUCCIA FILTRO DA 8 MICRON | D5: C-36 | E5: 200 | F5: =MAX(IF($B$34:$B$463=B5,$F$34:$F$463,"")) -> 2014-12-15 | G5: =VLOOKUP(H5,CHOOSE({1,2},D33:D463,G33:G463),2,0) -> 8.08 | H5: =INDIRECT(MAX(IF($B$34:$B$463&$F$34:$F$463=B5&F5,ROW($B$34:$B$463),0)) & ":" &MAX(IF($B$34:$B$463&$F$34:$F$463=B5&F5,ROW($B$34:$B$463),0))) $D$33:$D$463 -> 4884KRQ/14 | I5: =E5*G5 -> 1616
B6: DBY-128/GN | C6: AMMONIACA ANIDRA IN BOMBOLA DA KG.25 | D6: F-45 | E6: 167 | F6: =MAX(IF($B$34:$B$463=B6,$F$34:$F$463,"")) -> 2014-12-20 | G6: =VLOOKUP(H6,CHOOSE({1,2},D34:D464,G34:G464),2,0) -> 22.26 | H6: =INDIRECT(MAX(IF($B$34:$B$463&$F$34:$F$463=B6&F6,ROW($B$34:$B$463),0)) & ":" &MAX(IF($B$34:$B$463&$F$34:$F$463=B6&F6,ROW($B$34:$B$463),0))) $D$33:$D$463 -> 778GDG/14 | I6: =E6*G6 -> 3717.42
B7: EJJ-243/RK | C7: OLFLEX FD CLASSIC 810 7G0,5 | D7: F-95 | E7: 207 | F7: =MAX(IF($B$34:$B$463=B7,$F$34:$F$463,"")) -> 2014-11-18 | G7: =VLOOKUP(H7,CHOOSE({1,2},D35:D465,G35:G465),2,0) -> 8.4 | H7: =INDIRECT(MAX(IF($B$34:$B$463&$F$34:$F$463=B7&F7,ROW($B$34:$B$463),0)) & ":" &MAX(IF($B$34:$B$463&$F$34:$F$463=B7&F7,ROW($B$34:$B$463),0))) $D$33:$D$463 -> 3468LPW/14 | I7: =E7*G7 -> 1738.8
B8: EVW-340/RN | C8: OLFLEX FD CLASSIC 810 CY 4G0,5 | D8: C-72 | E8: 158 | F8: =MAX(IF($B$34:$B$463=B8,$F$34:$F$463,"")) -> 2014-12-17 | G8: =VLOOKUP(H8,CHOOSE({1,2},D36:D466,G36:G466),2,0) -> 9.54 | H8: =INDIRECT(MAX(IF($B$34:$B$463&$F$34:$F$463=B8&F8,ROW($B$34:$B$463),0)) & ":" &MAX(IF($B$34:$B$463&$F$34:$F$463=B8&F8,ROW($B$34:$B$463),0))) $D$33:$D$463 -> 4578ZUM/14 | I8: 1507.32
B9: FRF-171/ZE | C9: KIT GUARNIZIONI LC25...6X/LC25DB/DR-5X | D9: I-45 | E9: 119 | F9: =MAX(IF($B$34:$B$463=B9,$F$34:$F$463,"")) -> 2014-12-16 | G9: =VLOOKUP(H9,CHOOSE({1,2},D37:D467,G37:G467),2,0) -> 30.8 | H9: =INDIRECT(MAX(IF($B$34:$B$463&$F$34:$F$463=B9&F9,ROW($B$34:$B$463),0)) & ":" &MAX(IF($B$34:$B$463&$F$34:$F$463=B9&F9,ROW($B$34:$B$463),0))) $D$33:$D$463 -> 2789QUI/14 | I9: 3665.2
B10: GTN-188/OI | C10: VALVOLA RITEGNO A PIASTRA Z1S 10 P2-3X/V | D10: U-62 | E10: 202 | F10: =MAX(IF($B$34:$B$463=B10,$F$34:$F$463,"")) -> 2014-11-23 | G10: =VLOOKUP(H10,CHOOSE({1,2},D38:D468,G38:G468),2,0) -> 40.95 | H10: =INDIRECT(MAX(IF($B$34:$B$463&$F$34:$F$463=B10&F10,ROW($B$34:$B$463),0)) & ":" &MAX(IF($B$34:$B$463&$F$34:$F$463=B10&F10,ROW($B$34:$B$463),0))) $D$33:$D$463 -> 2925LKP/14 | I10: 8271.9
B11: HOU-335/QO | C11: VALVOLA DI RITEGNO PILOTATA Z2FS 16-3X/S2 | D11: R-51 | E11: 194 | F11: =MAX(IF($B$34:$B$463=B11,$F$34:$F$463,"")) -> 2014-12-19 | G11: =VLOOKUP(H11,CHOOSE({1,2},D39:D469,G39:G469),2,0) -> 126.25 | H11: =INDIRECT(MAX(IF($B$34:$B$463&$F$34:$F$463=B11&F11,ROW($B$34:$B$463),0)) & ":" &MAX(IF($B$34:$B$463&$F$34:$F$463=B11&F11,ROW($B$34:$B$463),0))) $D$33:$D$463 -> 4507IXW/14 | I11: 24492.5
B12: HYM-126/TJ | C12: VALVOLA RIDUTTRICE DI PRESSIONE DA 40 MBAR | D12: S-46 | E12: 150 | F12: =MAX(IF($B$34:$B$463=B12,$F$34:$F$463,"")) -> 2014-12-09 | G12: =VLOOKUP(H12,CHOOSE({1,2},D40:D470,G40:G470),2,0) -> 156.2 | H12: =INDIRECT(MAX(IF($B$34:$B$463&$F$34:$F$463=B12&F12,ROW($B$34:$B$463),0)) & ":" &MAX(IF($B$34:$B$463&$F$34:$F$463=B12&F12,ROW($B$34:$B$463),0))) $D$33:$D$463 -> 144AKV/14 | I12: 23430
B13: IAB-347/TY | C13: REGOLATORE DI FLUSSO Z2FS 10-3-3 X/ V | D13: N-68 | E13: 154 | F13: =MAX(IF($B$34:$B$463=B13,$F$34:$F$463,"")) -> 2014-11-18 | G13: =VLOOKUP(H13,CHOOSE({1,2},D41:D471,G41:G471),2,0) -> 110.16 | H13: =INDIRECT(MAX(IF($B$34:$B$463&$F$34:$F$463=B13&F13,ROW($B$34:$B$463),0)) & ":" &MAX(IF($B$34:$B$463&$F$34:$F$463=B13&F13,ROW($B$34:$B$463),0))) $D$33:$D$463 -> 1847TYW/14 | I13: 16964.64
B14: IGF-330/RW | C14: RUOTE 65 SERIE RINFORZATA CON FRENO | D14: H-96 | E14: 157 | F14: =MAX(IF($B$34:$B$463=B14,$F$34:$F$463,"")) -> 2014-12-07 | G14: =VLOOKUP(H14,CHOOSE({1,2},D42:D472,G42:G472),2,0) -> 61.1 | H14: =INDIRECT(MAX(IF($B$34:$B$463&$F$34:$F$463=B14&F14,ROW($B$34:$B$463),0)) & ":" &MAX(IF($B$34:$B$463&$F$34:$F$463=B14&F14,ROW($B$34:$B$463),0))) $D$33:$D$463 -> 3404VZV/14 | I14: 9592.7
B15: KWO-343/SK | C15: VITI TCCEI 12.9 UNI 5931 BR. M20 X 140 | D15: K-39 | E15: 208 | F15: =MAX(IF($B$34:$B$463=B15,$F$34:$F$463,"")) -> 2014-11-04 | G15: =VLOOKUP(H15,CHOOSE({1,2},D43:D473,G43:G473),2,0) -> 10.64 | H15: =INDIRECT(MAX(IF($B$34:$B$463&$F$34:$F$463=B15&F15,ROW($B$34:$B$463),0)) & ":" &MAX(IF($B$34:$B$463&$F$34:$F$463=B15&F15,ROW($B$34:$B$463),0))) $D$33:$D$463 -> 2219TJQ/14 | I15: 2213.12
B16: KWX-234/AH | C16: KIT REVISIONE CILINDRO M.W. | D16: A-89 | E16: 213 | F16: =MAX(IF($B$34:$B$463=B16,$F$34:$F$463,"")) -> 2014-11-22 | G16: =VLOOKUP(H16,CHOOSE({1,2},D44:D474,G44:G474),2,0) -> 45.39 | H16: =INDIRECT(MAX(IF($B$34:$B$463&$F$34:$F$463=B16&F16,ROW($B$34:$B$463),0)) & ":" &MAX(IF($B$34:$B$463&$F$34:$F$463=B16&F16,ROW($B$34:$B$463),0))) $D$33:$D$463 -> 4274GFQ/14 | I16: 9668.07
B17: LBW-277/ME | C17: KIT COMPLETO GUARNIZIONI PER CILINDRO 80 | D17: L-56 | E17: 209 | F17: =MAX(IF($B$34:$B$463=B17,$F$34:$F$463,"")) -> 2014-12-17 | G17: =VLOOKUP(H17,CHOOSE({1,2},D45:D475,G45:G475),2,0) -> 11 | H17: =INDIRECT(MAX(IF($B$34:$B$463&$F$34:$F$463=B17&F17,ROW($B$34:$B$463),0)) & ":" &MAX(IF($B$34:$B$463&$F$34:$F$463=B17&F17,ROW($B$34:$B$463),0))) $D$33:$D$463 -> 4014TXL/14 | I17: 2299
B18: LCJ-304/BX | C18: KIT REVISIONE CILINDRO M.W. | D18: E-53 | E18: 160 | F18: =MAX(IF($B$34:$B$463=B18,$F$34:$F$463,"")) -> 2014-11-28 | G18: =VLOOKUP(H18,CHOOSE({1,2},D46:D476,G46:G476),2,0) -> 15.59 | H18: =INDIRECT(MAX(IF($B$34:$B$463&$F$34:$F$463=B18&F18,ROW($B$34:$B$463),0)) & ":" &MAX(IF($B$34:$B$463&$F$34:$F$463=B18&F18,ROW($B$34:$B$463),0))) $D$33:$D$463 -> 292UGU/14 | I18: 2494.4
B19: NWC-213/WR | C19: KIT MAGNETE M.W. | D19: M-56 | E19: 118 | F19: =MAX(IF($B$34:$B$463=B19,$F$34:$F$463,"")) -> 2014-11-25 | G19: =VLOOKUP(H19,CHOOSE({1,2},D47:D477,G47:G477),2,0) -> 17.55 | H19: =INDIRECT(MAX(IF($B$34:$B$463&$F$34:$F$463=B19&F19,ROW($B$34:$B$463),0)) & ":" &MAX(IF($B$34:$B$463&$F$34:$F$463=B19&F19,ROW($B$34:$B$463),0))) $D$33:$D$463 -> 5815OUM/14 | I19: 2070.9
B20: OCI-162/XK | C20: KIT COMPLETO GUARNIZIONI CILINDRO 80 CMPC | D20: J-51 | E20: 137 | F20: =MAX(IF($B$34:$B$463=B20,$F$34:$F$463,"")) -> 2014-10-25 | G20: =VLOOKUP(H20,CHOOSE({1,2},D48:D478,G48:G478),2,0) -> 24.42 | H20: =INDIRECT(MAX(IF($B$34:$B$463&$F$34:$F$463=B20&F20,ROW($B$34:$B$463),0)) & ":" &MAX(IF($B$34:$B$463&$F$34:$F$463=B20&F20,ROW($B$34:$B$463),0))) $D$33:$D$463 -> 4457MUF/14 | I20: 3345.54
B21: OQJ-149/CP | C21: KIT COMPLETO GUARNIZIONI CILINDRO 125 | D21: G-68 | E21: 178 | F21: =MAX(IF($B$34:$B$463=B21,$F$34:$F$463,"")) -> 2014-11-30 | G21: =VLOOKUP(H21,CHOOSE({1,2},D49:D479,G49:G479),2,0) -> 29.44 | H21: =INDIRECT(MAX(IF($B$34:$B$463&$F$34:$F$463=B21&F21,ROW($B$34:$B$463),0)) & ":" &MAX(IF($B$34:$B$463&$F$34:$F$463=B21&F21,ROW($B$34:$B$463),0))) $D$33:$D$463 -> 5863LMV/14 | I21: 5240.32
B22: OYZ-311/GH | C22: COPERCHIO ELEMENTO LOGICO LFA 25 KWA-7X/ | D22: U-91 | E22: 189 | F22: =MAX(IF($B$34:$B$463=B22,$F$34:$F$463,"")) -> 2014-11-25 | G22: =VLOOKUP(H22,CHOOSE({1,2},D50:D480,G50:G480),2,0) -> 8.08 | H22: =INDIRECT(MAX(IF($B$34:$B$463&$F$34:$F$463=B22&F22,ROW($B$34:$B$463),0)) & ":" &MAX(IF($B$34:$B$463&$F$34:$F$463=B22&F22,ROW($B$34:$B$463),0))) $D$33:$D$463 -> 696TEN/14 | I22: 1527.12
B23: QBI-332/YQ | C23: FORCELLA FEMMINA CON SNODO SGS/M16X1.5 | D23: G-56 | E23: 230 | F23: =MAX(IF($B$34:$B$463=B23,$F$34:$F$463,"")) -> 2014-11-21 | G23: =VLOOKUP(H23,CHOOSE({1,2},D51:D481,G51:G481),2,0) -> 33.78 | H23: =INDIRECT(MAX(IF($B$34:$B$463&$F$34:$F$463=B23&F23,ROW($B$34:$B$463),0)) & ":" &MAX(IF($B$34:$B$463&$F$34:$F$463=B23&F23,ROW($B$34:$B$463),0))) $D$33:$D$463 -> 856UJJ/14 | I23: 7769.4
B24: RVA-370/MO | C24: ELEMENTO LOGICO LC 40 DB20E7X/ | D24: O-82 | E24: 143 | F24: =MAX(IF($B$34:$B$463=B24,$F$34:$F$463,"")) -> 2014-12-10 | G24: =VLOOKUP(H24,CHOOSE({1,2},D52:D482,G52:G482),2,0) -> 11.78 | H24: =INDIRECT(MAX(IF($B$34:$B$463&$F$34:$F$463=B24&F24,ROW($B$34:$B$463),0)) & ":" &MAX(IF($B$34:$B$463&$F$34:$F$463=B24&F24,ROW($B$34:$B$463),0))) $D$33:$D$463 -> 4325TQV/14 | I24: 1684.54
B25: RVG-263/JX | C25: SERVOVALVOLA CON ROTORE DINAMICO | D25: B-93 | E25: 194 | F25: =MAX(IF($B$34:$B$463=B25,$F$34:$F$463,"")) -> 2014-12-20 | G25: =VLOOKUP(H25,CHOOSE({1,2},D53:D483,G53:G483),2,0) -> 125.75 | H25: =INDIRECT(MAX(IF($B$34:$B$463&$F$34:$F$463=B25&F25,ROW($B$34:$B$463),0)) & ":" &MAX(IF($B$34:$B$463&$F$34:$F$463=B25&F25,ROW($B$34:$B$463),0))) $D$33:$D$463 -> 1421TYJ/14 | I25: 24395.5
B26: SGY-295/PG | C26: PIGNONE SEMPL. 3/4 Z9" | D26: Y-76 | E26: 206 | F26: =MAX(IF($B$34:$B$463=B26,$F$34:$F$463,"")) -> 2014-12-18 | G26: =VLOOKUP(H26,CHOOSE({1,2},D54:D484,G54:G484),2,0) -> 27.08 | H26: =INDIRECT(MAX(IF($B$34:$B$463&$F$34:$F$463=B26&F26,ROW($B$34:$B$463),0)) & ":" &MAX(IF($B$34:$B$463&$F$34:$F$463=B26&F26,ROW($B$34:$B$463),0))) $D$33:$D$463 -> 1602TDS/14 | I26: 5578.48
B27: SYA-341/BM | C27: PIGNONI SEMPLICI 3/4 Z21 | D27: W-83 | E27: 155 | F27: =MAX(IF($B$34:$B$463=B27,$F$34:$F$463,"")) -> 2014-12-07 | G27: =VLOOKUP(H27,CHOOSE({1,2},D55:D485,G55:G485),2,0) -> 27.41 | H27: =INDIRECT(MAX(IF($B$34:$B$463&$F$34:$F$463=B27&F27,ROW($B$34:$B$463),0)) & ":" &MAX(IF($B$34:$B$463&$F$34:$F$463=B27&F27,ROW($B$34:$B$463),0))) $D$33:$D$463 -> 6241FLY/14 | I27: 4248.55
B28: WTT-322/YR | C28: CURVA 45ｰ F.F. 1 ZINC." | D28: C-37 | E28: 232 | F28: =MAX(IF($B$34:$B$463=B28,$F$34:$F$463,"")) -> 2014-12-11 | G28: =VLOOKUP(H28,CHOOSE({1,2},D56:D486,G56:G486),2,0) -> 5.45 | H28: =INDIRECT(MAX(IF($B$34:$B$463&$F$34:$F$463=B28&F28,ROW($B$34:$B$463),0)) & ":" &MAX(IF($B$34:$B$463&$F$34:$F$463=B28&F28,ROW($B$34:$B$463),0))) $D$33:$D$463 -> 4768WGN/14 | I28: 1264.4
H30: TOTALE GIACENZE : | I30: =SUM(I5:I28) -> 168795.82
B32: TABELLA ACQUISTI EFFETTUATI NEL 2014
B33: COD. ART. | C33: DESCRIZIONE ARTICOLO | D33: ID_ORDINE | E33: COD.FORN. | F33: DATA ACQUISTO | G33: PREZZO UNITARIO
B34: HYM-126/TJ | C34: VALVOLA RIDUTTRICE DI PRESSIONE DA 40 MBAR | D34: 14FYF/14 | E34: ISR-13 | F34: 2014-01-07 | G34: 139.16
B35: WTT-322/YR | C35: CURVA 45ｰ F.F. 1 ZINC." | D35: 2108TZW/14 | E35: QVG-137 | F35: 2014-01-07 | G35: 5.7
B36: WTT-322/YR | C36: CURVA 45ｰ F.F. 1 ZINC." | D36: 570YMT/14 | E36: COB-84 | F36: 2014-01-08 | G36: 5.15
B37: IGF-330/RW | C37: RUOTE 65 SERIE RINFORZATA CON FRENO | D37: 1798OPR/14 | E37: UKU-106 | F37: 2014-01-09 | G37: 57.2
B38: IAB-347/TY | C38: REGOLATORE DI FLUSSO Z2FS 10-3-3 X/ V | D38: 6231GQD/14 | E38: EPH-38 | F38: 2014-01-09 | G38: 115.56
B39: EVW-340/RN | C39: OLFLEX FD CLASSIC 810 CY 4G0,5 | D39: 6223MRI/14 | E39: SFS-48 | F39: 2014-01-10 | G39: 9.99
B40: HYM-126/TJ | C40: VALVOLA RIDUTTRICE DI PRESSIONE DA 40 MBAR | D40: 2906HMY/14 | E40: CBI-156 | F40: 2014-01-10 | G40: 151.94
B41: RVA-370/MO | C41: ELEMENTO LOGICO LC 40 DB20E7X/ | D41: 3835FLC/14 | E41: QBL-116 | F41: 2014-01-10 | G41: 13.06
B42: LBW-277/ME | C42: KIT COMPLETO GUARNIZIONI PER CILINDRO 80 | D42: 426ANG/14 | E42: MOS-20 | F42: 2014-01-10 | G42: 13.38
B43: LBW-277/ME | C43: KIT COMPLETO GUARNIZIONI PER CILINDRO 80 | D43: 5893HLS/14 | E43: ZDS-34 | F43: 2014-01-12 | G43: 13.63
B44: LCJ-304/BX | C44: KIT REVISIONE CILINDRO M.W. | D44: 5302XWG/14 | E44: HUT-145 | F44: 2014-01-14 | G44: 14.35
B45: GTN-188/OI | C45: VALVOLA RITEGNO A PIASTRA Z1S 10 P2-3X/V | D45: 2064OAC/14 | E45: UZC-47 | F45: 2014-01-15 | G45: 44.1
B46: KWX-234/AH | C46: KIT REVISIONE CILINDRO M.W. | D46: 4975PFC/14 | E46: KFF-148 | F46: 2014-01-15 | G46: 46.41
B47: EVW-340/RN | C47: OLFLEX FD CLASSIC 810 CY 4G0,5 | D47: 1711IKG/14 | E47: MIT-152 | F47: 2014-01-15 | G47: 9.09
B48: BVD-350/EJ | C48: CARTUCCIA FILTRO DA 8 MICRON | D48: 2421WLN/14 | E48: XUJ-96 | F48: 2014-01-16 | G48: 8.16
B49: KWX-234/AH | C49: KIT REVISIONE CILINDRO M.W. | D49: 5825PKH/14 | E49: HUF-22 | F49: 2014-01-17 | G49: 44.37
B50: SGY-295/PG | C50: PIGNONE SEMPL. 3/4 Z9" | D50: 4777BGM/14 | E50: KFT-104 | F50: 2014-01-22 | G50: 30.5
B51: IAB-347/TY | C51: REGOLATORE DI FLUSSO Z2FS 10-3-3 X/ V | D51: 3968TBJ/14 | E51: AMX-50 | F51: 2014-01-22 | G51: 98.28
B52: EJJ-243/RK | C52: OLFLEX FD CLASSIC 810 7G0,5 | D52: 2565POU/14 | E52: ZSH-26 | F52: 2014-01-23 | G52: 7.35
B53: EJJ-243/RK | C53: OLFLEX FD CLASSIC 810 7G0,5 | D53: 921EWK/14 | E53: WXR-135 | F53: 2014-01-23 | G53: 7.05
B54: EJJ-243/RK | C54: OLFLEX FD CLASSIC 810 7G0,5 | D54: 2180QRN/14 | E54: ZNM-56 | F54: 2014-01-24 | G54: 6.45
B55: KWO-343/SK | C55: VITI TCCEI 12.9 UNI 5931 BR. M20 X 140 | D55: 2166TUS/14 | E55: VCQ-85 | F55: 2014-01-25 | G55: 8.08
B56: DBY-128/GN | C56: AMMONIACA ANIDRA UN BOMBOLA DA KG.25 | D56: 5932SEV/14 | E56: HXC-107 | F56: 2014-01-26 | G56: 22.05
B57: HYM-126/TJ | C57: VALVOLA RIDUTTRICE DI PRESSIONE DA 40 MBAR | D57: 4056WIP/14 | E57: GUT-17 | F57: 2014-01-26 | G57: 133.48
B58: HYM-126/TJ | C58: VALVOLA RIDUTTRICE DI PRESSIONE DA 40 MBAR | D58: 2401JME/14 | E58: WHR-132 | F58: 2014-01-26 | G58: 150.52
B59: HOU-335/QO | C59: VALVOLA DI RITEGNO PILOTATA Z2FS 16-3X/S2 | D59: 2583ROH/14 | E59: WPG-45 | F59: 2014-01-26 | G59: 106.25
B60: OQJ-149/CP | C60: KIT COMPLETO GUARNIZIONI CILINDRO 125 | D60: 957IGN/14 | E60: HPU-136 | F60: 2014-01-28 | G60: 34.56
B61: DBY-128/GN | C61: AMMONIACA ANIDRA UN BOMBOLA DA KG.25 | D61: 1672BQS/14 | E61: TAW-142 | F61: 2014-01-29 | G61: 18.27
B62: SYA-341/BM | C62: PIGNONI SEMPLICI 3/4 Z21 | D62: 1237IOK/14 | E62: WHG-100 | F62: 2014-01-29 | G62: 30.87
B63: HYM-126/TJ | C63: VALVOLA RIDUTTRICE DI PRESSIONE DA 40 MBAR | D63: 956VGF/14 | E63: CNO-78 | F63: 2014-01-30 | G63: 129.22
B64: GTN-188/OI | C64: VALVOLA RITEGNO A PIASTRA Z1S 10 P2-3X/V | D64: 2538VNU/14 | E64: TUP-30 | F64: 2014-01-30 | G64: 47.25
B65: SYA-341/BM | C65: PIGNONI SEMPLICI 3/4 Z21 | D65: 6483PMU/14 | E65: NNU-74 | F65: 2014-01-31 | G65: 26.78
B66: GTN-188/OI | C66: VALVOLA RITEGNO A PIASTRA Z1S 10 P2-3X/V | D66: 4487VVQ/14 | E66: PDI-71 | F66: 2014-02-01 | G66: 50.85
B67: WTT-322/YR | C67: CURVA 45ｰ F.F. 1 ZINC." | D67: 715YFS/14 | E67: OJB-69 | F67: 2014-02-02 | G67: 4.6
B68: WTT-322/YR | C68: CURVA 45ｰ F.F. 1 ZINC." | D68: 337HGO/14 | E68: BNS-97 | F68: 2014-02-02 | G68: 4.35
B69: FRF-171/ZE | C69: KIT GUARNIZIONI LC25...6X/LC25DB/DR-5X | D69: 3737EOM/14 | E69: BYK-95 | F69: 2014-02-03 | G69: 30.8
B70: QBI-332/YQ | C70: FORCELLA FEMMINA CON SNODO SGS/M16X1.5 | D70: 3753CRB/14 | E70: PSY-128 | F70: 2014-02-04 | G70: 29.19
B71: LCJ-304/BX | C71: KIT REVISIONE CILINDRO M.W. | D71: 3259GEI/14 | E71: YZM-138 | F71: 2014-02-04 | G71: 13.52
B72: NWC-213/WR | C72: KIT MAGNETE M.W. | D72: 4460VJU/14 | E72: NJP-85 | F72: 2014-02-04 | G72: 17.55
B73: OQJ-149/CP | C73: KIT COMPLETO GUARNIZIONI CILINDRO 125 | D73: 1597GUT/14 | E73: AON-152 | F73: 2014-02-04 | G73: 34.24
B74: EVW-340/RN | C74: OLFLEX FD CLASSIC 810 CY 4G0,5 | D74: 1618ITB/14 | E74: PQO-62 | F74: 2014-02-06 | G74: 9.72
B75: RVG-263/JX | C75: SERVOVALVOLA CON ROTORE DINAMICO | D75: 5864CUX/14 | E75: WPL-64 | F75: 2014-02-07 | G75: 133.22
B76: OCI-162/XK | C76: KIT COMPLETO GUARNIZIONI CILINDRO 80 CMPC | D76: 5703MRV/14 | E76: ALC-42 | F76: 2014-02-07 | G76: 22.02
B77: OYZ-311/GH | C77: COPERCHIO ELEMENTO LOGICO LFA 25 KWA-7X/ | D77: 3369HIU/14 | E77: ZSH-70 | F77: 2014-02-07 | G77: 7.12
B78: OQJ-149/CP | C78: KIT COMPLETO GUARNIZIONI CILINDRO 125 | D78: 2391WTQ/14 | E78: LGW-128 | F78: 2014-02-09 | G78: 35.2
B79: FRF-171/ZE | C79: KIT GUARNIZIONI LC25...6X/LC25DB/DR-5X | D79: 5773QVK/14 | E79: HGI-66 | F79: 2014-02-10 | G79: 35
B80: HOU-335/QO | C80: VALVOLA DI RITEGNO PILOTATA Z2FS 16-3X/S2 | D80: 3104WEA/14 | E80: FGK-95 | F80: 2014-02-10 | G80: 133.75
B81: EVW-340/RN | C81: OLFLEX FD CLASSIC 810 CY 4G0,5 | D81: 4997ZFK/14 | E81: LWN-118 | F81: 2014-02-11 | G81: 7.83
B82: EJJ-243/RK | C82: OLFLEX FD CLASSIC 810 7G0,5 | D82: 1866KKI/14 | E82: DAT-28 | F82: 2014-02-11 | G82: 7.8
B83: FRF-171/ZE | C83: KIT GUARNIZIONI LC25...6X/LC25DB/DR-5X | D83: 831XKM/14 | E83: GXJ-116 | F83: 2014-02-12 | G83: 31.85
B84: RVG-263/JX | C84: SERVOVALVOLA CON ROTORE DINAMICO | D84: 2062QWG/14 | E84: HQE-120 | F84: 2014-02-13 | G84: 115.79
B85: OCI-162/XK | C85: KIT COMPLETO GUARNIZIONI CILINDRO 80 CMPC | D85: 3454XQS/14 | E85: JJT-34 | F85: 2014-02-15 | G85: 18.75
B86: RVA-370/MO | C86: ELEMENTO LOGICO LC 40 DB20E7X/ | D86: 1128QDP/14 | E86: HTX-27 | F86: 2014-02-17 | G86: 13.06
B87: GTN-188/OI | C87: VALVOLA RITEGNO A PIASTRA Z1S 10 P2-3X/V | D87: 2314LLM/14 | E87: WYN-23 | F87: 2014-02-17 | G87: 42.3
B88: OQJ-149/CP | C88: KIT COMPLETO GUARNIZIONI CILINDRO 125 | D88: 358UAC/14 | E88: KWO-42 | F88: 2014-02-18 | G88: 27.2
B89: IAB-347/TY | C89: REGOLATORE DI FLUSSO Z2FS 10-3-3 X/ V | D89: 2812HEY/14 | E89: VEI-57 | F89: 2014-02-18 | G89: 116.64
B90: OYZ-311/GH | C90: COPERCHIO ELEMENTO LOGICO LFA 25 KWA-7X/ | D90: 2250YDH/14 | E90: NXL-121 | F90: 2014-02-19 | G90: 8.4
B91: KWO-343/SK | C91: VITI TCCEI 12.9 UNI 5931 BR. M20 X 140 | D91: 2348YEF/14 | E91: BSJ-70 | F91: 2014-02-20 | G91: 8.36
B92: HYM-126/TJ | C92: VALVOLA RIDUTTRICE DI PRESSIONE DA 40 MBAR | D92: 5150MBK/14 | E92: EIY-35 | F92: 2014-02-20 | G92: 151.94
B93: DBY-128/GN | C93: AMMONIACA ANIDRA UN BOMBOLA DA KG.25 | D93: 6303WNG/14 | E93: NZT-33 | F93: 2014-02-21 | G93: 21.42
B94: OCI-162/XK | C94: KIT COMPLETO GUARNIZIONI CILINDRO 80 CMPC | D94: 5726WTM/14 | E94: PXW-71 | F94: 2014-02-21 | G94: 24.2
B95: DBY-128/GN | C95: AMMONIACA ANIDRA UN BOMBOLA DA KG.25 | D95: 5550DED/14 | E95: OZV-16 | F95: 2014-02-25 | G95: 18.9
B96: KWO-343/SK | C96: VITI TCCEI 12.9 UNI 5931 BR. M20 X 140 | D96: 2583NJU/14 | E96: AAY-13 | F96: 2014-02-26 | G96: 9.12
B97: IAB-347/TY | C97: REGOLATORE DI FLUSSO Z2FS 10-3-3 X/ V | D97: 163WUB/14 | E97: ZPS-144 | F97: 2014-02-27 | G97: 105.84
B98: OYZ-311/GH | C98: COPERCHIO ELEMENTO LOGICO LFA 25 KWA-7X/ | D98: 3725UKL/14 | E98: DMM-146 | F98: 2014-02-27 | G98: 8.8
B99: LCJ-304/BX | C99: KIT REVISIONE CILINDRO M.W. | D99: 290DWO/14 | E99: VMY-134 | F99: 2014-02-27 | G99: 12.97
B100: RVA-370/MO | C100: ELEMENTO LOGICO LC 40 DB20E7X/ | D100: 3995BPS/14 | E100: XBI-85 | F100: 2014-02-27 | G100: 12.03
B101: RVA-370/MO | C101: ELEMENTO LOGICO LC 40 DB20E7X/ | D101: 4709VKD/14 | E101: AKI-75 | F101: 2014-02-27 | G101: 11.39
B102: FRF-171/ZE | C102: KIT GUARNIZIONI LC25...6X/LC25DB/DR-5X | D102: 2231MDV/14 | E102: XYL-55 | F102: 2014-02-28 | G102: 32.55
B103: IGF-330/RW | C103: RUOTE 65 SERIE RINFORZATA CON FRENO | D103: 3046SEC/14 | E103: NKK-35 | F103: 2014-02-28 | G103: 59.15
B104: EVW-340/RN | C104: OLFLEX FD CLASSIC 810 CY 4G0,5 | D104: 3532VJO/14 | E104: SBF-27 | F104: 2014-02-28 | G104: 8.28
B105: SYA-341/BM | C105: PIGNONI SEMPLICI 3/4 Z21 | D105: 2960INK/14 | E105: BKH-134 | F105: 2014-03-01 | G105: 34.34
B106: IAB-347/TY | C106: REGOLATORE DI FLUSSO Z2FS 10-3-3 X/ V | D106: 4937PTE/14 | E106: DUZ-113 | F106: 2014-03-01 | G106: 112.32
B107: FRF-171/ZE | C107: KIT GUARNIZIONI LC25...6X/LC25DB/DR-5X | D107: 5296VZJ/14 | E107: JFR-74 | F107: 2014-03-01 | G107: 31.15
B108: EJJ-243/RK | C108: OLFLEX FD CLASSIC 810 7G0,5 | D108: 4742HBW/14 | E108: ICU-113 | F108: 2014-03-02 | G108: 8.03
B109: LBW-277/ME | C109: KIT COMPLETO GUARNIZIONI PER CILINDRO 80 | D109: 2942HJE/14 | E109: KUN-151 | F109: 2014-03-02 | G109: 14
B110: BVD-350/EJ | C110: CARTUCCIA FILTRO DA 8 MICRON | D110: 3587XIM/14 | E110: QAA-14 | F110: 2014-03-05 | G110: 8.24
B111: LCJ-304/BX | C111: KIT REVISIONE CILINDRO M.W. | D111: 869UFB/14 | E111: UDF-49 | F111: 2014-03-05 | G111: 15.73
B112: OYZ-311/GH | C112: COPERCHIO ELEMENTO LOGICO LFA 25 KWA-7X/ | D112: 3078NXZ/14 | E112: RRE-140 | F112: 2014-03-05 | G112: 6.96
B113: LBW-277/ME | C113: KIT COMPLETO GUARNIZIONI PER CILINDRO 80 | D113: 5700OAH/14 | E113: WWL-93 | F113: 2014-03-05 | G113: 14.38
B114: HOU-335/QO | C114: VALVOLA DI RITEGNO PILOTATA Z2FS 16-3X/S2 | D114: 4510CYA/14 | E114: VYA-133 | F114: 2014-03-06 | G114: 118.75
B115: OYZ-311/GH | C115: COPERCHIO ELEMENTO LOGICO LFA 25 KWA-7X/ | D115: 5457ZSJ/14 | E115: ZEP-50 | F115: 2014-03-07 | G115: 7.2
B116: OQJ-149/CP | C116: KIT COMPLETO GUARNIZIONI CILINDRO 125 | D116: 4502ZMZ/14 | E116: OVP-105 | F116: 2014-03-08 | G116: 30.72
B117: LCJ-304/BX | C117: KIT REVISIONE CILINDRO M.W. | D117: 821MAP/14 | E117: VHD-46 | F117: 2014-03-09 | G117: 13.52
B118: OCI-162/XK | C118: KIT COMPLETO GUARNIZIONI CILINDRO 80 CMPC | D118: 1926PDA/14 | E118: PLI-114 | F118: 2014-03-09 | G118: 24.2
B119: OQJ-149/CP | C119: KIT COMPLETO GUARNIZIONI CILINDRO 125 | D119: 332YXC/14 | E119: RGH-140 | F119: 2014-03-09 | G119: 29.76
B120: FRF-171/ZE | C120: KIT GUARNIZIONI LC25...6X/LC25DB/DR-5X | D120: 5540LXZ/14 | E120: DDI-21 | F120: 2014-03-12 | G120: 35.35
B121: BVD-350/EJ | C121: CARTUCCIA FILTRO DA 8 MICRON | D121: 412GXB/14 | E121: FNG-82 | F121: 2014-03-12 | G121: 7.92
B122: SYA-341/BM | C122: PIGNONI SEMPLICI 3/4 Z21 | D122: 1637FKW/14 | E122: WPA-97 | F122: 2014-03-13 | G122: 31.19
B123: OYZ-311/GH | C123: COPERCHIO ELEMENTO LOGICO LFA 25 KWA-7X/ | D123: 542FWP/14 | E123: KDA-161 | F123: 2014-03-14 | G123: 7.36
B124: RVA-370/MO | C124: ELEMENTO LOGICO LC 40 DB20E7X/ | D124: 4613JXJ/14 | E124: ARN-90 | F124: 2014-03-15 | G124: 14.46
B125: QBI-332/YQ | C125: FORCELLA FEMMINA CON SNODO SGS/M16X1.5 | D125: 2054BYI/14 | E125: YMS-138 | F125: 2014-03-16 | G125: 35.75
B126: HYM-126/TJ | C126: VALVOLA RIDUTTRICE DI PRESSIONE DA 40 MBAR | D126: 873JOK/14 | E126: ZMP-94 | F126: 2014-03-17 | G126: 151.94
B127: GTN-188/OI | C127: VALVOLA RITEGNO A PIASTRA Z1S 10 P2-3X/V | D127: 5064CBU/14 | E127: TVJ-24 | F127: 2014-03-17 | G127: 40.05
B128: GTN-188/OI | C128: VALVOLA RITEGNO A PIASTRA Z1S 10 P2-3X/V | D128: 6097DRM/14 | E128: VCW-49 | F128: 2014-03-19 | G128: 51.75
B129: OYZ-311/GH | C129: COPERCHIO ELEMENTO LOGICO LFA 25 KWA-7X/ | D129: 863GLF/14 | E129: FHT-25 | F129: 2014-03-20 | G129: 7.2
B130: WTT-322/YR | C130: CURVA 45ｰ F.F. 1 ZINC." | D130: 1312WAW/14 | E130: ZGZ-28 | F130: 2014-03-20 | G130: 5.5
B131: EVW-340/RN | C131: OLFLEX FD CLASSIC 810 CY 4G0,5 | D131: 3169SKI/14 | E131: UMK-90 | F131: 2014-03-21 | G131: 8.82
B132: OYZ-311/GH | C132: COPERCHIO ELEMENTO LOGICO LFA 25 KWA-7X/ | D132: 795YOE/14 | E132: ERB-147 | F132: 2014-03-21 | G132: 7.76
B133: KWX-234/AH | C133: KIT REVISIONE CILINDRO M.W. | D133: 4881CKI/14 | E133: WFK-115 | F133: 2014-03-22 | G133: 51.51
B134: KWO-343/SK | C134: VITI TCCEI 12.9 UNI 5931 BR. M20 X 140 | D134: 546FOF/14 | E134: KLK-98 | F134: 2014-03-23 | G134: 9.31
B135: RVG-263/JX | C135: SERVOVALVOLA CON ROTORE DINAMICO | D135: 1106AUZ/14 | E135: NTE-72 | F135: 2014-03-23 | G135: 139.44
B136: LCJ-304/BX | C136: KIT REVISIONE CILINDRO M.W. | D136: 721WBX/14 | E136: YST-110 | F136: 2014-03-24 | G136: 14.63
B137: BVD-350/EJ | C137: CARTUCCIA FILTRO DA 8 MICRON | D137: 4000CVK/14 | E137: ORC-146 | F137: 2014-03-25 | G137: 6.8
B138: WTT-322/YR | C138: CURVA 45ｰ F.F. 1 ZINC." | D138: 2383SXB/14 | E138: LJI-32 | F138: 2014-03-26 | G138: 5.1
B139: SGY-295/PG | C139: PIGNONE SEMPL. 3/4 Z9" | D139: 463AYT/14 | E139: EOW-70 | F139: 2014-03-26 | G139: 29.64
B140: IAB-347/TY | C140: REGOLATORE DI FLUSSO Z2FS 10-3-3 X/ V | D140: 216GGX/14 | E140: PCZ-145 | F140: 2014-03-26 | G140: 116.64
B141: RVG-263/JX | C141: SERVOVALVOLA CON ROTORE DINAMICO | D141: 2417AXX/14 | E141: IYN-127 | F141: 2014-03-26 | G141: 118.28
B142: KWO-343/SK | C142: VITI TCCEI 12.9 UNI 5931 BR. M20 X 140 | D142: 3130LGL/14 | E142: OHE-57 | F142: 2014-03-27 | G142: 9.98
B143: SYA-341/BM | C143: PIGNONI SEMPLICI 3/4 Z21 | D143: 6028ILT/14 | E143: FOC-99 | F143: 2014-03-28 | G143: 27.09
B144: BVD-350/EJ | C144: CARTUCCIA FILTRO DA 8 MICRON | D144: 2227OJC/14 | E144: ENV-24 | F144: 2014-03-28 | G144: 8.56
B145: LBW-277/ME | C145: KIT COMPLETO GUARNIZIONI PER CILINDRO 80 | D145: 410EAY/14 | E145: ATI-156 | F145: 2014-03-28 | G145: 10.75
B146: LBW-277/ME | C146: KIT COMPLETO GUARNIZIONI PER CILINDRO 80 | D146: 4423SVH/14 | E146: BMM-30 | F146: 2014-03-29 | G146: 14
B147: BVD-350/EJ | C147: CARTUCCIA FILTRO DA 8 MICRON | D147: 3043VZH/14 | E147: NNO-141 | F147: 2014-03-29 | G147: 7.68
B148: IGF-330/RW | C148: RUOTE 65 SERIE RINFORZATA CON FRENO | D148: 4720ODJ/14 | E148: TNT-163 | F148: 2014-03-30 | G148: 72.8
B149: HYM-126/TJ | C149: VALVOLA RIDUTTRICE DI PRESSIONE DA 40 MBAR | D149: 2501BKD/14 | E149: IRD-108 | F149: 2014-03-31 | G149: 142
B150: IGF-330/RW | C150: RUOTE 65 SERIE RINFORZATA CON FRENO | D150: 5257UNY/14 | E150: MVI-97 | F150: 2014-03-31 | G150: 56.55
B151: HYM-126/TJ | C151: VALVOLA RIDUTTRICE DI PRESSIONE DA 40 MBAR | D151: 4008DHJ/14 | E151: CUR-12 | F151: 2014-04-01 | G151: 161.88
B152: RVG-263/JX | C152: SERVOVALVOLA CON ROTORE DINAMICO | D152: 1056GBK/14 | E152: MTG-100 | F152: 2014-04-02 | G152: 107.07
B153: HYM-126/TJ | C153: VALVOLA RIDUTTRICE DI PRESSIONE DA 40 MBAR | D153: 1328XWP/14 | E153: RMS-72 | F153: 2014-04-05 | G153: 132.06
B154: HOU-335/QO | C154: VALVOLA DI RITEGNO PILOTATA Z2FS 16-3X/S2 | D154: 3029TOB/14 | E154: DOA-55 | F154: 2014-04-05 | G154: 143.75
B155: LCJ-304/BX | C155: KIT REVISIONE CILINDRO M.W. | D155: 5084FMK/14 | E155: COA-105 | F155: 2014-04-05 | G155: 14.08
B156: QBI-332/YQ | C156: FORCELLA FEMMINA CON SNODO SGS/M16X1.5 | D156: 5632RFV/14 | E156: MDQ-124 | F156: 2014-04-05 | G156: 33.13
B157: WTT-322/YR | C157: CURVA 45ｰ F.F. 1 ZINC." | D157: 3561KNF/14 | E157: HYR-83 | F157: 2014-04-07 | G157: 5.6
B158: IAB-347/TY | C158: REGOLATORE DI FLUSSO Z2FS 10-3-3 X/ V | D158: 1245VXE/14 | E158: IHE-155 | F158: 2014-04-09 | G158: 116.64
B159: FRF-171/ZE | C159: KIT GUARNIZIONI LC25...6X/LC25DB/DR-5X | D159: 6407XIS/14 | E159: POF-99 | F159: 2014-04-10 | G159: 30.8
B160: HYM-126/TJ | C160: VALVOLA RIDUTTRICE DI PRESSIONE DA 40 MBAR | D160: 5840ZFB/14 | E160: FYB-123 | F160: 2014-04-11 | G160: 123.54
B161: IAB-347/TY | C161: REGOLATORE DI FLUSSO Z2FS 10-3-3 X/ V | D161: 4263LVE/14 | E161: IYH-18 | F161: 2014-04-12 | G161: 97.2
B162: KWO-343/SK | C162: VITI TCCEI 12.9 UNI 5931 BR. M20 X 140 | D162: 954CHN/14 | E162: DIV-115 | F162: 2014-04-13 | G162: 10.45
B163: GTN-188/OI | C163: VALVOLA RITEGNO A PIASTRA Z1S 10 P2-3X/V | D163: 2363ZWI/14 | E163: TGI-80 | F163: 2014-04-13 | G163: 50.85
B164: GTN-188/OI | C164: VALVOLA RITEGNO A PIASTRA Z1S 10 P2-3X/V | D164: 181AYN/14 | E164: MNF-118 | F164: 2014-04-14 | G164: 38.7
B165: NWC-213/WR | C165: KIT MAGNETE M.W. | D165: 3434LMM/14 | E165: CCN-63 | F165: 2014-04-14 | G165: 16.58
B166: RVA-370/MO | C166: ELEMENTO LOGICO LC 40 DB20E7X/ | D166: 1383ELO/14 | E166: ZLM-151 | F166: 2014-04-15 | G166: 12.67
B167: LBW-277/ME | C167: KIT COMPLETO GUARNIZIONI PER CILINDRO 80 | D167: 786TMG/14 | E167: FGB-33 | F167: 2014-04-16 | G167: 10.63
B168: GTN-188/OI | C168: VALVOLA RITEGNO A PIASTRA Z1S 10 P2-3X/V | D168: 4098FAP/14 | E168: YUT-111 | F168: 2014-04-17 | G168: 40.5
B169: EVW-340/RN | C169: OLFLEX FD CLASSIC 810 CY 4G0,5 | D169: 5626SEU/14 | E169: NKW-120 | F169: 2014-04-17 | G169: 10.26
B170: BVD-350/EJ | C170: CARTUCCIA FILTRO DA 8 MICRON | D170: 1993JIW/14 | E170: LFT-31 | F170: 2014-04-17 | G170: 8.88
B171: LBW-277/ME | C171: KIT COMPLETO GUARNIZIONI PER CILINDRO 80 | D171: 3924CEW/14 | E171: LYQ-18 | F171: 2014-04-17 | G171: 11.75
B172: GTN-188/OI | C172: VALVOLA RITEGNO A PIASTRA Z1S 10 P2-3X/V | D172: 491WFP/14 | E172: CFE-139 | F172: 2014-04-18 | G172: 47.25
B173: OQJ-149/CP | C173: KIT COMPLETO GUARNIZIONI CILINDRO 125 | D173: 5335VKY/14 | E173: FPE-50 | F173: 2014-04-18 | G173: 29.44
B174: SYA-341/BM | C174: PIGNONI SEMPLICI 3/4 Z21 | D174: 2054PTD/14 | E174: XLO-92 | F174: 2014-04-18 | G174: 33.71
B175: DBY-128/GN | C175: AMMONIACA ANIDRA UN BOMBOLA DA KG.25 | D175: 6229XAA/14 | E175: OQD-54 | F175: 2014-04-19 | G175: 21.42
B176: KWX-234/AH | C176: KIT REVISIONE CILINDRO M.W. | D176: 2976UZV/14 | E176: DXE-133 | F176: 2014-04-19 | G176: 57.12
B177: BVD-350/EJ | C177: CARTUCCIA FILTRO DA 8 MICRON | D177: 1030BUY/14 | E177: ADA-67 | F177: 2014-04-19 | G177: 8.56
B178: QBI-332/YQ | C178: FORCELLA FEMMINA CON SNODO SGS/M16X1.5 | D178: 1981JRF/14 | E178: UYP-144 | F178: 2014-04-20 | G178: 32.47
B179: BVD-350/EJ | C179: CARTUCCIA FILTRO DA 8 MICRON | D179: 924RKM/14 | E179: XUH-50 | F179: 2014-04-21 | G179: 8.72
B180: RVA-370/MO | C180: ELEMENTO LOGICO LC 40 DB20E7X/ | D180: 565CYP/14 | E180: OIE-28 | F180: 2014-04-21 | G180: 13.95
B181: SYA-341/BM | C181: PIGNONI SEMPLICI 3/4 Z21 | D181: 5071ZIV/14 | E181: YVD-101 | F181: 2014-04-21 | G181: 33.39
B182: IAB-347/TY | C182: REGOLATORE DI FLUSSO Z2FS 10-3-3 X/ V | D182: 5104FMV/14 | E182: ZJF-127 | F182: 2014-04-22 | G182: 91.8
B183: HOU-335/QO | C183: VALVOLA DI RITEGNO PILOTATA Z2FS 16-3X/S2 | D183: 2571JQO/14 | E183: PCJ-140 | F183: 2014-04-22 | G183: 142.5
B184: NWC-213/WR | C184: KIT MAGNETE M.W. | D184: 5882GMI/14 | E184: KKW-29 | F184: 2014-04-22 | G184: 17.75
B185: LBW-277/ME | C185: KIT COMPLETO GUARNIZIONI PER CILINDRO 80 | D185: 1384KJM/14 | E185: OWD-14 | F185: 2014-04-24 | G185: 13
B186: OQJ-149/CP | C186: KIT COMPLETO GUARNIZIONI CILINDRO 125 | D186: 3272AZP/14 | E186: KKL-54 | F186: 2014-04-26 | G186: 30.08
B187: GTN-188/OI | C187: VALVOLA RITEGNO A PIASTRA Z1S 10 P2-3X/V | D187: 501TUR/14 | E187: SMF-138 | F187: 2014-04-28 | G187: 50.85
B188: RVA-370/MO | C188: ELEMENTO LOGICO LC 40 DB20E7X/ | D188: 1764MUQ/14 | E188: HHE-135 | F188: 2014-04-28 | G188: 12.29
B189: EJJ-243/RK | C189: OLFLEX FD CLASSIC 810 7G0,5 | D189: 1256KYM/14 | E189: PRN-57 | F189: 2014-04-29 | G189: 7.8
B190: OYZ-311/GH | C190: COPERCHIO ELEMENTO LOGICO LFA 25 KWA-7X/ | D190: 2275SSI/14 | E190: KQM-134 | F190: 2014-04-29 | G190: 8.8
B191: WTT-322/YR | C191: CURVA 45ｰ F.F. 1 ZINC." | D191: 255DVY/14 | E191: JDT-88 | F191: 2014-05-01 | G191: 4.3
B192: BVD-350/EJ | C192: CARTUCCIA FILTRO DA 8 MICRON | D192: 5318EOI/14 | E192: MCM-115 | F192: 2014-05-03 | G192: 6.8
B193: OCI-162/XK | C193: KIT COMPLETO GUARNIZIONI CILINDRO 80 CMPC | D193: 4620ETG/14 | E193: INE-151 | F193: 2014-05-03 | G193: 22.89
B194: OQJ-149/CP | C194: KIT COMPLETO GUARNIZIONI CILINDRO 125 | D194: 5045ELQ/14 | E194: IKM-62 | F194: 2014-05-04 | G194: 28.16
B195: WTT-322/YR | C195: CURVA 45ｰ F.F. 1 ZINC." | D195: 3602UWO/14 | E195: KVT-94 | F195: 2014-05-04 | G195: 4.75
B196: LBW-277/ME | C196: KIT COMPLETO GUARNIZIONI PER CILINDRO 80 | D196: 6466QPI/14 | E196: ZIC-110 | F196: 2014-05-05 | G196: 14.25
B197: SYA-341/BM | C197: PIGNONI SEMPLICI 3/4 Z21 | D197: 1947JBD/14 | E197: DBP-26 | F197: 2014-05-05 | G197: 26.78
B198: KWO-343/SK | C198: VITI TCCEI 12.9 UNI 5931 BR. M20 X 140 | D198: 5359ZZB/14 | E198: ZAS-69 | F198: 2014-05-05 | G198: 10.45
B199: NWC-213/WR | C199: KIT MAGNETE M.W. | D199: 791HKX/14 | E199: CWC-121 | F199: 2014-05-07 | G199: 17.75
B200: HYM-126/TJ | C200: VALVOLA RIDUTTRICE DI PRESSIONE DA 40 MBAR | D200: 1099RIS/14 | E200: LPP-50 | F200: 2014-05-09 | G200: 147.68
B201: HOU-335/QO | C201: VALVOLA DI RITEGNO PILOTATA Z2FS 16-3X/S2 | D201: 5069GYZ/14 | E201: ZIM-84 | F201: 2014-05-10 | G201: 106.25
B202: HOU-335/QO | C202: VALVOLA DI RITEGNO PILOTATA Z2FS 16-3X/S2 | D202: 5370HZE/14 | E202: DMX-27 | F202: 2014-05-10 | G202: 132.5
B203: RVG-263/JX | C203: SERVOVALVOLA CON ROTORE DINAMICO | D203: 2083OAI/14 | E203: YWH-33 | F203: 2014-05-10 | G203: 126.99
B204: OYZ-311/GH | C204: COPERCHIO ELEMENTO LOGICO LFA 25 KWA-7X/ | D204: 3539FKH/14 | E204: SBN-130 | F204: 2014-05-11 | G204: 8
... 259 more rows

Sheet Luca_73 PrimaRiga
B2: VALORIZZAZIONE GIACENZE DI MAGAZZINO AL 31/12/2014 SULLA SCORTA DELL'ULTIMO PREZZO DI ACQUISTO REGISTRATO
B4: COD. ART. | C4: DESCRIZIONE ARTICOLO | D4: STOCCAGGIO | E4: QUANTITA' | F4: DATA ACQUISTO | G4: ULTIMO PREZZO | H4: ID_ORDINE | I4: IMPORTO TOT.
B5: BVD-350/EJ | C5: CARTUCCIA FILTRO DA 8 MICRON | D5: C-36 | E5: 200 | F5: =MAX(IF($B$34:$B$463=B5,$F$34:$F$463,"a")) -> 2014-12-15 | G5: =VLOOKUP(H5,CHOOSE({1,2},D33:D463,G33:G463),2,0) -> 8.08 | H5: =INDIRECT(MIN(IF($B$34:$B$463&$F$34:$F$463=B5&F5,ROW($B$34:$B$463),"")) & ":" &MIN(IF($B$34:$B$463&$F$34:$F$463=B5&F5,ROW($B$34:$B$463),""))) $D$33:$D$463 -> 4884KRQ/14 | I5: =E5*G5 -> 1616
B6: DBY-128/GN | C6: AMMONIACA ANIDRA IN BOMBOLA DA KG.25 | D6: F-45 | E6: 167 | F6: =MAX(IF($B$34:$B$463=B6,$F$34:$F$463,"a")) -> 2014-12-20 | G6: =VLOOKUP(H6,CHOOSE({1,2},D34:D464,G34:G464),2,0) -> 22.26 | H6: =INDIRECT(MIN(IF($B$34:$B$463&$F$34:$F$463=B6&F6,ROW($B$34:$B$463),"")) & ":" &MIN(IF($B$34:$B$463&$F$34:$F$463=B6&F6,ROW($B$34:$B$463),""))) $D$33:$D$463 -> 778GDG/14 | I6: =E6*G6 -> 3717.42
B7: EJJ-243/RK | C7: OLFLEX FD CLASSIC 810 7G0,5 | D7: F-95 | E7: 207 | F7: =MAX(IF($B$34:$B$463=B7,$F$34:$F$463,"a")) -> 2014-11-18 | G7: =VLOOKUP(H7,CHOOSE({1,2},D35:D465,G35:G465),2,0) -> 8.4 | H7: =INDIRECT(MIN(IF($B$34:$B$463&$F$34:$F$463=B7&F7,ROW($B$34:$B$463),"")) & ":" &MIN(IF($B$34:$B$463&$F$34:$F$463=B7&F7,ROW($B$34:$B$463),""))) $D$33:$D$463 -> 3468LPW/14 | I7: =E7*G7 -> 1738.8
B8: EVW-340/RN | C8: OLFLEX FD CLASSIC 810 CY 4G0,5 | D8: C-72 | E8: 158 | F8: =MAX(IF($B$34:$B$463=B8,$F$34:$F$463,"a")) -> 2014-12-17 | G8: =VLOOKUP(H8,CHOOSE({1,2},D36:D466,G36:G466),2,0) -> 9.54 | H8: =INDIRECT(MIN(IF($B$34:$B$463&$F$34:$F$463=B8&F8,ROW($B$34:$B$463),"")) & ":" &MIN(IF($B$34:$B$463&$F$34:$F$463=B8&F8,ROW($B$34:$B$463),""))) $D$33:$D$463 -> 4578ZUM/14 | I8: 1507.32
B9: FRF-171/ZE | C9: KIT GUARNIZIONI LC25...6X/LC25DB/DR-5X | D9: I-45 | E9: 119 | F9: =MAX(IF($B$34:$B$463=B9,$F$34:$F$463,"a")) -> 2014-12-16 | G9: =VLOOKUP(H9,CHOOSE({1,2},D37:D467,G37:G467),2,0) -> 30.8 | H9: =INDIRECT(MIN(IF($B$34:$B$463&$F$34:$F$463=B9&F9,ROW($B$34:$B$463),"")) & ":" &MIN(IF($B$34:$B$463&$F$34:$F$463=B9&F9,ROW($B$34:$B$463),""))) $D$33:$D$463 -> 2789QUI/14 | I9: 3665.2
B10: GTN-188/OI | C10: VALVOLA RITEGNO A PIASTRA Z1S 10 P2-3X/V | D10: U-62 | E10: 202 | F10: =MAX(IF($B$34:$B$463=B10,$F$34:$F$463,"a")) -> 2014-11-23 | G10: =VLOOKUP(H10,CHOOSE({1,2},D38:D468,G38:G468),2,0) -> 49.05 | H10: =INDIRECT(MIN(IF($B$34:$B$463&$F$34:$F$463=B10&F10,ROW($B$34:$B$463),"")) & ":" &MIN(IF($B$34:$B$463&$F$34:$F$463=B10&F10,ROW($B$34:$B$463),""))) $D$33:$D$463 -> 2115JIJ/14 | I10: 9908.1
B11: HOU-335/QO | C11: VALVOLA DI RITEGNO PILOTATA Z2FS 16-3X/S2 | D11: R-51 | E11: 194 | F11: =MAX(IF($B$34:$B$463=B11,$F$34:$F$463,"a")) -> 2014-12-19 | G11: =VLOOKUP(H11,CHOOSE({1,2},D39:D469,G39:G469),2,0) -> 126.25 | H11: =INDIRECT(MIN(IF($B$34:$B$463&$F$34:$F$463=B11&F11,ROW($B$34:$B$463),"")) & ":" &MIN(IF($B$34:$B$463&$F$34:$F$463=B11&F11,ROW($B$34:$B$463),""))) $D$33:$D$463 -> 4507IXW/14 | I11: 24492.5
B12: HYM-126/TJ | C12: VALVOLA RIDUTTRICE DI PRESSIONE DA 40 MBAR | D12: S-46 | E12: 150 | F12: =MAX(IF($B$34:$B$463=B12,$F$34:$F$463,"a")) -> 2014-12-09 | G12: =VLOOKUP(H12,CHOOSE({1,2},D40:D470,G40:G470),2,0) -> 156.2 | H12: =INDIRECT(MIN(IF($B$34:$B$463&$F$34:$F$463=B12&F12,ROW($B$34:$B$463),"")) & ":" &MIN(IF($B$34:$B$463&$F$34:$F$463=B12&F12,ROW($B$34:$B$463),""))) $D$33:$D$463 -> 144AKV/14 | I12: 23430
B13: IAB-347/TY | C13: REGOLATORE DI FLUSSO Z2FS 10-3-3 X/ V | D13: N-68 | E13: 154 | F13: =MAX(IF($B$34:$B$463=B13,$F$34:$F$463,"a")) -> 2014-11-18 | G13: =VLOOKUP(H13,CHOOSE({1,2},D41:D471,G41:G471),2,0) -> 110.16 | H13: =INDIRECT(MIN(IF($B$34:$B$463&$F$34:$F$463=B13&F13,ROW($B$34:$B$463),"")) & ":" &MIN(IF($B$34:$B$463&$F$34:$F$463=B13&F13,ROW($B$34:$B$463),""))) $D$33:$D$463 -> 1847TYW/14 | I13: 16964.64
B14: IGF-330/RW | C14: RUOTE 65 SERIE RINFORZATA CON FRENO | D14: H-96 | E14: 157 | F14: =MAX(IF($B$34:$B$463=B14,$F$34:$F$463,"a")) -> 2014-12-07 | G14: =VLOOKUP(H14,CHOOSE({1,2},D42:D472,G42:G472),2,0) -> 61.1 | H14: =INDIRECT(MIN(IF($B$34:$B$463&$F$34:$F$463=B14&F14,ROW($B$34:$B$463),"")) & ":" &MIN(IF($B$34:$B$463&$F$34:$F$463=B14&F14,ROW($B$34:$B$463),""))) $D$33:$D$463 -> 3404VZV/14 | I14: 9592.7
B15: KWO-343/SK | C15: VITI TCCEI 12.9 UNI 5931 BR. M20 X 140 | D15: K-39 | E15: 208 | F15: =MAX(IF($B$34:$B$463=B15,$F$34:$F$463,"a")) -> 2014-11-04 | G15: =VLOOKUP(H15,CHOOSE({1,2},D43:D473,G43:G473),2,0) -> 10.64 | H15: =INDIRECT(MIN(IF($B$34:$B$463&$F$34:$F$463=B15&F15,ROW($B$34:$B$463),"")) & ":" &MIN(IF($B$34:$B$463&$F$34:$F$463=B15&F15,ROW($B$34:$B$463),""))) $D$33:$D$463 -> 2219TJQ/14 | I15: 2213.12
B16: KWX-234/AH | C16: KIT REVISIONE CILINDRO M.W. | D16: A-89 | E16: 213 | F16: =MAX(IF($B$34:$B$463=B16,$F$34:$F$463,"a")) -> 2014-11-22 | G16: =VLOOKUP(H16,CHOOSE({1,2},D44:D474,G44:G474),2,0) -> 45.39 | H16: =INDIRECT(MIN(IF($B$34:$B$463&$F$34:$F$463=B16&F16,ROW($B$34:$B$463),"")) & ":" &MIN(IF($B$34:$B$463&$F$34:$F$463=B16&F16,ROW($B$34:$B$463),""))) $D$33:$D$463 -> 4274GFQ/14 | I16: 9668.07
B17: LBW-277/ME | C17: KIT COMPLETO GUARNIZIONI PER CILINDRO 80 | D17: L-56 | E17: 209 | F17: =MAX(IF($B$34:$B$463=B17,$F$34:$F$463,"a")) -> 2014-12-17 | G17: =VLOOKUP(H17,CHOOSE({1,2},D45:D475,G45:G475),2,0) -> 11 | H17: =INDIRECT(MIN(IF($B$34:$B$463&$F$34:$F$463=B17&F17,ROW($B$34:$B$463),"")) & ":" &MIN(IF($B$34:$B$463&$F$34:$F$463=B17&F17,ROW($B$34:$B$463),""))) $D$33:$D$463 -> 4014TXL/14 | I17: 2299
B18: LCJ-304/BX | C18: KIT REVISIONE CILINDRO M.W. | D18: E-53 | E18: 160 | F18: =MAX(IF($B$34:$B$463=B18,$F$34:$F$463,"a")) -> 2014-11-28 | G18: =VLOOKUP(H18,CHOOSE({1,2},D46:D476,G46:G476),2,0) -> 15.59 | H18: =INDIRECT(MIN(IF($B$34:$B$463&$F$34:$F$463=B18&F18,ROW($B$34:$B$463),"")) & ":" &MIN(IF($B$34:$B$463&$F$34:$F$463=B18&F18,ROW($B$34:$B$463),""))) $D$33:$D$463 -> 292UGU/14 | I18: 2494.4
B19: NWC-213/WR | C19: KIT MAGNETE M.W. | D19: M-56 | E19: 118 | F19: =MAX(IF($B$34:$B$463=B19,$F$34:$F$463,"a")) -> 2014-11-25 | G19: =VLOOKUP(H19,CHOOSE({1,2},D47:D477,G47:G477),2,0) -> 17.55 | H19: =INDIRECT(MIN(IF($B$34:$B$463&$F$34:$F$463=B19&F19,ROW($B$34:$B$463),"")) & ":" &MIN(IF($B$34:$B$463&$F$34:$F$463=B19&F19,ROW($B$34:$B$463),""))) $D$33:$D$463 -> 5815OUM/14 | I19: 2070.9
B20: OCI-162/XK | C20: KIT COMPLETO GUARNIZIONI CILINDRO 80 CMPC | D20: J-51 | E20: 137 | F20: =MAX(IF($B$34:$B$463=B20,$F$34:$F$463,"a")) -> 2014-10-25 | G20: =VLOOKUP(H20,CHOOSE({1,2},D48:D478,G48:G478),2,0) -> 19.62 | H20: =INDIRECT(MIN(IF($B$34:$B$463&$F$34:$F$463=B20&F20,ROW($B$34:$B$463),"")) & ":" &MIN(IF($B$34:$B$463&$F$34:$F$463=B20&F20,ROW($B$34:$B$463),""))) $D$33:$D$463 -> 4501ITF/14 | I20: 2687.94
B21: OQJ-149/CP | C21: KIT COMPLETO GUARNIZIONI CILINDRO 125 | D21: G-68 | E21: 178 | F21: =MAX(IF($B$34:$B$463=B21,$F$34:$F$463,"a")) -> 2014-11-30 | G21: =VLOOKUP(H21,CHOOSE({1,2},D49:D479,G49:G479),2,0) -> 29.44 | H21: =INDIRECT(MIN(IF($B$34:$B$463&$F$34:$F$463=B21&F21,ROW($B$34:$B$463),"")) & ":" &MIN(IF($B$34:$B$463&$F$34:$F$463=B21&F21,ROW($B$34:$B$463),""))) $D$33:$D$463 -> 5863LMV/14 | I21: 5240.32
B22: OYZ-311/GH | C22: COPERCHIO ELEMENTO LOGICO LFA 25 KWA-7X/ | D22: U-91 | E22: 189 | F22: =MAX(IF($B$34:$B$463=B22,$F$34:$F$463,"a")) -> 2014-11-25 | G22: =VLOOKUP(H22,CHOOSE({1,2},D50:D480,G50:G480),2,0) -> 8.08 | H22: =INDIRECT(MIN(IF($B$34:$B$463&$F$34:$F$463=B22&F22,ROW($B$34:$B$463),"")) & ":" &MIN(IF($B$34:$B$463&$F$34:$F$463=B22&F22,ROW($B$34:$B$463),""))) $D$33:$D$463 -> 696TEN/14 | I22: 1527.12
B23: QBI-332/YQ | C23: FORCELLA FEMMINA CON SNODO SGS/M16X1.5 | D23: G-56 | E23: 230 | F23: =MAX(IF($B$34:$B$463=B23,$F$34:$F$463,"a")) -> 2014-11-21 | G23: =VLOOKUP(H23,CHOOSE({1,2},D51:D481,G51:G481),2,0) -> 33.78 | H23: =INDIRECT(MIN(IF($B$34:$B$463&$F$34:$F$463=B23&F23,ROW($B$34:$B$463),"")) & ":" &MIN(IF($B$34:$B$463&$F$34:$F$463=B23&F23,ROW($B$34:$B$463),""))) $D$33:$D$463 -> 856UJJ/14 | I23: 7769.4
B24: RVA-370/MO | C24: ELEMENTO LOGICO LC 40 DB20E7X/ | D24: O-82 | E24: 143 | F24: =MAX(IF($B$34:$B$463=B24,$F$34:$F$463,"a")) -> 2014-12-10 | G24: =VLOOKUP(H24,CHOOSE({1,2},D52:D482,G52:G482),2,0) -> 11.78 | H24: =INDIRECT(MIN(IF($B$34:$B$463&$F$34:$F$463=B24&F24,ROW($B$34:$B$463),"")) & ":" &MIN(IF($B$34:$B$463&$F$34:$F$463=B24&F24,ROW($B$34:$B$463),""))) $D$33:$D$463 -> 4325TQV/14 | I24: 1684.54
B25: RVG-263/JX | C25: SERVOVALVOLA CON ROTORE DINAMICO | D25: B-93 | E25: 194 | F25: =MAX(IF($B$34:$B$463=B25,$F$34:$F$463,"a")) -> 2014-12-20 | G25: =VLOOKUP(H25,CHOOSE({1,2},D53:D483,G53:G483),2,0) -> 125.75 | H25: =INDIRECT(MIN(IF($B$34:$B$463&$F$34:$F$463=B25&F25,ROW($B$34:$B$463),"")) & ":" &MIN(IF($B$34:$B$463&$F$34:$F$463=B25&F25,ROW($B$34:$B$463),""))) $D$33:$D$463 -> 1421TYJ/14 | I25: 24395.5
B26: SGY-295/PG | C26: PIGNONE SEMPL. 3/4 Z9" | D26: Y-76 | E26: 206 | F26: =MAX(IF($B$34:$B$463=B26,$F$34:$F$463,"a")) -> 2014-12-18 | G26: =VLOOKUP(H26,CHOOSE({1,2},D54:D484,G54:G484),2,0) -> 27.08 | H26: =INDIRECT(MIN(IF($B$34:$B$463&$F$34:$F$463=B26&F26,ROW($B$34:$B$463),"")) & ":" &MIN(IF($B$34:$B$463&$F$34:$F$463=B26&F26,ROW($B$34:$B$463),""))) $D$33:$D$463 -> 1602TDS/14 | I26: 5578.48
B27: SYA-341/BM | C27: PIGNONI SEMPLICI 3/4 Z21 | D27: W-83 | E27: 155 | F27: =MAX(IF($B$34:$B$463=B27,$F$34:$F$463,"a")) -> 2014-12-07 | G27: =VLOOKUP(H27,CHOOSE({1,2},D55:D485,G55:G485),2,0) -> 27.41 | H27: =INDIRECT(MIN(IF($B$34:$B$463&$F$34:$F$463=B27&F27,ROW($B$34:$B$463),"")) & ":" &MIN(IF($B$34:$B$463&$F$34:$F$463=B27&F27,ROW($B$34:$B$463),""))) $D$33:$D$463 -> 6241FLY/14 | I27: 4248.55
B28: WTT-322/YR | C28: CURVA 45ｰ F.F. 1 ZINC." | D28: C-37 | E28: 232 | F28: =MAX(IF($B$34:$B$463=B28,$F$34:$F$463,"a")) -> 2014-12-11 | G28: =VLOOKUP(H28,CHOOSE({1,2},D56:D486,G56:G486),2,0) -> 5.45 | H28: =INDIRECT(MIN(IF($B$34:$B$463&$F$34:$F$463=B28&F28,ROW($B$34:$B$463),"")) & ":" &MIN(IF($B$34:$B$463&$F$34:$F$463=B28&F28,ROW($B$34:$B$463),""))) $D$33:$D$463 -> 4768WGN/14 | I28: 1264.4
H30: TOTALE GIACENZE : | I30: =SUM(I5:I28) -> 169774.42
B32: TABELLA ACQUISTI EFFETTUATI NEL 2014
B33: COD. ART. | C33: DESCRIZIONE ARTICOLO | D33: ID_ORDINE | E33: COD.FORN. | F33: DATA ACQUISTO | G33: PREZZO UNITARIO
B34: HYM-126/TJ | C34: VALVOLA RIDUTTRICE DI PRESSIONE DA 40 MBAR | D34: 14FYF/14 | E34: ISR-13 | F34: 2014-01-07 | G34: 139.16
B35: WTT-322/YR | C35: CURVA 45ｰ F.F. 1 ZINC." | D35: 2108TZW/14 | E35: QVG-137 | F35: 2014-01-07 | G35: 5.7
B36: WTT-322/YR | C36: CURVA 45ｰ F.F. 1 ZINC." | D36: 570YMT/14 | E36: COB-84 | F36: 2014-01-08 | G36: 5.15
B37: IGF-330/RW | C37: RUOTE 65 SERIE RINFORZATA CON FRENO | D37: 1798OPR/14 | E37: UKU-106 | F37: 2014-01-09 | G37: 57.2
B38: IAB-347/TY | C38: REGOLATORE DI FLUSSO Z2FS 10-3-3 X/ V | D38: 6231GQD/14 | E38: EPH-38 | F38: 2014-01-09 | G38: 115.56
B39: EVW-340/RN | C39: OLFLEX FD CLASSIC 810 CY 4G0,5 | D39: 6223MRI/14 | E39: SFS-48 | F39: 2014-01-10 | G39: 9.99
B40: HYM-126/TJ | C40: VALVOLA RIDUTTRICE DI PRESSIONE DA 40 MBAR | D40: 2906HMY/14 | E40: CBI-156 | F40: 2014-01-10 | G40: 151.94
B41: RVA-370/MO | C41: ELEMENTO LOGICO LC 40 DB20E7X/ | D41: 3835FLC/14 | E41: QBL-116 | F41: 2014-01-10 | G41: 13.06
B42: LBW-277/ME | C42: KIT COMPLETO GUARNIZIONI PER CILINDRO 80 | D42: 426ANG/14 | E42: MOS-20 | F42: 2014-01-10 | G42: 13.38
B43: LBW-277/ME | C43: KIT COMPLETO GUARNIZIONI PER CILINDRO 80 | D43: 5893HLS/14 | E43: ZDS-34 | F43: 2014-01-12 | G43: 13.63
B44: LCJ-304/BX | C44: KIT REVISIONE CILINDRO M.W. | D44: 5302XWG/14 | E44: HUT-145 | F44: 2014-01-14 | G44: 14.35
B45: GTN-188/OI | C45: VALVOLA RITEGNO A PIASTRA Z1S 10 P2-3X/V | D45: 2064OAC/14 | E45: UZC-47 | F45: 2014-01-15 | G45: 44.1
B46: KWX-234/AH | C46: KIT REVISIONE CILINDRO M.W. | D46: 4975PFC/14 | E46: KFF-148 | F46: 2014-01-15 | G46: 46.41
B47: EVW-340/RN | C47: OLFLEX FD CLASSIC 810 CY 4G0,5 | D47: 1711IKG/14 | E47: MIT-152 | F47: 2014-01-15 | G47: 9.09
B48: BVD-350/EJ | C48: CARTUCCIA FILTRO DA 8 MICRON | D48: 2421WLN/14 | E48: XUJ-96 | F48: 2014-01-16 | G48: 8.16
B49: KWX-234/AH | C49: KIT REVISIONE CILINDRO M.W. | D49: 5825PKH/14 | E49: HUF-22 | F49: 2014-01-17 | G49: 44.37
B50: SGY-295/PG | C50: PIGNONE SEMPL. 3/4 Z9" | D50: 4777BGM/14 | E50: KFT-104 | F50: 2014-01-22 | G50: 30.5
B51: IAB-347/TY | C51: REGOLATORE DI FLUSSO Z2FS 10-3-3 X/ V | D51: 3968TBJ/14 | E51: AMX-50 | F51: 2014-01-22 | G51: 98.28
B52: EJJ-243/RK | C52: OLFLEX FD CLASSIC 810 7G0,5 | D52: 2565POU/14 | E52: ZSH-26 | F52: 2014-01-23 | G52: 7.35
B53: EJJ-243/RK | C53: OLFLEX FD CLASSIC 810 7G0,5 | D53: 921EWK/14 | E53: WXR-135 | F53: 2014-01-23 | G53: 7.05
B54: EJJ-243/RK | C54: OLFLEX FD CLASSIC 810 7G0,5 | D54: 2180QRN/14 | E54: ZNM-56 | F54: 2014-01-24 | G54: 6.45
B55: KWO-343/SK | C55: VITI TCCEI 12.9 UNI 5931 BR. M20 X 140 | D55: 2166TUS/14 | E55: VCQ-85 | F55: 2014-01-25 | G55: 8.08
B56: DBY-128/GN | C56: AMMONIACA ANIDRA UN BOMBOLA DA KG.25 | D56: 5932SEV/14 | E56: HXC-107 | F56: 2014-01-26 | G56: 22.05
B57: HYM-126/TJ | C57: VALVOLA RIDUTTRICE DI PRESSIONE DA 40 MBAR | D57: 4056WIP/14 | E57: GUT-17 | F57: 2014-01-26 | G57: 133.48
B58: HYM-126/TJ | C58: VALVOLA RIDUTTRICE DI PRESSIONE DA 40 MBAR | D58: 2401JME/14 | E58: WHR-132 | F58: 2014-01-26 | G58: 150.52
B59: HOU-335/QO | C59: VALVOLA DI RITEGNO PILOTATA Z2FS 16-3X/S2 | D59: 2583ROH/14 | E59: WPG-45 | F59: 2014-01-26 | G59: 106.25
B60: OQJ-149/CP | C60: KIT COMPLETO GUARNIZIONI CILINDRO 125 | D60: 957IGN/14 | E60: HPU-136 | F60: 2014-01-28 | G60: 34.56
B61: DBY-128/GN | C61: AMMONIACA ANIDRA UN BOMBOLA DA KG.25 | D61: 1672BQS/14 | E61: TAW-142 | F61: 2014-01-29 | G61: 18.27
B62: SYA-341/BM | C62: PIGNONI SEMPLICI 3/4 Z21 | D62: 1237IOK/14 | E62: WHG-100 | F62: 2014-01-29 | G62: 30.87
B63: HYM-126/TJ | C63: VALVOLA RIDUTTRICE DI PRESSIONE DA 40 MBAR | D63: 956VGF/14 | E63: CNO-78 | F63: 2014-01-30 | G63: 129.22
B64: GTN-188/OI | C64: VALVOLA RITEGNO A PIASTRA Z1S 10 P2-3X/V | D64: 2538VNU/14 | E64: TUP-30 | F64: 2014-01-30 | G64: 47.25
B65: SYA-341/BM | C65: PIGNONI SEMPLICI 3/4 Z21 | D65: 6483PMU/14 | E65: NNU-74 | F65: 2014-01-31 | G65: 26.78
B66: GTN-188/OI | C66: VALVOLA RITEGNO A PIASTRA Z1S 10 P2-3X/V | D66: 4487VVQ/14 | E66: PDI-71 | F66: 2014-02-01 | G66: 50.85
B67: WTT-322/YR | C67: CURVA 45ｰ F.F. 1 ZINC." | D67: 715YFS/14 | E67: OJB-69 | F67: 2014-02-02 | G67: 4.6
B68: WTT-322/YR | C68: CURVA 45ｰ F.F. 1 ZINC." | D68: 337HGO/14 | E68: BNS-97 | F68: 2014-02-02 | G68: 4.35
B69: FRF-171/ZE | C69: KIT GUARNIZIONI LC25...6X/LC25DB/DR-5X | D69: 3737EOM/14 | E69: BYK-95 | F69: 2014-02-03 | G69: 30.8
B70: QBI-332/YQ | C70: FORCELLA FEMMINA CON SNODO SGS/M16X1.5 | D70: 3753CRB/14 | E70: PSY-128 | F70: 2014-02-04 | G70: 29.19
B71: LCJ-304/BX | C71: KIT REVISIONE CILINDRO M.W. | D71: 3259GEI/14 | E71: YZM-138 | F71: 2014-02-04 | G71: 13.52
B72: NWC-213/WR | C72: KIT MAGNETE M.W. | D72: 4460VJU/14 | E72: NJP-85 | F72: 2014-02-04 | G72: 17.55
B73: OQJ-149/CP | C73: KIT COMPLETO GUARNIZIONI CILINDRO 125 | D73: 1597GUT/14 | E73: AON-152 | F73: 2014-02-04 | G73: 34.24
B74: EVW-340/RN | C74: OLFLEX FD CLASSIC 810 CY 4G0,5 | D74: 1618ITB/14 | E74: PQO-62 | F74: 2014-02-06 | G74: 9.72
B75: RVG-263/JX | C75: SERVOVALVOLA CON ROTORE DINAMICO | D75: 5864CUX/14 | E75: WPL-64 | F75: 2014-02-07 | G75: 133.22
B76: OCI-162/XK | C76: KIT COMPLETO GUARNIZIONI CILINDRO 80 CMPC | D76: 5703MRV/14 | E76: ALC-42 | F76: 2014-02-07 | G76: 22.02
B77: OYZ-311/GH | C77: COPERCHIO ELEMENTO LOGICO LFA 25 KWA-7X/ | D77: 3369HIU/14 | E77: ZSH-70 | F77: 2014-02-07 | G77: 7.12
B78: OQJ-149/CP | C78: KIT COMPLETO GUARNIZIONI CILINDRO 125 | D78: 2391WTQ/14 | E78: LGW-128 | F78: 2014-02-09 | G78: 35.2
B79: FRF-171/ZE | C79: KIT GUARNIZIONI LC25...6X/LC25DB/DR-5X | D79: 5773QVK/14 | E79: HGI-66 | F79: 2014-02-10 | G79: 35
B80: HOU-335/QO | C80: VALVOLA DI RITEGNO PILOTATA Z2FS 16-3X/S2 | D80: 3104WEA/14 | E80: FGK-95 | F80: 2014-02-10 | G80: 133.75
B81: EVW-340/RN | C81: OLFLEX FD CLASSIC 810 CY 4G0,5 | D81: 4997ZFK/14 | E81: LWN-118 | F81: 2014-02-11 | G81: 7.83
B82: EJJ-243/RK | C82: OLFLEX FD CLASSIC 810 7G0,5 | D82: 1866KKI/14 | E82: DAT-28 | F82: 2014-02-11 | G82: 7.8
B83: FRF-171/ZE | C83: KIT GUARNIZIONI LC25...6X/LC25DB/DR-5X | D83: 831XKM/14 | E83: GXJ-116 | F83: 2014-02-12 | G83: 31.85
B84: RVG-263/JX | C84: SERVOVALVOLA CON ROTORE DINAMICO | D84: 2062QWG/14 | E84: HQE-120 | F84: 2014-02-13 | G84: 115.79
B85: OCI-162/XK | C85: KIT COMPLETO GUARNIZIONI CILINDRO 80 CMPC | D85: 3454XQS/14 | E85: JJT-34 | F85: 2014-02-15 | G85: 18.75
B86: RVA-370/MO | C86: ELEMENTO LOGICO LC 40 DB20E7X/ | D86: 1128QDP/14 | E86: HTX-27 | F86: 2014-02-17 | G86: 13.06
B87: GTN-188/OI | C87: VALVOLA RITEGNO A PIASTRA Z1S 10 P2-3X/V | D87: 2314LLM/14 | E87: WYN-23 | F87: 2014-02-17 | G87: 42.3
B88: OQJ-149/CP | C88: KIT COMPLETO GUARNIZIONI CILINDRO 125 | D88: 358UAC/14 | E88: KWO-42 | F88: 2014-02-18 | G88: 27.2
B89: IAB-347/TY | C89: REGOLATORE DI FLUSSO Z2FS 10-3-3 X/ V | D89: 2812HEY/14 | E89: VEI-57 | F89: 2014-02-18 | G89: 116.64
B90: OYZ-311/GH | C90: COPERCHIO ELEMENTO LOGICO LFA 25 KWA-7X/ | D90: 2250YDH/14 | E90: NXL-121 | F90: 2014-02-19 | G90: 8.4
B91: KWO-343/SK | C91: VITI TCCEI 12.9 UNI 5931 BR. M20 X 140 | D91: 2348YEF/14 | E91: BSJ-70 | F91: 2014-02-20 | G91: 8.36
B92: HYM-126/TJ | C92: VALVOLA RIDUTTRICE DI PRESSIONE DA 40 MBAR | D92: 5150MBK/14 | E92: EIY-35 | F92: 2014-02-20 | G92: 151.94
B93: DBY-128/GN | C93: AMMONIACA ANIDRA UN BOMBOLA DA KG.25 | D93: 6303WNG/14 | E93: NZT-33 | F93: 2014-02-21 | G93: 21.42
B94: OCI-162/XK | C94: KIT COMPLETO GUARNIZIONI CILINDRO 80 CMPC | D94: 5726WTM/14 | E94: PXW-71 | F94: 2014-02-21 | G94: 24.2
B95: DBY-128/GN | C95: AMMONIACA ANIDRA UN BOMBOLA DA KG.25 | D95: 5550DED/14 | E95: OZV-16 | F95: 2014-02-25 | G95: 18.9
B96: KWO-343/SK | C96: VITI TCCEI 12.9 UNI 5931 BR. M20 X 140 | D96: 2583NJU/14 | E96: AAY-13 | F96: 2014-02-26 | G96: 9.12
B97: IAB-347/TY | C97: REGOLATORE DI FLUSSO Z2FS 10-3-3 X/ V | D97: 163WUB/14 | E97: ZPS-144 | F97: 2014-02-27 | G97: 105.84
B98: OYZ-311/GH | C98: COPERCHIO ELEMENTO LOGICO LFA 25 KWA-7X/ | D98: 3725UKL/14 | E98: DMM-146 | F98: 2014-02-27 | G98: 8.8
B99: LCJ-304/BX | C99: KIT REVISIONE CILINDRO M.W. | D99: 290DWO/14 | E99: VMY-134 | F99: 2014-02-27 | G99: 12.97
B100: RVA-370/MO | C100: ELEMENTO LOGICO LC 40 DB20E7X/ | D100: 3995BPS/14 | E100: XBI-85 | F100: 2014-02-27 | G100: 12.03
B101: RVA-370/MO | C101: ELEMENTO LOGICO LC 40 DB20E7X/ | D101: 4709VKD/14 | E101: AKI-75 | F101: 2014-02-27 | G101: 11.39
B102: FRF-171/ZE | C102: KIT GUARNIZIONI LC25...6X/LC25DB/DR-5X | D102: 2231MDV/14 | E102: XYL-55 | F102: 2014-02-28 | G102: 32.55
B103: IGF-330/RW | C103: RUOTE 65 SERIE RINFORZATA CON FRENO | D103: 3046SEC/14 | E103: NKK-35 | F103: 2014-02-28 | G103: 59.15
B104: EVW-340/RN | C104: OLFLEX FD CLASSIC 810 CY 4G0,5 | D104: 3532VJO/14 | E104: SBF-27 | F104: 2014-02-28 | G104: 8.28
B105: SYA-341/BM | C105: PIGNONI SEMPLICI 3/4 Z21 | D105: 2960INK/14 | E105: BKH-134 | F105: 2014-03-01 | G105: 34.34
B106: IAB-347/TY | C106: REGOLATORE DI FLUSSO Z2FS 10-3-3 X/ V | D106: 4937PTE/14 | E106: DUZ-113 | F106: 2014-03-01 | G106: 112.32
B107: FRF-171/ZE | C107: KIT GUARNIZIONI LC25...6X/LC25DB/DR-5X | D107: 5296VZJ/14 | E107: JFR-74 | F107: 2014-03-01 | G107: 31.15
B108: EJJ-243/RK | C108: OLFLEX FD CLASSIC 810 7G0,5 | D108: 4742HBW/14 | E108: ICU-113 | F108: 2014-03-02 | G108: 8.03
B109: LBW-277/ME | C109: KIT COMPLETO GUARNIZIONI PER CILINDRO 80 | D109: 2942HJE/14 | E109: KUN-151 | F109: 2014-03-02 | G109: 14
B110: BVD-350/EJ | C110: CARTUCCIA FILTRO DA 8 MICRON | D110: 3587XIM/14 | E110: QAA-14 | F110: 2014-03-05 | G110: 8.24
B111: LCJ-304/BX | C111: KIT REVISIONE CILINDRO M.W. | D111: 869UFB/14 | E111: UDF-49 | F111: 2014-03-05 | G111: 15.73
B112: OYZ-311/GH | C112: COPERCHIO ELEMENTO LOGICO LFA 25 KWA-7X/ | D112: 3078NXZ/14 | E112: RRE-140 | F112: 2014-03-05 | G112: 6.96
B113: LBW-277/ME | C113: KIT COMPLETO GUARNIZIONI PER CILINDRO 80 | D113: 5700OAH/14 | E113: WWL-93 | F113: 2014-03-05 | G113: 14.38
B114: HOU-335/QO | C114: VALVOLA DI RITEGNO PILOTATA Z2FS 16-3X/S2 | D114: 4510CYA/14 | E114: VYA-133 | F114: 2014-03-06 | G114: 118.75
B115: OYZ-311/GH | C115: COPERCHIO ELEMENTO LOGICO LFA 25 KWA-7X/ | D115: 5457ZSJ/14 | E115: ZEP-50 | F115: 2014-03-07 | G115: 7.2
B116: OQJ-149/CP | C116: KIT COMPLETO GUARNIZIONI CILINDRO 125 | D116: 4502ZMZ/14 | E116: OVP-105 | F116: 2014-03-08 | G116: 30.72
B117: LCJ-304/BX | C117: KIT REVISIONE CILINDRO M.W. | D117: 821MAP/14 | E117: VHD-46 | F117: 2014-03-09 | G117: 13.52
B118: OCI-162/XK | C118: KIT COMPLETO GUARNIZIONI CILINDRO 80 CMPC | D118: 1926PDA/14 | E118: PLI-114 | F118: 2014-03-09 | G118: 24.2
B119: OQJ-149/CP | C119: KIT COMPLETO GUARNIZIONI CILINDRO 125 | D119: 332YXC/14 | E119: RGH-140 | F119: 2014-03-09 | G119: 29.76
B120: FRF-171/ZE | C120: KIT GUARNIZIONI LC25...6X/LC25DB/DR-5X | D120: 5540LXZ/14 | E120: DDI-21 | F120: 2014-03-12 | G120: 35.35
B121: BVD-350/EJ | C121: CARTUCCIA FILTRO DA 8 MICRON | D121: 412GXB/14 | E121: FNG-82 | F121: 2014-03-12 | G121: 7.92
B122: SYA-341/BM | C122: PIGNONI SEMPLICI 3/4 Z21 | D122: 1637FKW/14 | E122: WPA-97 | F122: 2014-03-13 | G122: 31.19
B123: OYZ-311/GH | C123: COPERCHIO ELEMENTO LOGICO LFA 25 KWA-7X/ | D123: 542FWP/14 | E123: KDA-161 | F123: 2014-03-14 | G123: 7.36
B124: RVA-370/MO | C124: ELEMENTO LOGICO LC 40 DB20E7X/ | D124: 4613JXJ/14 | E124: ARN-90 | F124: 2014-03-15 | G124: 14.46
B125: QBI-332/YQ | C125: FORCELLA FEMMINA CON SNODO SGS/M16X1.5 | D125: 2054BYI/14 | E125: YMS-138 | F125: 2014-03-16 | G125: 35.75
B126: HYM-126/TJ | C126: VALVOLA RIDUTTRICE DI PRESSIONE DA 40 MBAR | D126: 873JOK/14 | E126: ZMP-94 | F126: 2014-03-17 | G126: 151.94
B127: GTN-188/OI | C127: VALVOLA RITEGNO A PIASTRA Z1S 10 P2-3X/V | D127: 5064CBU/14 | E127: TVJ-24 | F127: 2014-03-17 | G127: 40.05
B128: GTN-188/OI | C128: VALVOLA RITEGNO A PIASTRA Z1S 10 P2-3X/V | D128: 6097DRM/14 | E128: VCW-49 | F128: 2014-03-19 | G128: 51.75
B129: OYZ-311/GH | C129: COPERCHIO ELEMENTO LOGICO LFA 25 KWA-7X/ | D129: 863GLF/14 | E129: FHT-25 | F129: 2014-03-20 | G129: 7.2
B130: WTT-322/YR | C130: CURVA 45ｰ F.F. 1 ZINC." | D130: 1312WAW/14 | E130: ZGZ-28 | F130: 2014-03-20 | G130: 5.5
B131: EVW-340/RN | C131: OLFLEX FD CLASSIC 810 CY 4G0,5 | D131: 3169SKI/14 | E131: UMK-90 | F131: 2014-03-21 | G131: 8.82
B132: OYZ-311/GH | C132: COPERCHIO ELEMENTO LOGICO LFA 25 KWA-7X/ | D132: 795YOE/14 | E132: ERB-147 | F132: 2014-03-21 | G132: 7.76
B133: KWX-234/AH | C133: KIT REVISIONE CILINDRO M.W. | D133: 4881CKI/14 | E133: WFK-115 | F133: 2014-03-22 | G133: 51.51
B134: KWO-343/SK | C134: VITI TCCEI 12.9 UNI 5931 BR. M20 X 140 | D134: 546FOF/14 | E134: KLK-98 | F134: 2014-03-23 | G134: 9.31
B135: RVG-263/JX | C135: SERVOVALVOLA CON ROTORE DINAMICO | D135: 1106AUZ/14 | E135: NTE-72 | F135: 2014-03-23 | G135: 139.44
B136: LCJ-304/BX | C136: KIT REVISIONE CILINDRO M.W. | D136: 721WBX/14 | E136: YST-110 | F136: 2014-03-24 | G136: 14.63
B137: BVD-350/EJ | C137: CARTUCCIA FILTRO DA 8 MICRON | D137: 4000CVK/14 | E137: ORC-146 | F137: 2014-03-25 | G137: 6.8
B138: WTT-322/YR | C138: CURVA 45ｰ F.F. 1 ZINC." | D138: 2383SXB/14 | E138: LJI-32 | F138: 2014-03-26 | G138: 5.1
B139: SGY-295/PG | C139: PIGNONE SEMPL. 3/4 Z9" | D139: 463AYT/14 | E139: EOW-70 | F139: 2014-03-26 | G139: 29.64
B140: IAB-347/TY | C140: REGOLATORE DI FLUSSO Z2FS 10-3-3 X/ V | D140: 216GGX/14 | E140: PCZ-145 | F140: 2014-03-26 | G140: 116.64
B141: RVG-263/JX | C141: SERVOVALVOLA CON ROTORE DINAMICO | D141: 2417AXX/14 | E141: IYN-127 | F141: 2014-03-26 | G141: 118.28
B142: KWO-343/SK | C142: VITI TCCEI 12.9 UNI 5931 BR. M20 X 140 | D142: 3130LGL/14 | E142: OHE-57 | F142: 2014-03-27 | G142: 9.98
B143: SYA-341/BM | C143: PIGNONI SEMPLICI 3/4 Z21 | D143: 6028ILT/14 | E143: FOC-99 | F143: 2014-03-28 | G143: 27.09
B144: BVD-350/EJ | C144: CARTUCCIA FILTRO DA 8 MICRON | D144: 2227OJC/14 | E144: ENV-24 | F144: 2014-03-28 | G144: 8.56
B145: LBW-277/ME | C145: KIT COMPLETO GUARNIZIONI PER CILINDRO 80 | D145: 410EAY/14 | E145: ATI-156 | F145: 2014-03-28 | G145: 10.75
B146: LBW-277/ME | C146: KIT COMPLETO GUARNIZIONI PER CILINDRO 80 | D146: 4423SVH/14 | E146: BMM-30 | F146: 2014-03-29 | G146: 14
B147: BVD-350/EJ | C147: CARTUCCIA FILTRO DA 8 MICRON | D147: 3043VZH/14 | E147: NNO-141 | F147: 2014-03-29 | G147: 7.68
B148: IGF-330/RW | C148: RUOTE 65 SERIE RINFORZATA CON FRENO | D148: 4720ODJ/14 | E148: TNT-163 | F148: 2014-03-30 | G148: 72.8
B149: HYM-126/TJ | C149: VALVOLA RIDUTTRICE DI PRESSIONE DA 40 MBAR | D149: 2501BKD/14 | E149: IRD-108 | F149: 2014-03-31 | G149: 142
B150: IGF-330/RW | C150: RUOTE 65 SERIE RINFORZATA CON FRENO | D150: 5257UNY/14 | E150: MVI-97 | F150: 2014-03-31 | G150: 56.55
B151: HYM-126/TJ | C151: VALVOLA RIDUTTRICE DI PRESSIONE DA 40 MBAR | D151: 4008DHJ/14 | E151: CUR-12 | F151: 2014-04-01 | G151: 161.88
B152: RVG-263/JX | C152: SERVOVALVOLA CON ROTORE DINAMICO | D152: 1056GBK/14 | E152: MTG-100 | F152: 2014-04-02 | G152: 107.07
B153: HYM-126/TJ | C153: VALVOLA RIDUTTRICE DI PRESSIONE DA 40 MBAR | D153: 1328XWP/14 | E153: RMS-72 | F153: 2014-04-05 | G153: 132.06
B154: HOU-335/QO | C154: VALVOLA DI RITEGNO PILOTATA Z2FS 16-3X/S2 | D154: 3029TOB/14 | E154: DOA-55 | F154: 2014-04-05 | G154: 143.75
B155: LCJ-304/BX | C155: KIT REVISIONE CILINDRO M.W. | D155: 5084FMK/14 | E155: COA-105 | F155: 2014-04-05 | G155: 14.08
B156: QBI-332/YQ | C156: FORCELLA FEMMINA CON SNODO SGS/M16X1.5 | D156: 5632RFV/14 | E156: MDQ-124 | F156: 2014-04-05 | G156: 33.13
B157: WTT-322/YR | C157: CURVA 45ｰ F.F. 1 ZINC." | D157: 3561KNF/14 | E157: HYR-83 | F157: 2014-04-07 | G157: 5.6
B158: IAB-347/TY | C158: REGOLATORE DI FLUSSO Z2FS 10-3-3 X/ V | D158: 1245VXE/14 | E158: IHE-155 | F158: 2014-04-09 | G158: 116.64
B159: FRF-171/ZE | C159: KIT GUARNIZIONI LC25...6X/LC25DB/DR-5X | D159: 6407XIS/14 | E159: POF-99 | F159: 2014-04-10 | G159: 30.8
B160: HYM-126/TJ | C160: VALVOLA RIDUTTRICE DI PRESSIONE DA 40 MBAR | D160: 5840ZFB/14 | E160: FYB-123 | F160: 2014-04-11 | G160: 123.54
B161: IAB-347/TY | C161: REGOLATORE DI FLUSSO Z2FS 10-3-3 X/ V | D161: 4263LVE/14 | E161: IYH-18 | F161: 2014-04-12 | G161: 97.2
B162: KWO-343/SK | C162: VITI TCCEI 12.9 UNI 5931 BR. M20 X 140 | D162: 954CHN/14 | E162: DIV-115 | F162: 2014-04-13 | G162: 10.45
B163: GTN-188/OI | C163: VALVOLA RITEGNO A PIASTRA Z1S 10 P2-3X/V | D163: 2363ZWI/14 | E163: TGI-80 | F163: 2014-04-13 | G163: 50.85
B164: GTN-188/OI | C164: VALVOLA RITEGNO A PIASTRA Z1S 10 P2-3X/V | D164: 181AYN/14 | E164: MNF-118 | F164: 2014-04-14 | G164: 38.7
B165: NWC-213/WR | C165: KIT MAGNETE M.W. | D165: 3434LMM/14 | E165: CCN-63 | F165: 2014-04-14 | G165: 16.58
B166: RVA-370/MO | C166: ELEMENTO LOGICO LC 40 DB20E7X/ | D166: 1383ELO/14 | E166: ZLM-151 | F166: 2014-04-15 | G166: 12.67
B167: LBW-277/ME | C167: KIT COMPLETO GUARNIZIONI PER CILINDRO 80 | D167: 786TMG/14 | E167: FGB-33 | F167: 2014-04-16 | G167: 10.63
B168: GTN-188/OI | C168: VALVOLA RITEGNO A PIASTRA Z1S 10 P2-3X/V | D168: 4098FAP/14 | E168: YUT-111 | F168: 2014-04-17 | G168: 40.5
B169: EVW-340/RN | C169: OLFLEX FD CLASSIC 810 CY 4G0,5 | D169: 5626SEU/14 | E169: NKW-120 | F169: 2014-04-17 | G169: 10.26
B170: BVD-350/EJ | C170: CARTUCCIA FILTRO DA 8 MICRON | D170: 1993JIW/14 | E170: LFT-31 | F170: 2014-04-17 | G170: 8.88
B171: LBW-277/ME | C171: KIT COMPLETO GUARNIZIONI PER CILINDRO 80 | D171: 3924CEW/14 | E171: LYQ-18 | F171: 2014-04-17 | G171: 11.75
B172: GTN-188/OI | C172: VALVOLA RITEGNO A PIASTRA Z1S 10 P2-3X/V | D172: 491WFP/14 | E172: CFE-139 | F172: 2014-04-18 | G172: 47.25
B173: OQJ-149/CP | C173: KIT COMPLETO GUARNIZIONI CILINDRO 125 | D173: 5335VKY/14 | E173: FPE-50 | F173: 2014-04-18 | G173: 29.44
B174: SYA-341/BM | C174: PIGNONI SEMPLICI 3/4 Z21 | D174: 2054PTD/14 | E174: XLO-92 | F174: 2014-04-18 | G174: 33.71
B175: DBY-128/GN | C175: AMMONIACA ANIDRA UN BOMBOLA DA KG.25 | D175: 6229XAA/14 | E175: OQD-54 | F175: 2014-04-19 | G175: 21.42
B176: KWX-234/AH | C176: KIT REVISIONE CILINDRO M.W. | D176: 2976UZV/14 | E176: DXE-133 | F176: 2014-04-19 | G176: 57.12
B177: BVD-350/EJ | C177: CARTUCCIA FILTRO DA 8 MICRON | D177: 1030BUY/14 | E177: ADA-67 | F177: 2014-04-19 | G177: 8.56
B178: QBI-332/YQ | C178: FORCELLA FEMMINA CON SNODO SGS/M16X1.5 | D178: 1981JRF/14 | E178: UYP-144 | F178: 2014-04-20 | G178: 32.47
B179: BVD-350/EJ | C179: CARTUCCIA FILTRO DA 8 MICRON | D179: 924RKM/14 | E179: XUH-50 | F179: 2014-04-21 | G179: 8.72
B180: RVA-370/MO | C180: ELEMENTO LOGICO LC 40 DB20E7X/ | D180: 565CYP/14 | E180: OIE-28 | F180: 2014-04-21 | G180: 13.95
B181: SYA-341/BM | C181: PIGNONI SEMPLICI 3/4 Z21 | D181: 5071ZIV/14 | E181: YVD-101 | F181: 2014-04-21 | G181: 33.39
B182: IAB-347/TY | C182: REGOLATORE DI FLUSSO Z2FS 10-3-3 X/ V | D182: 5104FMV/14 | E182: ZJF-127 | F182: 2014-04-22 | G182: 91.8
B183: HOU-335/QO | C183: VALVOLA DI RITEGNO PILOTATA Z2FS 16-3X/S2 | D183: 2571JQO/14 | E183: PCJ-140 | F183: 2014-04-22 | G183: 142.5
B184: NWC-213/WR | C184: KIT MAGNETE M.W. | D184: 5882GMI/14 | E184: KKW-29 | F184: 2014-04-22 | G184: 17.75
B185: LBW-277/ME | C185: KIT COMPLETO GUARNIZIONI PER CILINDRO 80 | D185: 1384KJM/14 | E185: OWD-14 | F185: 2014-04-24 | G185: 13
B186: OQJ-149/CP | C186: KIT COMPLETO GUARNIZIONI CILINDRO 125 | D186: 3272AZP/14 | E186: KKL-54 | F186: 2014-04-26 | G186: 30.08
B187: GTN-188/OI | C187: VALVOLA RITEGNO A PIASTRA Z1S 10 P2-3X/V | D187: 501TUR/14 | E187: SMF-138 | F187: 2014-04-28 | G187: 50.85
B188: RVA-370/MO | C188: ELEMENTO LOGICO LC 40 DB20E7X/ | D188: 1764MUQ/14 | E188: HHE-135 | F188: 2014-04-28 | G188: 12.29
B189: EJJ-243/RK | C189: OLFLEX FD CLASSIC 810 7G0,5 | D189: 1256KYM/14 | E189: PRN-57 | F189: 2014-04-29 | G189: 7.8
B190: OYZ-311/GH | C190: COPERCHIO ELEMENTO LOGICO LFA 25 KWA-7X/ | D190: 2275SSI/14 | E190: KQM-134 | F190: 2014-04-29 | G190: 8.8
B191: WTT-322/YR | C191: CURVA 45ｰ F.F. 1 ZINC." | D191: 255DVY/14 | E191: JDT-88 | F191: 2014-05-01 | G191: 4.3
B192: BVD-350/EJ | C192: CARTUCCIA FILTRO DA 8 MICRON | D192: 5318EOI/14 | E192: MCM-115 | F192: 2014-05-03 | G192: 6.8
B193: OCI-162/XK | C193: KIT COMPLETO GUARNIZIONI CILINDRO 80 CMPC | D193: 4620ETG/14 | E193: INE-151 | F193: 2014-05-03 | G193: 22.89
B194: OQJ-149/CP | C194: KIT COMPLETO GUARNIZIONI CILINDRO 125 | D194: 5045ELQ/14 | E194: IKM-62 | F194: 2014-05-04 | G194: 28.16
B195: WTT-322/YR | C195: CURVA 45ｰ F.F. 1 ZINC." | D195: 3602UWO/14 | E195: KVT-94 | F195: 2014-05-04 | G195: 4.75
B196: LBW-277/ME | C196: KIT COMPLETO GUARNIZIONI PER CILINDRO 80 | D196: 6466QPI/14 | E196: ZIC-110 | F196: 2014-05-05 | G196: 14.25
B197: SYA-341/BM | C197: PIGNONI SEMPLICI 3/4 Z21 | D197: 1947JBD/14 | E197: DBP-26 | F197: 2014-05-05 | G197: 26.78
B198: KWO-343/SK | C198: VITI TCCEI 12.9 UNI 5931 BR. M20 X 140 | D198: 5359ZZB/14 | E198: ZAS-69 | F198: 2014-05-05 | G198: 10.45
B199: NWC-213/WR | C199: KIT MAGNETE M.W. | D199: 791HKX/14 | E199: CWC-121 | F199: 2014-05-07 | G199: 17.75
B200: HYM-126/TJ | C200: VALVOLA RIDUTTRICE DI PRESSIONE DA 40 MBAR | D200: 1099RIS/14 | E200: LPP-50 | F200: 2014-05-09 | G200: 147.68
B201: HOU-335/QO | C201: VALVOLA DI RITEGNO PILOTATA Z2FS 16-3X/S2 | D201: 5069GYZ/14 | E201: ZIM-84 | F201: 2014-05-10 | G201: 106.25
B202: HOU-335/QO | C202: VALVOLA DI RITEGNO PILOTATA Z2FS 16-3X/S2 | D202: 5370HZE/14 | E202: DMX-27 | F202: 2014-05-10 | G202: 132.5
B203: RVG-263/JX | C203: SERVOVALVOLA CON ROTORE DINAMICO | D203: 2083OAI/14 | E203: YWH-33 | F203: 2014-05-10 | G203: 126.99
B204: OYZ-311/GH | C204: COPERCHIO ELEMENTO LOGICO LFA 25 KWA-7X/ | D204: 3539FKH/14 | E204: SBN-130 | F204: 2014-05-11 | G204: 8
... 259 more rows

Sheet Marius44
B2: VALORIZZAZIONE GIACENZE DI MAGAZZINO AL 31/12/2014 SULLA SCORTA DELL'ULTIMO PREZZO DI ACQUISTO REGISTRATO
B4: COD. ART. | C4: DESCRIZIONE ARTICOLO | D4: STOCCAGGIO | E4: QUANTITA' | F4: DATA ACQUISTO | G4: ULTIMO PREZZO | H4: ID_ORDINE | I4: IMPORTO TOT.
B5: BVD-350/EJ | C5: CARTUCCIA FILTRO DA 8 MICRON | D5: C-36 | E5: 200 | F5: 2014-12-15 | G5: 8.08 | H5: 4884KRQ/14 | I5: =E5*G5 -> 1616
B6: DBY-128/GN | C6: AMMONIACA ANIDRA IN BOMBOLA DA KG.25 | D6: F-45 | E6: 167 | F6: 2014-12-20 | G6: 22.26 | H6: 778GDG/14 | I6: =E6*G6 -> 3717.42
B7: EJJ-243/RK | C7: OLFLEX FD CLASSIC 810 7G0,5 | D7: F-95 | E7: 207 | F7: 2014-11-18 | G7: 8.4 | H7: 3468LPW/14 | I7: =E7*G7 -> 1738.8
B8: EVW-340/RN | C8: OLFLEX FD CLASSIC 810 CY 4G0,5 | D8: C-72 | E8: 158 | F8: 2014-12-17 | G8: 9.54 | H8: 4578ZUM/14 | I8: 1507.32
B9: FRF-171/ZE | C9: KIT GUARNIZIONI LC25...6X/LC25DB/DR-5X | D9: I-45 | E9: 119 | F9: 2014-12-16 | G9: 30.8 | H9: 2789QUI/14 | I9: 3665.2
B10: GTN-188/OI | C10: VALVOLA RITEGNO A PIASTRA Z1S 10 P2-3X/V | D10: U-62 | E10: 202 | F10: 2014-11-23 | G10: 49.05 | H10: 2115JIJ/14 | I10: 9908.1
B11: HOU-335/QO | C11: VALVOLA DI RITEGNO PILOTATA Z2FS 16-3X/S2 | D11: R-51 | E11: 194 | F11: 2014-12-19 | G11: 126.25 | H11: 4507IXW/14 | I11: 24492.5
B12: HYM-126/TJ | C12: VALVOLA RIDUTTRICE DI PRESSIONE DA 40 MBAR | D12: S-46 | E12: 150 | F12: 2014-12-09 | G12: 156.2 | H12: 144AKV/14 | I12: 23430
B13: IAB-347/TY | C13: REGOLATORE DI FLUSSO Z2FS 10-3-3 X/ V | D13: N-68 | E13: 154 | F13: 2014-11-18 | G13: 110.16 | H13: 1847TYW/14 | I13: 16964.64
B14: IGF-330/RW | C14: RUOTE 65 SERIE RINFORZATA CON FRENO | D14: H-96 | E14: 157 | F14: 2014-12-07 | G14: 61.1 | H14: 3404VZV/14 | I14: 9592.7
B15: KWO-343/SK | C15: VITI TCCEI 12.9 UNI 5931 BR. M20 X 140 | D15: K-39 | E15: 208 | F15: 2014-11-04 | G15: 10.64 | H15: 2219TJQ/14 | I15: 2213.12
B16: KWX-234/AH | C16: KIT REVISIONE CILINDRO M.W. | D16: A-89 | E16: 213 | F16: 2014-11-22 | G16: 45.39 | H16: 4274GFQ/14 | I16: 9668.07
B17: LBW-277/ME | C17: KIT COMPLETO GUARNIZIONI PER CILINDRO 80 | D17: L-56 | E17: 209 | F17: 2014-12-17 | G17: 11 | H17: 4014TXL/14 | I17: 2299
B18: LCJ-304/BX | C18: KIT REVISIONE CILINDRO M.W. | D18: E-53 | E18: 160 | F18: 2014-11-28 | G18: 15.59 | H18: 292UGU/14 | I18: 2494.4
B19: NWC-213/WR | C19: KIT MAGNETE M.W. | D19: M-56 | E19: 118 | F19: 2014-11-25 | G19: 17.55 | H19: 5815OUM/14 | I19: 2070.9
B20: OCI-162/XK | C20: KIT COMPLETO GUARNIZIONI CILINDRO 80 CMPC | D20: J-51 | E20: 137 | F20: 2014-10-25 | G20: 24.42 | H20: 4457MUF/14 | I20: 3345.54
B21: OQJ-149/CP | C21: KIT COMPLETO GUARNIZIONI CILINDRO 125 | D21: G-68 | E21: 178 | F21: 2014-11-30 | G21: 29.44 | H21: 5863LMV/14 | I21: 5240.32
B22: OYZ-311/GH | C22: COPERCHIO ELEMENTO LOGICO LFA 25 KWA-7X/ | D22: U-91 | E22: 189 | F22: 2014-11-25 | G22: 8.08 | H22: 696TEN/14 | I22: 1527.12
B23: QBI-332/YQ | C23: FORCELLA FEMMINA CON SNODO SGS/M16X1.5 | D23: G-56 | E23: 230 | F23: 2014-11-21 | G23: 33.78 | H23: 856UJJ/14 | I23: 7769.4
B24: RVA-370/MO | C24: ELEMENTO LOGICO LC 40 DB20E7X/ | D24: O-82 | E24: 143 | F24: 2014-12-10 | G24: 11.78 | H24: 4325TQV/14 | I24: 1684.54
B25: RVG-263/JX | C25: SERVOVALVOLA CON ROTORE DINAMICO | D25: B-93 | E25: 194 | F25: 2014-12-20 | G25: 125.75 | H25: 1421TYJ/14 | I25: 24395.5
B26: SGY-295/PG | C26: PIGNONE SEMPL. 3/4 Z9" | D26: Y-76 | E26: 206 | F26: 2014-12-18 | G26: 27.08 | H26: 1602TDS/14 | I26: 5578.48
B27: SYA-341/BM | C27: PIGNONI SEMPLICI 3/4 Z21 | D27: W-83 | E27: 155 | F27: 2014-12-07 | G27: 27.41 | H27: 6241FLY/14 | I27: 4248.55
B28: WTT-322/YR | C28: CURVA 45ｰ F.F. 1 ZINC." | D28: C-37 | E28: 232 | F28: 2014-12-11 | G28: 5.45 | H28: 4768WGN/14 | I28: 1264.4
H30: TOTALE GIACENZE : | I30: =SUM(I5:I28) -> 170432.02
B32: TABELLA ACQUISTI EFFETTUATI NEL 2014
B33: COD. ART. | C33: DESCRIZIONE ARTICOLO | D33: ID_ORDINE | E33: COD.FORN. | F33: DATA ACQUISTO | G33: PREZZO UNITARIO | H33: QUANTITA'
B34: HYM-126/TJ | C34: VALVOLA RIDUTTRICE DI PRESSIONE DA 40 MBAR | D34: 14FYF/14 | E34: ISR-13 | F34: 2014-01-07 | G34: 139.16 | H34: 1
B35: WTT-322/YR | C35: CURVA 45ｰ F.F. 1 ZINC." | D35: 2108TZW/14 | E35: QVG-137 | F35: 2014-01-07 | G35: 5.7 | H35: 1
B36: WTT-322/YR | C36: CURVA 45ｰ F.F. 1 ZINC." | D36: 570YMT/14 | E36: COB-84 | F36: 2014-01-08 | G36: 5.15 | H36: 1
B37: IAB-347/TY | C37: REGOLATORE DI FLUSSO Z2FS 10-3-3 X/ V | D37: 6231GQD/14 | E37: EPH-38 | F37: 2014-01-09 | G37: 115.56 | H37: 1
B38: IGF-330/RW | C38: RUOTE 65 SERIE RINFORZATA CON FRENO | D38: 1798OPR/14 | E38: UKU-106 | F38: 2014-01-09 | G38: 57.2 | H38: 1
B39: EVW-340/RN | C39: OLFLEX FD CLASSIC 810 CY 4G0,5 | D39: 6223MRI/14 | E39: SFS-48 | F39: 2014-01-10 | G39: 9.99 | H39: 1
B40: HYM-126/TJ | C40: VALVOLA RIDUTTRICE DI PRESSIONE DA 40 MBAR | D40: 2906HMY/14 | E40: CBI-156 | F40: 2014-01-10 | G40: 151.94 | H40: 1
B41: LBW-277/ME | C41: KIT COMPLETO GUARNIZIONI PER CILINDRO 80 | D41: 426ANG/14 | E41: MOS-20 | F41: 2014-01-10 | G41: 13.38 | H41: 1
B42: RVA-370/MO | C42: ELEMENTO LOGICO LC 40 DB20E7X/ | D42: 3835FLC/14 | E42: QBL-116 | F42: 2014-01-10 | G42: 13.06 | H42: 1
B43: LBW-277/ME | C43: KIT COMPLETO GUARNIZIONI PER CILINDRO 80 | D43: 5893HLS/14 | E43: ZDS-34 | F43: 2014-01-12 | G43: 13.63 | H43: 1
B44: LCJ-304/BX | C44: KIT REVISIONE CILINDRO M.W. | D44: 5302XWG/14 | E44: HUT-145 | F44: 2014-01-14 | G44: 14.35 | H44: 1
B45: EVW-340/RN | C45: OLFLEX FD CLASSIC 810 CY 4G0,5 | D45: 1711IKG/14 | E45: MIT-152 | F45: 2014-01-15 | G45: 9.09 | H45: 1
B46: GTN-188/OI | C46: VALVOLA RITEGNO A PIASTRA Z1S 10 P2-3X/V | D46: 2064OAC/14 | E46: UZC-47 | F46: 2014-01-15 | G46: 44.1 | H46: 1
B47: KWX-234/AH | C47: KIT REVISIONE CILINDRO M.W. | D47: 4975PFC/14 | E47: KFF-148 | F47: 2014-01-15 | G47: 46.41 | H47: 1
B48: BVD-350/EJ | C48: CARTUCCIA FILTRO DA 8 MICRON | D48: 2421WLN/14 | E48: XUJ-96 | F48: 2014-01-16 | G48: 8.16 | H48: 1
B49: KWX-234/AH | C49: KIT REVISIONE CILINDRO M.W. | D49: 5825PKH/14 | E49: HUF-22 | F49: 2014-01-17 | G49: 44.37 | H49: 1
B50: IAB-347/TY | C50: REGOLATORE DI FLUSSO Z2FS 10-3-3 X/ V | D50: 3968TBJ/14 | E50: AMX-50 | F50: 2014-01-22 | G50: 98.28 | H50: 1
B51: SGY-295/PG | C51: PIGNONE SEMPL. 3/4 Z9" | D51: 4777BGM/14 | E51: KFT-104 | F51: 2014-01-22 | G51: 30.5 | H51: 1
B52: EJJ-243/RK | C52: OLFLEX FD CLASSIC 810 7G0,5 | D52: 921EWK/14 | E52: WXR-135 | F52: 2014-01-23 | G52: 7.05 | H52: 1
B53: EJJ-243/RK | C53: OLFLEX FD CLASSIC 810 7G0,5 | D53: 2565POU/14 | E53: ZSH-26 | F53: 2014-01-23 | G53: 7.35 | H53: 1
B54: EJJ-243/RK | C54: OLFLEX FD CLASSIC 810 7G0,5 | D54: 2180QRN/14 | E54: ZNM-56 | F54: 2014-01-24 | G54: 6.45 | H54: 1
B55: KWO-343/SK | C55: VITI TCCEI 12.9 UNI 5931 BR. M20 X 140 | D55: 2166TUS/14 | E55: VCQ-85 | F55: 2014-01-25 | G55: 8.08 | H55: 1
B56: DBY-128/GN | C56: AMMONIACA ANIDRA UN BOMBOLA DA KG.25 | D56: 5932SEV/14 | E56: HXC-107 | F56: 2014-01-26 | G56: 22.05 | H56: 1
B57: HOU-335/QO | C57: VALVOLA DI RITEGNO PILOTATA Z2FS 16-3X/S2 | D57: 2583ROH/14 | E57: WPG-45 | F57: 2014-01-26 | G57: 106.25 | H57: 1
B58: HYM-126/TJ | C58: VALVOLA RIDUTTRICE DI PRESSIONE DA 40 MBAR | D58: 4056WIP/14 | E58: GUT-17 | F58: 2014-01-26 | G58: 133.48 | H58: 1
B59: HYM-126/TJ | C59: VALVOLA RIDUTTRICE DI PRESSIONE DA 40 MBAR | D59: 2401JME/14 | E59: WHR-132 | F59: 2014-01-26 | G59: 150.52 | H59: 1
B60: OQJ-149/CP | C60: KIT COMPLETO GUARNIZIONI CILINDRO 125 | D60: 957IGN/14 | E60: HPU-136 | F60: 2014-01-28 | G60: 34.56 | H60: 1
B61: DBY-128/GN | C61: AMMONIACA ANIDRA UN BOMBOLA DA KG.25 | D61: 1672BQS/14 | E61: TAW-142 | F61: 2014-01-29 | G61: 18.27 | H61: 1
B62: SYA-341/BM | C62: PIGNONI SEMPLICI 3/4 Z21 | D62: 1237IOK/14 | E62: WHG-100 | F62: 2014-01-29 | G62: 30.87 | H62: 1
B63: GTN-188/OI | C63: VALVOLA RITEGNO A PIASTRA Z1S 10 P2-3X/V | D63: 2538VNU/14 | E63: TUP-30 | F63: 2014-01-30 | G63: 47.25 | H63: 1
B64: HYM-126/TJ | C64: VALVOLA RIDUTTRICE DI PRESSIONE DA 40 MBAR | D64: 956VGF/14 | E64: CNO-78 | F64: 2014-01-30 | G64: 129.22 | H64: 1
B65: SYA-341/BM | C65: PIGNONI SEMPLICI 3/4 Z21 | D65: 6483PMU/14 | E65: NNU-74 | F65: 2014-01-31 | G65: 26.78 | H65: 1
B66: GTN-188/OI | C66: VALVOLA RITEGNO A PIASTRA Z1S 10 P2-3X/V | D66: 4487VVQ/14 | E66: PDI-71 | F66: 2014-02-01 | G66: 50.85 | H66: 1
B67: WTT-322/YR | C67: CURVA 45ｰ F.F. 1 ZINC." | D67: 337HGO/14 | E67: BNS-97 | F67: 2014-02-02 | G67: 4.35 | H67: 1
B68: WTT-322/YR | C68: CURVA 45ｰ F.F. 1 ZINC." | D68: 715YFS/14 | E68: OJB-69 | F68: 2014-02-02 | G68: 4.6 | H68: 1
B69: FRF-171/ZE | C69: KIT GUARNIZIONI LC25...6X/LC25DB/DR-5X | D69: 3737EOM/14 | E69: BYK-95 | F69: 2014-02-03 | G69: 30.8 | H69: 1
B70: LCJ-304/BX | C70: KIT REVISIONE CILINDRO M.W. | D70: 3259GEI/14 | E70: YZM-138 | F70: 2014-02-04 | G70: 13.52 | H70: 1
B71: NWC-213/WR | C71: KIT MAGNETE M.W. | D71: 4460VJU/14 | E71: NJP-85 | F71: 2014-02-04 | G71: 17.55 | H71: 1
B72: OQJ-149/CP | C72: KIT COMPLETO GUARNIZIONI CILINDRO 125 | D72: 1597GUT/14 | E72: AON-152 | F72: 2014-02-04 | G72: 34.24 | H72: 1
B73: QBI-332/YQ | C73: FORCELLA FEMMINA CON SNODO SGS/M16X1.5 | D73: 3753CRB/14 | E73: PSY-128 | F73: 2014-02-04 | G73: 29.19 | H73: 1
B74: EVW-340/RN | C74: OLFLEX FD CLASSIC 810 CY 4G0,5 | D74: 1618ITB/14 | E74: PQO-62 | F74: 2014-02-06 | G74: 9.72 | H74: 1
B75: OCI-162/XK | C75: KIT COMPLETO GUARNIZIONI CILINDRO 80 CMPC | D75: 5703MRV/14 | E75: ALC-42 | F75: 2014-02-07 | G75: 22.02 | H75: 1
B76: OYZ-311/GH | C76: COPERCHIO ELEMENTO LOGICO LFA 25 KWA-7X/ | D76: 3369HIU/14 | E76: ZSH-70 | F76: 2014-02-07 | G76: 7.12 | H76: 1
B77: RVG-263/JX | C77: SERVOVALVOLA CON ROTORE DINAMICO | D77: 5864CUX/14 | E77: WPL-64 | F77: 2014-02-07 | G77: 133.22 | H77: 1
B78: OQJ-149/CP | C78: KIT COMPLETO GUARNIZIONI CILINDRO 125 | D78: 2391WTQ/14 | E78: LGW-128 | F78: 2014-02-09 | G78: 35.2 | H78: 1
B79: FRF-171/ZE | C79: KIT GUARNIZIONI LC25...6X/LC25DB/DR-5X | D79: 5773QVK/14 | E79: HGI-66 | F79: 2014-02-10 | G79: 35 | H79: 1
B80: HOU-335/QO | C80: VALVOLA DI RITEGNO PILOTATA Z2FS 16-3X/S2 | D80: 3104WEA/14 | E80: FGK-95 | F80: 2014-02-10 | G80: 133.75 | H80: 1
B81: EJJ-243/RK | C81: OLFLEX FD CLASSIC 810 7G0,5 | D81: 1866KKI/14 | E81: DAT-28 | F81: 2014-02-11 | G81: 7.8 | H81: 1
B82: EVW-340/RN | C82: OLFLEX FD CLASSIC 810 CY 4G0,5 | D82: 4997ZFK/14 | E82: LWN-118 | F82: 2014-02-11 | G82: 7.83 | H82: 1
B83: FRF-171/ZE | C83: KIT GUARNIZIONI LC25...6X/LC25DB/DR-5X | D83: 831XKM/14 | E83: GXJ-116 | F83: 2014-02-12 | G83: 31.85 | H83: 1
B84: RVG-263/JX | C84: SERVOVALVOLA CON ROTORE DINAMICO | D84: 2062QWG/14 | E84: HQE-120 | F84: 2014-02-13 | G84: 115.79 | H84: 1
B85: OCI-162/XK | C85: KIT COMPLETO GUARNIZIONI CILINDRO 80 CMPC | D85: 3454XQS/14 | E85: JJT-34 | F85: 2014-02-15 | G85: 18.75 | H85: 1
B86: GTN-188/OI | C86: VALVOLA RITEGNO A PIASTRA Z1S 10 P2-3X/V | D86: 2314LLM/14 | E86: WYN-23 | F86: 2014-02-17 | G86: 42.3 | H86: 1
B87: RVA-370/MO | C87: ELEMENTO LOGICO LC 40 DB20E7X/ | D87: 1128QDP/14 | E87: HTX-27 | F87: 2014-02-17 | G87: 13.06 | H87: 1
B88: IAB-347/TY | C88: REGOLATORE DI FLUSSO Z2FS 10-3-3 X/ V | D88: 2812HEY/14 | E88: VEI-57 | F88: 2014-02-18 | G88: 116.64 | H88: 1
B89: OQJ-149/CP | C89: KIT COMPLETO GUARNIZIONI CILINDRO 125 | D89: 358UAC/14 | E89: KWO-42 | F89: 2014-02-18 | G89: 27.2 | H89: 1
B90: OYZ-311/GH | C90: COPERCHIO ELEMENTO LOGICO LFA 25 KWA-7X/ | D90: 2250YDH/14 | E90: NXL-121 | F90: 2014-02-19 | G90: 8.4 | H90: 1
B91: HYM-126/TJ | C91: VALVOLA RIDUTTRICE DI PRESSIONE DA 40 MBAR | D91: 5150MBK/14 | E91: EIY-35 | F91: 2014-02-20 | G91: 151.94 | H91: 1
B92: KWO-343/SK | C92: VITI TCCEI 12.9 UNI 5931 BR. M20 X 140 | D92: 2348YEF/14 | E92: BSJ-70 | F92: 2014-02-20 | G92: 8.36 | H92: 1
B93: DBY-128/GN | C93: AMMONIACA ANIDRA UN BOMBOLA DA KG.25 | D93: 6303WNG/14 | E93: NZT-33 | F93: 2014-02-21 | G93: 21.42 | H93: 1
B94: OCI-162/XK | C94: KIT COMPLETO GUARNIZIONI CILINDRO 80 CMPC | D94: 5726WTM/14 | E94: PXW-71 | F94: 2014-02-21 | G94: 24.2 | H94: 1
B95: DBY-128/GN | C95: AMMONIACA ANIDRA UN BOMBOLA DA KG.25 | D95: 5550DED/14 | E95: OZV-16 | F95: 2014-02-25 | G95: 18.9 | H95: 1
B96: KWO-343/SK | C96: VITI TCCEI 12.9 UNI 5931 BR. M20 X 140 | D96: 2583NJU/14 | E96: AAY-13 | F96: 2014-02-26 | G96: 9.12 | H96: 1
B97: IAB-347/TY | C97: REGOLATORE DI FLUSSO Z2FS 10-3-3 X/ V | D97: 163WUB/14 | E97: ZPS-144 | F97: 2014-02-27 | G97: 105.84 | H97: 1
B98: LCJ-304/BX | C98: KIT REVISIONE CILINDRO M.W. | D98: 290DWO/14 | E98: VMY-134 | F98: 2014-02-27 | G98: 12.97 | H98: 1
B99: OYZ-311/GH | C99: COPERCHIO ELEMENTO LOGICO LFA 25 KWA-7X/ | D99: 3725UKL/14 | E99: DMM-146 | F99: 2014-02-27 | G99: 8.8 | H99: 1
B100: RVA-370/MO | C100: ELEMENTO LOGICO LC 40 DB20E7X/ | D100: 4709VKD/14 | E100: AKI-75 | F100: 2014-02-27 | G100: 11.39 | H100: 1
B101: RVA-370/MO | C101: ELEMENTO LOGICO LC 40 DB20E7X/ | D101: 3995BPS/14 | E101: XBI-85 | F101: 2014-02-27 | G101: 12.03 | H101: 1
B102: EVW-340/RN | C102: OLFLEX FD CLASSIC 810 CY 4G0,5 | D102: 3532VJO/14 | E102: SBF-27 | F102: 2014-02-28 | G102: 8.28 | H102: 1
B103: FRF-171/ZE | C103: KIT GUARNIZIONI LC25...6X/LC25DB/DR-5X | D103: 2231MDV/14 | E103: XYL-55 | F103: 2014-02-28 | G103: 32.55 | H103: 1
B104: IGF-330/RW | C104: RUOTE 65 SERIE RINFORZATA CON FRENO | D104: 3046SEC/14 | E104: NKK-35 | F104: 2014-02-28 | G104: 59.15 | H104: 1
B105: FRF-171/ZE | C105: KIT GUARNIZIONI LC25...6X/LC25DB/DR-5X | D105: 5296VZJ/14 | E105: JFR-74 | F105: 2014-03-01 | G105: 31.15 | H105: 1
B106: IAB-347/TY | C106: REGOLATORE DI FLUSSO Z2FS 10-3-3 X/ V | D106: 4937PTE/14 | E106: DUZ-113 | F106: 2014-03-01 | G106: 112.32 | H106: 1
B107: SYA-341/BM | C107: PIGNONI SEMPLICI 3/4 Z21 | D107: 2960INK/14 | E107: BKH-134 | F107: 2014-03-01 | G107: 34.34 | H107: 1
B108: EJJ-243/RK | C108: OLFLEX FD CLASSIC 810 7G0,5 | D108: 4742HBW/14 | E108: ICU-113 | F108: 2014-03-02 | G108: 8.03 | H108: 1
B109: LBW-277/ME | C109: KIT COMPLETO GUARNIZIONI PER CILINDRO 80 | D109: 2942HJE/14 | E109: KUN-151 | F109: 2014-03-02 | G109: 14 | H109: 1
B110: BVD-350/EJ | C110: CARTUCCIA FILTRO DA 8 MICRON | D110: 3587XIM/14 | E110: QAA-14 | F110: 2014-03-05 | G110: 8.24 | H110: 1
B111: LBW-277/ME | C111: KIT COMPLETO GUARNIZIONI PER CILINDRO 80 | D111: 5700OAH/14 | E111: WWL-93 | F111: 2014-03-05 | G111: 14.38 | H111: 1
B112: LCJ-304/BX | C112: KIT REVISIONE CILINDRO M.W. | D112: 869UFB/14 | E112: UDF-49 | F112: 2014-03-05 | G112: 15.73 | H112: 1
B113: OYZ-311/GH | C113: COPERCHIO ELEMENTO LOGICO LFA 25 KWA-7X/ | D113: 3078NXZ/14 | E113: RRE-140 | F113: 2014-03-05 | G113: 6.96 | H113: 1
B114: HOU-335/QO | C114: VALVOLA DI RITEGNO PILOTATA Z2FS 16-3X/S2 | D114: 4510CYA/14 | E114: VYA-133 | F114: 2014-03-06 | G114: 118.75 | H114: 1
B115: OYZ-311/GH | C115: COPERCHIO ELEMENTO LOGICO LFA 25 KWA-7X/ | D115: 5457ZSJ/14 | E115: ZEP-50 | F115: 2014-03-07 | G115: 7.2 | H115: 1
B116: OQJ-149/CP | C116: KIT COMPLETO GUARNIZIONI CILINDRO 125 | D116: 4502ZMZ/14 | E116: OVP-105 | F116: 2014-03-08 | G116: 30.72 | H116: 1
B117: LCJ-304/BX | C117: KIT REVISIONE CILINDRO M.W. | D117: 821MAP/14 | E117: VHD-46 | F117: 2014-03-09 | G117: 13.52 | H117: 1
B118: OCI-162/XK | C118: KIT COMPLETO GUARNIZIONI CILINDRO 80 CMPC | D118: 1926PDA/14 | E118: PLI-114 | F118: 2014-03-09 | G118: 24.2 | H118: 1
B119: OQJ-149/CP | C119: KIT COMPLETO GUARNIZIONI CILINDRO 125 | D119: 332YXC/14 | E119: RGH-140 | F119: 2014-03-09 | G119: 29.76 | H119: 1
B120: BVD-350/EJ | C120: CARTUCCIA FILTRO DA 8 MICRON | D120: 412GXB/14 | E120: FNG-82 | F120: 2014-03-12 | G120: 7.92 | H120: 1
B121: FRF-171/ZE | C121: KIT GUARNIZIONI LC25...6X/LC25DB/DR-5X | D121: 5540LXZ/14 | E121: DDI-21 | F121: 2014-03-12 | G121: 35.35 | H121: 1
B122: SYA-341/BM | C122: PIGNONI SEMPLICI 3/4 Z21 | D122: 1637FKW/14 | E122: WPA-97 | F122: 2014-03-13 | G122: 31.19 | H122: 1
B123: OYZ-311/GH | C123: COPERCHIO ELEMENTO LOGICO LFA 25 KWA-7X/ | D123: 542FWP/14 | E123: KDA-161 | F123: 2014-03-14 | G123: 7.36 | H123: 1
B124: RVA-370/MO | C124: ELEMENTO LOGICO LC 40 DB20E7X/ | D124: 4613JXJ/14 | E124: ARN-90 | F124: 2014-03-15 | G124: 14.46 | H124: 1
B125: QBI-332/YQ | C125: FORCELLA FEMMINA CON SNODO SGS/M16X1.5 | D125: 2054BYI/14 | E125: YMS-138 | F125: 2014-03-16 | G125: 35.75 | H125: 1
B126: GTN-188/OI | C126: VALVOLA RITEGNO A PIASTRA Z1S 10 P2-3X/V | D126: 5064CBU/14 | E126: TVJ-24 | F126: 2014-03-17 | G126: 40.05 | H126: 1
B127: HYM-126/TJ | C127: VALVOLA RIDUTTRICE DI PRESSIONE DA 40 MBAR | D127: 873JOK/14 | E127: ZMP-94 | F127: 2014-03-17 | G127: 151.94 | H127: 1
B128: GTN-188/OI | C128: VALVOLA RITEGNO A PIASTRA Z1S 10 P2-3X/V | D128: 6097DRM/14 | E128: VCW-49 | F128: 2014-03-19 | G128: 51.75 | H128: 1
B129: OYZ-311/GH | C129: COPERCHIO ELEMENTO LOGICO LFA 25 KWA-7X/ | D129: 863GLF/14 | E129: FHT-25 | F129: 2014-03-20 | G129: 7.2 | H129: 1
B130: WTT-322/YR | C130: CURVA 45ｰ F.F. 1 ZINC." | D130: 1312WAW/14 | E130: ZGZ-28 | F130: 2014-03-20 | G130: 5.5 | H130: 1
B131: EVW-340/RN | C131: OLFLEX FD CLASSIC 810 CY 4G0,5 | D131: 3169SKI/14 | E131: UMK-90 | F131: 2014-03-21 | G131: 8.82 | H131: 1
B132: OYZ-311/GH | C132: COPERCHIO ELEMENTO LOGICO LFA 25 KWA-7X/ | D132: 795YOE/14 | E132: ERB-147 | F132: 2014-03-21 | G132: 7.76 | H132: 1
B133: KWX-234/AH | C133: KIT REVISIONE CILINDRO M.W. | D133: 4881CKI/14 | E133: WFK-115 | F133: 2014-03-22 | G133: 51.51 | H133: 1
B134: KWO-343/SK | C134: VITI TCCEI 12.9 UNI 5931 BR. M20 X 140 | D134: 546FOF/14 | E134: KLK-98 | F134: 2014-03-23 | G134: 9.31 | H134: 1
B135: RVG-263/JX | C135: SERVOVALVOLA CON ROTORE DINAMICO | D135: 1106AUZ/14 | E135: NTE-72 | F135: 2014-03-23 | G135: 139.44 | H135: 1
B136: LCJ-304/BX | C136: KIT REVISIONE CILINDRO M.W. | D136: 721WBX/14 | E136: YST-110 | F136: 2014-03-24 | G136: 14.63 | H136: 1
B137: BVD-350/EJ | C137: CARTUCCIA FILTRO DA 8 MICRON | D137: 4000CVK/14 | E137: ORC-146 | F137: 2014-03-25 | G137: 6.8 | H137: 1
B138: IAB-347/TY | C138: REGOLATORE DI FLUSSO Z2FS 10-3-3 X/ V | D138: 216GGX/14 | E138: PCZ-145 | F138: 2014-03-26 | G138: 116.64 | H138: 1
B139: RVG-263/JX | C139: SERVOVALVOLA CON ROTORE DINAMICO | D139: 2417AXX/14 | E139: IYN-127 | F139: 2014-03-26 | G139: 118.28 | H139: 1
B140: SGY-295/PG | C140: PIGNONE SEMPL. 3/4 Z9" | D140: 463AYT/14 | E140: EOW-70 | F140: 2014-03-26 | G140: 29.64 | H140: 1
B141: WTT-322/YR | C141: CURVA 45ｰ F.F. 1 ZINC." | D141: 2383SXB/14 | E141: LJI-32 | F141: 2014-03-26 | G141: 5.1 | H141: 1
B142: KWO-343/SK | C142: VITI TCCEI 12.9 UNI 5931 BR. M20 X 140 | D142: 3130LGL/14 | E142: OHE-57 | F142: 2014-03-27 | G142: 9.98 | H142: 1
B143: BVD-350/EJ | C143: CARTUCCIA FILTRO DA 8 MICRON | D143: 2227OJC/14 | E143: ENV-24 | F143: 2014-03-28 | G143: 8.56 | H143: 1
B144: LBW-277/ME | C144: KIT COMPLETO GUARNIZIONI PER CILINDRO 80 | D144: 410EAY/14 | E144: ATI-156 | F144: 2014-03-28 | G144: 10.75 | H144: 1
B145: SYA-341/BM | C145: PIGNONI SEMPLICI 3/4 Z21 | D145: 6028ILT/14 | E145: FOC-99 | F145: 2014-03-28 | G145: 27.09 | H145: 1
B146: BVD-350/EJ | C146: CARTUCCIA FILTRO DA 8 MICRON | D146: 3043VZH/14 | E146: NNO-141 | F146: 2014-03-29 | G146: 7.68 | H146: 1
B147: LBW-277/ME | C147: KIT COMPLETO GUARNIZIONI PER CILINDRO 80 | D147: 4423SVH/14 | E147: BMM-30 | F147: 2014-03-29 | G147: 14 | H147: 1
B148: IGF-330/RW | C148: RUOTE 65 SERIE RINFORZATA CON FRENO | D148: 4720ODJ/14 | E148: TNT-163 | F148: 2014-03-30 | G148: 72.8 | H148: 1
B149: HYM-126/TJ | C149: VALVOLA RIDUTTRICE DI PRESSIONE DA 40 MBAR | D149: 2501BKD/14 | E149: IRD-108 | F149: 2014-03-31 | G149: 142 | H149: 1
B150: IGF-330/RW | C150: RUOTE 65 SERIE RINFORZATA CON FRENO | D150: 5257UNY/14 | E150: MVI-97 | F150: 2014-03-31 | G150: 56.55 | H150: 1
B151: HYM-126/TJ | C151: VALVOLA RIDUTTRICE DI PRESSIONE DA 40 MBAR | D151: 4008DHJ/14 | E151: CUR-12 | F151: 2014-04-01 | G151: 161.88 | H151: 1
B152: RVG-263/JX | C152: SERVOVALVOLA CON ROTORE DINAMICO | D152: 1056GBK/14 | E152: MTG-100 | F152: 2014-04-02 | G152: 107.07 | H152: 1
B153: HOU-335/QO | C153: VALVOLA DI RITEGNO PILOTATA Z2FS 16-3X/S2 | D153: 3029TOB/14 | E153: DOA-55 | F153: 2014-04-05 | G153: 143.75 | H153: 1
B154: HYM-126/TJ | C154: VALVOLA RIDUTTRICE DI PRESSIONE DA 40 MBAR | D154: 1328XWP/14 | E154: RMS-72 | F154: 2014-04-05 | G154: 132.06 | H154: 1
B155: LCJ-304/BX | C155: KIT REVISIONE CILINDRO M.W. | D155: 5084FMK/14 | E155: COA-105 | F155: 2014-04-05 | G155: 14.08 | H155: 1
B156: QBI-332/YQ | C156: FORCELLA FEMMINA CON SNODO SGS/M16X1.5 | D156: 5632RFV/14 | E156: MDQ-124 | F156: 2014-04-05 | G156: 33.13 | H156: 1
B157: WTT-322/YR | C157: CURVA 45ｰ F.F. 1 ZINC." | D157: 3561KNF/14 | E157: HYR-83 | F157: 2014-04-07 | G157: 5.6 | H157: 1
B158: IAB-347/TY | C158: REGOLATORE DI FLUSSO Z2FS 10-3-3 X/ V | D158: 1245VXE/14 | E158: IHE-155 | F158: 2014-04-09 | G158: 116.64 | H158: 1
B159: FRF-171/ZE | C159: KIT GUARNIZIONI LC25...6X/LC25DB/DR-5X | D159: 6407XIS/14 | E159: POF-99 | F159: 2014-04-10 | G159: 30.8 | H159: 1
B160: HYM-126/TJ | C160: VALVOLA RIDUTTRICE DI PRESSIONE DA 40 MBAR | D160: 5840ZFB/14 | E160: FYB-123 | F160: 2014-04-11 | G160: 123.54 | H160: 1
B161: IAB-347/TY | C161: REGOLATORE DI FLUSSO Z2FS 10-3-3 X/ V | D161: 4263LVE/14 | E161: IYH-18 | F161: 2014-04-12 | G161: 97.2 | H161: 1
B162: GTN-188/OI | C162: VALVOLA RITEGNO A PIASTRA Z1S 10 P2-3X/V | D162: 2363ZWI/14 | E162: TGI-80 | F162: 2014-04-13 | G162: 50.85 | H162: 1
B163: KWO-343/SK | C163: VITI TCCEI 12.9 UNI 5931 BR. M20 X 140 | D163: 954CHN/14 | E163: DIV-115 | F163: 2014-04-13 | G163: 10.45 | H163: 1
B164: GTN-188/OI | C164: VALVOLA RITEGNO A PIASTRA Z1S 10 P2-3X/V | D164: 181AYN/14 | E164: MNF-118 | F164: 2014-04-14 | G164: 38.7 | H164: 1
B165: NWC-213/WR | C165: KIT MAGNETE M.W. | D165: 3434LMM/14 | E165: CCN-63 | F165: 2014-04-14 | G165: 16.58 | H165: 1
B166: RVA-370/MO | C166: ELEMENTO LOGICO LC 40 DB20E7X/ | D166: 1383ELO/14 | E166: ZLM-151 | F166: 2014-04-15 | G166: 12.67 | H166: 1
B167: LBW-277/ME | C167: KIT COMPLETO GUARNIZIONI PER CILINDRO 80 | D167: 786TMG/14 | E167: FGB-33 | F167: 2014-04-16 | G167: 10.63 | H167: 1
B168: BVD-350/EJ | C168: CARTUCCIA FILTRO DA 8 MICRON | D168: 1993JIW/14 | E168: LFT-31 | F168: 2014-04-17 | G168: 8.88 | H168: 1
B169: EVW-340/RN | C169: OLFLEX FD CLASSIC 810 CY 4G0,5 | D169: 5626SEU/14 | E169: NKW-120 | F169: 2014-04-17 | G169: 10.26 | H169: 1
B170: GTN-188/OI | C170: VALVOLA RITEGNO A PIASTRA Z1S 10 P2-3X/V | D170: 4098FAP/14 | E170: YUT-111 | F170: 2014-04-17 | G170: 40.5 | H170: 1
B171: LBW-277/ME | C171: KIT COMPLETO GUARNIZIONI PER CILINDRO 80 | D171: 3924CEW/14 | E171: LYQ-18 | F171: 2014-04-17 | G171: 11.75 | H171: 1
B172: GTN-188/OI | C172: VALVOLA RITEGNO A PIASTRA Z1S 10 P2-3X/V | D172: 491WFP/14 | E172: CFE-139 | F172: 2014-04-18 | G172: 47.25 | H172: 1
B173: OQJ-149/CP | C173: KIT COMPLETO GUARNIZIONI CILINDRO 125 | D173: 5335VKY/14 | E173: FPE-50 | F173: 2014-04-18 | G173: 29.44 | H173: 1
B174: SYA-341/BM | C174: PIGNONI SEMPLICI 3/4 Z21 | D174: 2054PTD/14 | E174: XLO-92 | F174: 2014-04-18 | G174: 33.71 | H174: 1
B175: BVD-350/EJ | C175: CARTUCCIA FILTRO DA 8 MICRON | D175: 1030BUY/14 | E175: ADA-67 | F175: 2014-04-19 | G175: 8.56 | H175: 1
B176: DBY-128/GN | C176: AMMONIACA ANIDRA UN BOMBOLA DA KG.25 | D176: 6229XAA/14 | E176: OQD-54 | F176: 2014-04-19 | G176: 21.42 | H176: 1
B177: KWX-234/AH | C177: KIT REVISIONE CILINDRO M.W. | D177: 2976UZV/14 | E177: DXE-133 | F177: 2014-04-19 | G177: 57.12 | H177: 1
B178: QBI-332/YQ | C178: FORCELLA FEMMINA CON SNODO SGS/M16X1.5 | D178: 1981JRF/14 | E178: UYP-144 | F178: 2014-04-20 | G178: 32.47 | H178: 1
B179: BVD-350/EJ | C179: CARTUCCIA FILTRO DA 8 MICRON | D179: 924RKM/14 | E179: XUH-50 | F179: 2014-04-21 | G179: 8.72 | H179: 1
B180: RVA-370/MO | C180: ELEMENTO LOGICO LC 40 DB20E7X/ | D180: 565CYP/14 | E180: OIE-28 | F180: 2014-04-21 | G180: 13.95 | H180: 1
B181: SYA-341/BM | C181: PIGNONI SEMPLICI 3/4 Z21 | D181: 5071ZIV/14 | E181: YVD-101 | F181: 2014-04-21 | G181: 33.39 | H181: 1
B182: HOU-335/QO | C182: VALVOLA DI RITEGNO PILOTATA Z2FS 16-3X/S2 | D182: 2571JQO/14 | E182: PCJ-140 | F182: 2014-04-22 | G182: 142.5 | H182: 1
B183: IAB-347/TY | C183: REGOLATORE DI FLUSSO Z2FS 10-3-3 X/ V | D183: 5104FMV/14 | E183: ZJF-127 | F183: 2014-04-22 | G183: 91.8 | H183: 1
B184: NWC-213/WR | C184: KIT MAGNETE M.W. | D184: 5882GMI/14 | E184: KKW-29 | F184: 2014-04-22 | G184: 17.75 | H184: 1
B185: LBW-277/ME | C185: KIT COMPLETO GUARNIZIONI PER CILINDRO 80 | D185: 1384KJM/14 | E185: OWD-14 | F185: 2014-04-24 | G185: 13 | H185: 1
B186: OQJ-149/CP | C186: KIT COMPLETO GUARNIZIONI CILINDRO 125 | D186: 3272AZP/14 | E186: KKL-54 | F186: 2014-04-26 | G186: 30.08 | H186: 1
B187: GTN-188/OI | C187: VALVOLA RITEGNO A PIASTRA Z1S 10 P2-3X/V | D187: 501TUR/14 | E187: SMF-138 | F187: 2014-04-28 | G187: 50.85 | H187: 1
B188: RVA-370/MO | C188: ELEMENTO LOGICO LC 40 DB20E7X/ | D188: 1764MUQ/14 | E188: HHE-135 | F188: 2014-04-28 | G188: 12.29 | H188: 1
B189: EJJ-243/RK | C189: OLFLEX FD CLASSIC 810 7G0,5 | D189: 1256KYM/14 | E189: PRN-57 | F189: 2014-04-29 | G189: 7.8 | H189: 1
B190: OYZ-311/GH | C190: COPERCHIO ELEMENTO LOGICO LFA 25 KWA-7X/ | D190: 2275SSI/14 | E190: KQM-134 | F190: 2014-04-29 | G190: 8.8 | H190: 1
B191: WTT-322/YR | C191: CURVA 45ｰ F.F. 1 ZINC." | D191: 255DVY/14 | E191: JDT-88 | F191: 2014-05-01 | G191: 4.3 | H191: 1
B192: BVD-350/EJ | C192: CARTUCCIA FILTRO DA 8 MICRON | D192: 5318EOI/14 | E192: MCM-115 | F192: 2014-05-03 | G192: 6.8 | H192: 1
B193: OCI-162/XK | C193: KIT COMPLETO GUARNIZIONI CILINDRO 80 CMPC | D193: 4620ETG/14 | E193: INE-151 | F193: 2014-05-03 | G193: 22.89 | H193: 1
B194: OQJ-149/CP | C194: KIT COMPLETO GUARNIZIONI CILINDRO 125 | D194: 5045ELQ/14 | E194: IKM-62 | F194: 2014-05-04 | G194: 28.16 | H194: 1
B195: WTT-322/YR | C195: CURVA 45ｰ F.F. 1 ZINC." | D195: 3602UWO/14 | E195: KVT-94 | F195: 2014-05-04 | G195: 4.75 | H195: 1
B196: KWO-343/SK | C196: VITI TCCEI 12.9 UNI 5931 BR. M20 X 140 | D196: 5359ZZB/14 | E196: ZAS-69 | F196: 2014-05-05 | G196: 10.45 | H196: 1
B197: LBW-277/ME | C197: KIT COMPLETO GUARNIZIONI PER CILINDRO 80 | D197: 6466QPI/14 | E197: ZIC-110 | F197: 2014-05-05 | G197: 14.25 | H197: 1
B198: SYA-341/BM | C198: PIGNONI SEMPLICI 3/4 Z21 | D198: 1947JBD/14 | E198: DBP-26 | F198: 2014-05-05 | G198: 26.78 | H198: 1
B199: NWC-213/WR | C199: KIT MAGNETE M.W. | D199: 791HKX/14 | E199: CWC-121 | F199: 2014-05-07 | G199: 17.75 | H199: 1
B200: HYM-126/TJ | C200: VALVOLA RIDUTTRICE DI PRESSIONE DA 40 MBAR | D200: 1099RIS/14 | E200: LPP-50 | F200: 2014-05-09 | G200: 147.68 | H200: 1
B201: HOU-335/QO | C201: VALVOLA DI RITEGNO PILOTATA Z2FS 16-3X/S2 | D201: 5370HZE/14 | E201: DMX-27 | F201: 2014-05-10 | G201: 132.5 | H201: 1
B202: HOU-335/QO | C202: VALVOLA DI RITEGNO PILOTATA Z2FS 16-3X/S2 | D202: 5069GYZ/14 | E202: ZIM-84 | F202: 2014-05-10 | G202: 106.25 | H202: 1
B203: RVG-263/JX | C203: SERVOVALVOLA CON ROTORE DINAMICO | D203: 2083OAI/14 | E203: YWH-33 | F203: 2014-05-10 | G203: 126.99 | H203: 1
B204: KWO-343/SK | C204: VITI TCCEI 12.9 UNI 5931 BR. M20 X 140 | D204: 2426WEP/14 | E204: SOD-141 | F204: 2014-05-11 | G204: 9.98 | H204: 1
... 259 more rows

Sheet ninai
B2: VALORIZZAZIONE GIACENZE DI MAGAZZINO AL 31/12/2014 SULLA SCORTA DELL'ULTIMO PREZZO DI ACQUISTO REGISTRATO | M2: alternative
M3: ultimo prezzo
B4: COD. ART. | C4: DESCRIZIONE ARTICOLO | D4: STOCCAGGIO | E4: QUANTITA' | F4: DATA ACQUISTO | G4: ULTIMO PREZZO | H4: ID_ORDINE | I4: IMPORTO TOT. | K4: ninai_data | M4: ninai_2 | N4: ninai_3
B5: BVD-350/EJ | C5: CARTUCCIA FILTRO DA 8 MICRON | D5: C-36 | E5: 200 | F5: =MAX(IF($B$34:$B$463=B5,$F$34:$F$463)) -> 2014-12-15 | G5: =INDIRECT("G"&MAX(INDEX(($B$34:$B$463=B5)*ROW($G$34:$G$463),))) -> 8.08 | I5: =E5*G5 -> 1616 | K5: =MAX(INDEX(($B$34:$B$463=B5)*$F$34:$F$463,)) -> 2014-12-15 | M5: =INDEX($G$34:$G$463,MAX(INDEX(($B$34:$B$463=B5)*ROW($G$34:$G$463)-33,))) -> 8.08 | N5: =OFFSET($G$34,MAX(INDEX(($B$34:$B$463=B5)*ROW($G$34:$G$463)-33,))-1,) -> 8.08
B6: DBY-128/GN | C6: AMMONIACA ANIDRA IN BOMBOLA DA KG.25 | D6: F-45 | E6: 167 | F6: =MAX(IF($B$34:$B$463=B6,$F$34:$F$463)) -> 2014-12-20 | G6: =INDIRECT("G"&MAX(INDEX(($B$34:$B$463=B6)*ROW($G$34:$G$463),))) -> 22.26 | I6: =E6*G6 -> 3717.42 | K6: =MAX(INDEX(($B$34:$B$463=B6)*$F$34:$F$463,)) -> 2014-12-20 | M6: =INDEX($G$34:$G$463,MAX(INDEX(($B$34:$B$463=B6)*ROW($G$34:$G$463)-33,))) -> 22.26 | N6: =OFFSET($G$34,MAX(INDEX(($B$34:$B$463=B6)*ROW($G$34:$G$463)-33,))-1,) -> 22.26
B7: EJJ-243/RK | C7: OLFLEX FD CLASSIC 810 7G0,5 | D7: F-95 | E7: 207 | F7: =MAX(IF($B$34:$B$463=B7,$F$34:$F$463)) -> 2014-11-18 | G7: 8.4 | I7: =E7*G7 -> 1738.8 | K7: 2014-11-18 | M7: 8.4 | N7: 8.4
B8: EVW-340/RN | C8: OLFLEX FD CLASSIC 810 CY 4G0,5 | D8: C-72 | E8: 158 | F8: =MAX(IF($B$34:$B$463=B8,$F$34:$F$463)) -> 2014-12-17 | G8: 9.54 | I8: 1507.32 | K8: 2014-12-17 | M8: 9.54 | N8: 9.54
B9: FRF-171/ZE | C9: KIT GUARNIZIONI LC25...6X/LC25DB/DR-5X | D9: I-45 | E9: 119 | F9: =MAX(IF($B$34:$B$463=B9,$F$34:$F$463)) -> 2014-12-16 | G9: 30.8 | I9: 3665.2 | K9: 2014-12-16 | M9: 30.8 | N9: 30.8
B10: GTN-188/OI | C10: VALVOLA RITEGNO A PIASTRA Z1S 10 P2-3X/V | D10: U-62 | E10: 202 | F10: =MAX(IF($B$34:$B$463=B10,$F$34:$F$463)) -> 2014-11-23 | G10: 40.95 | I10: 8271.9 | K10: 2014-11-23 | M10: 40.95 | N10: 40.95
B11: HOU-335/QO | C11: VALVOLA DI RITEGNO PILOTATA Z2FS 16-3X/S2 | D11: R-51 | E11: 194 | F11: =MAX(IF($B$34:$B$463=B11,$F$34:$F$463)) -> 2014-12-19 | G11: 126.25 | I11: 24492.5 | K11: 2014-12-19 | M11: 126.25 | N11: 126.25
B12: HYM-126/TJ | C12: VALVOLA RIDUTTRICE DI PRESSIONE DA 40 MBAR | D12: S-46 | E12: 150 | F12: =MAX(IF($B$34:$B$463=B12,$F$34:$F$463)) -> 2014-12-09 | G12: 156.2 | I12: 23430 | K12: 2014-12-09 | M12: 156.2 | N12: 156.2
B13: IAB-347/TY | C13: REGOLATORE DI FLUSSO Z2FS 10-3-3 X/ V | D13: N-68 | E13: 154 | F13: =MAX(IF($B$34:$B$463=B13,$F$34:$F$463)) -> 2014-11-18 | G13: 110.16 | I13: 16964.64 | K13: 2014-11-18 | M13: 110.16 | N13: 110.16
B14: IGF-330/RW | C14: RUOTE 65 SERIE RINFORZATA CON FRENO | D14: H-96 | E14: 157 | F14: =MAX(IF($B$34:$B$463=B14,$F$34:$F$463)) -> 2014-12-07 | G14: 61.1 | I14: 9592.7 | K14: 2014-12-07 | M14: 61.1 | N14: 61.1
B15: KWO-343/SK | C15: VITI TCCEI 12.9 UNI 5931 BR. M20 X 140 | D15: K-39 | E15: 208 | F15: =MAX(IF($B$34:$B$463=B15,$F$34:$F$463)) -> 2014-11-04 | G15: 10.64 | I15: 2213.12 | K15: 2014-11-04 | M15: 10.64 | N15: 10.64
B16: KWX-234/AH | C16: KIT REVISIONE CILINDRO M.W. | D16: A-89 | E16: 213 | F16: =MAX(IF($B$34:$B$463=B16,$F$34:$F$463)) -> 2014-11-22 | G16: 45.39 | I16: 9668.07 | K16: 2014-11-22 | M16: 45.39 | N16: 45.39
B17: LBW-277/ME | C17: KIT COMPLETO GUARNIZIONI PER CILINDRO 80 | D17: L-56 | E17: 209 | F17: =MAX(IF($B$34:$B$463=B17,$F$34:$F$463)) -> 2014-12-17 | G17: 11 | I17: 2299 | K17: 2014-12-17 | M17: 11 | N17: 11
B18: LCJ-304/BX | C18: KIT REVISIONE CILINDRO M.W. | D18: E-53 | E18: 160 | F18: =MAX(IF($B$34:$B$463=B18,$F$34:$F$463)) -> 2014-11-28 | G18: 15.59 | I18: 2494.4 | K18: 2014-11-28 | M18: 15.59 | N18: 15.59
B19: NWC-213/WR | C19: KIT MAGNETE M.W. | D19: M-56 | E19: 118 | F19: =MAX(IF($B$34:$B$463=B19,$F$34:$F$463)) -> 2014-11-25 | G19: 17.55 | I19: 2070.9 | K19: 2014-11-25 | M19: 17.55 | N19: 17.55
B20: OCI-162/XK | C20: KIT COMPLETO GUARNIZIONI CILINDRO 80 CMPC | D20: J-51 | E20: 137 | F20: =MAX(IF($B$34:$B$463=B20,$F$34:$F$463)) -> 2014-10-25 | G20: 24.42 | I20: 3345.54 | K20: 2014-10-25 | M20: 24.42 | N20: 24.42
B21: OQJ-149/CP | C21: KIT COMPLETO GUARNIZIONI CILINDRO 125 | D21: G-68 | E21: 178 | F21: =MAX(IF($B$34:$B$463=B21,$F$34:$F$463)) -> 2014-11-30 | G21: 29.44 | I21: 5240.32 | K21: 2014-11-30 | M21: 29.44 | N21: 29.44
B22: OYZ-311/GH | C22: COPERCHIO ELEMENTO LOGICO LFA 25 KWA-7X/ | D22: U-91 | E22: 189 | F22: =MAX(IF($B$34:$B$463=B22,$F$34:$F$463)) -> 2014-11-25 | G22: 8.08 | I22: 1527.12 | K22: 2014-11-25 | M22: 8.08 | N22: 8.08
B23: QBI-332/YQ | C23: FORCELLA FEMMINA CON SNODO SGS/M16X1.5 | D23: G-56 | E23: 230 | F23: =MAX(IF($B$34:$B$463=B23,$F$34:$F$463)) -> 2014-11-21 | G23: 33.78 | I23: 7769.4 | K23: 2014-11-21 | M23: 33.78 | N23: 33.78
B24: RVA-370/MO | C24: ELEMENTO LOGICO LC 40 DB20E7X/ | D24: O-82 | E24: 143 | F24: =MAX(IF($B$34:$B$463=B24,$F$34:$F$463)) -> 2014-12-10 | G24: 11.78 | I24: 1684.54 | K24: 2014-12-10 | M24: 11.78 | N24: 11.78
B25: RVG-263/JX | C25: SERVOVALVOLA CON ROTORE DINAMICO | D25: B-93 | E25: 194 | F25: =MAX(IF($B$34:$B$463=B25,$F$34:$F$463)) -> 2014-12-20 | G25: 125.75 | I25: 24395.5 | K25: 2014-12-20 | M25: 125.75 | N25: 125.75
B26: SGY-295/PG | C26: PIGNONE SEMPL. 3/4 Z9" | D26: Y-76 | E26: 206 | F26: =MAX(IF($B$34:$B$463=B26,$F$34:$F$463)) -> 2014-12-18 | G26: 27.08 | I26: 5578.48 | K26: 2014-12-18 | M26: 27.08 | N26: 27.08
B27: SYA-341/BM | C27: PIGNONI SEMPLICI 3/4 Z21 | D27: W-83 | E27: 155 | F27: =MAX(IF($B$34:$B$463=B27,$F$34:$F$463)) -> 2014-12-07 | G27: 27.41 | I27: 4248.55 | K27: 2014-12-07 | M27: 27.41 | N27: 27.41
B28: WTT-322/YR | C28: CURVA 45ｰ F.F. 1 ZINC." | D28: C-37 | E28: 232 | F28: =MAX(IF($B$34:$B$463=B28,$F$34:$F$463)) -> 2014-12-11 | G28: 5.45 | I28: 1264.4 | K28: 2014-12-11 | M28: 5.45 | N28: 5.45
H30: TOTALE GIACENZE : | I30: =SUM(I5:I28) -> 168795.82
B32: TABELLA ACQUISTI EFFETTUATI NEL 2014
B33: COD. ART. | C33: DESCRIZIONE ARTICOLO | D33: ID_ORDINE | E33: COD.FORN. | F33: DATA ACQUISTO | G33: PREZZO UNITARIO
B34: HYM-126/TJ | C34: VALVOLA RIDUTTRICE DI PRESSIONE DA 40 MBAR | D34: 14FYF/14 | E34: ISR-13 | F34: 2014-01-07 | G34: 139.16
B35: WTT-322/YR | C35: CURVA 45ｰ F.F. 1 ZINC." | D35: 2108TZW/14 | E35: QVG-137 | F35: 2014-01-07 | G35: 5.7
B36: WTT-322/YR | C36: CURVA 45ｰ F.F. 1 ZINC." | D36: 570YMT/14 | E36: COB-84 | F36: 2014-01-08 | G36: 5.15
B37: IGF-330/RW | C37: RUOTE 65 SERIE RINFORZATA CON FRENO | D37: 1798OPR/14 | E37: UKU-106 | F37: 2014-01-09 | G37: 57.2
B38: IAB-347/TY | C38: REGOLATORE DI FLUSSO Z2FS 10-3-3 X/ V | D38: 6231GQD/14 | E38: EPH-38 | F38: 2014-01-09 | G38: 115.56
B39: EVW-340/RN | C39: OLFLEX FD CLASSIC 810 CY 4G0,5 | D39: 6223MRI/14 | E39: SFS-48 | F39: 2014-01-10 | G39: 9.99
B40: HYM-126/TJ | C40: VALVOLA RIDUTTRICE DI PRESSIONE DA 40 MBAR | D40: 2906HMY/14 | E40: CBI-156 | F40: 2014-01-10 | G40: 151.94
B41: RVA-370/MO | C41: ELEMENTO LOGICO LC 40 DB20E7X/ | D41: 3835FLC/14 | E41: QBL-116 | F41: 2014-01-10 | G41: 13.06
B42: LBW-277/ME | C42: KIT COMPLETO GUARNIZIONI PER CILINDRO 80 | D42: 426ANG/14 | E42: MOS-20 | F42: 2014-01-10 | G42: 13.38
B43: LBW-277/ME | C43: KIT COMPLETO GUARNIZIONI PER CILINDRO 80 | D43: 5893HLS/14 | E43: ZDS-34 | F43: 2014-01-12 | G43: 13.63
B44: LCJ-304/BX | C44: KIT REVISIONE CILINDRO M.W. | D44: 5302XWG/14 | E44: HUT-145 | F44: 2014-01-14 | G44: 14.35
B45: GTN-188/OI | C45: VALVOLA RITEGNO A PIASTRA Z1S 10 P2-3X/V | D45: 2064OAC/14 | E45: UZC-47 | F45: 2014-01-15 | G45: 44.1
B46: KWX-234/AH | C46: KIT REVISIONE CILINDRO M.W. | D46: 4975PFC/14 | E46: KFF-148 | F46: 2014-01-15 | G46: 46.41
B47: EVW-340/RN | C47: OLFLEX FD CLASSIC 810 CY 4G0,5 | D47: 1711IKG/14 | E47: MIT-152 | F47: 2014-01-15 | G47: 9.09
B48: BVD-350/EJ | C48: CARTUCCIA FILTRO DA 8 MICRON | D48: 2421WLN/14 | E48: XUJ-96 | F48: 2014-01-16 | G48: 8.16
B49: KWX-234/AH | C49: KIT REVISIONE CILINDRO M.W. | D49: 5825PKH/14 | E49: HUF-22 | F49: 2014-01-17 | G49: 44.37
B50: SGY-295/PG | C50: PIGNONE SEMPL. 3/4 Z9" | D50: 4777BGM/14 | E50: KFT-104 | F50: 2014-01-22 | G50: 30.5
B51: IAB-347/TY | C51: REGOLATORE DI FLUSSO Z2FS 10-3-3 X/ V | D51: 3968TBJ/14 | E51: AMX-50 | F51: 2014-01-22 | G51: 98.28
B52: EJJ-243/RK | C52: OLFLEX FD CLASSIC 810 7G0,5 | D52: 2565POU/14 | E52: ZSH-26 | F52: 2014-01-23 | G52: 7.35
B53: EJJ-243/RK | C53: OLFLEX FD CLASSIC 810 7G0,5 | D53: 921EWK/14 | E53: WXR-135 | F53: 2014-01-23 | G53: 7.05
B54: EJJ-243/RK | C54: OLFLEX FD CLASSIC 810 7G0,5 | D54: 2180QRN/14 | E54: ZNM-56 | F54: 2014-01-24 | G54: 6.45
B55: KWO-343/SK | C55: VITI TCCEI 12.9 UNI 5931 BR. M20 X 140 | D55: 2166TUS/14 | E55: VCQ-85 | F55: 2014-01-25 | G55: 8.08
B56: DBY-128/GN | C56: AMMONIACA ANIDRA UN BOMBOLA DA KG.25 | D56: 5932SEV/14 | E56: HXC-107 | F56: 2014-01-26 | G56: 22.05
B57: HYM-126/TJ | C57: VALVOLA RIDUTTRICE DI PRESSIONE DA 40 MBAR | D57: 4056WIP/14 | E57: GUT-17 | F57: 2014-01-26 | G57: 133.48
B58: HYM-126/TJ | C58: VALVOLA RIDUTTRICE DI PRESSIONE DA 40 MBAR | D58: 2401JME/14 | E58: WHR-132 | F58: 2014-01-26 | G58: 150.52
B59: HOU-335/QO | C59: VALVOLA DI RITEGNO PILOTATA Z2FS 16-3X/S2 | D59: 2583ROH/14 | E59: WPG-45 | F59: 2014-01-26 | G59: 106.25
B60: OQJ-149/CP | C60: KIT COMPLETO GUARNIZIONI CILINDRO 125 | D60: 957IGN/14 | E60: HPU-136 | F60: 2014-01-28 | G60: 34.56
B61: DBY-128/GN | C61: AMMONIACA ANIDRA UN BOMBOLA DA KG.25 | D61: 1672BQS/14 | E61: TAW-142 | F61: 2014-01-29 | G61: 18.27
B62: SYA-341/BM | C62: PIGNONI SEMPLICI 3/4 Z21 | D62: 1237IOK/14 | E62: WHG-100 | F62: 2014-01-29 | G62: 30.87
B63: HYM-126/TJ | C63: VALVOLA RIDUTTRICE DI PRESSIONE DA 40 MBAR | D63: 956VGF/14 | E63: CNO-78 | F63: 2014-01-30 | G63: 129.22
B64: GTN-188/OI | C64: VALVOLA RITEGNO A PIASTRA Z1S 10 P2-3X/V | D64: 2538VNU/14 | E64: TUP-30 | F64: 2014-01-30 | G64: 47.25
B65: SYA-341/BM | C65: PIGNONI SEMPLICI 3/4 Z21 | D65: 6483PMU/14 | E65: NNU-74 | F65: 2014-01-31 | G65: 26.78
B66: GTN-188/OI | C66: VALVOLA RITEGNO A PIASTRA Z1S 10 P2-3X/V | D66: 4487VVQ/14 | E66: PDI-71 | F66: 2014-02-01 | G66: 50.85
B67: WTT-322/YR | C67: CURVA 45ｰ F.F. 1 ZINC." | D67: 715YFS/14 | E67: OJB-69 | F67: 2014-02-02 | G67: 4.6
B68: WTT-322/YR | C68: CURVA 45ｰ F.F. 1 ZINC." | D68: 337HGO/14 | E68: BNS-97 | F68: 2014-02-02 | G68: 4.35
B69: FRF-171/ZE | C69: KIT GUARNIZIONI LC25...6X/LC25DB/DR-5X | D69: 3737EOM/14 | E69: BYK-95 | F69: 2014-02-03 | G69: 30.8
B70: QBI-332/YQ | C70: FORCELLA FEMMINA CON SNODO SGS/M16X1.5 | D70: 3753CRB/14 | E70: PSY-128 | F70: 2014-02-04 | G70: 29.19
B71: LCJ-304/BX | C71: KIT REVISIONE CILINDRO M.W. | D71: 3259GEI/14 | E71: YZM-138 | F71: 2014-02-04 | G71: 13.52
B72: NWC-213/WR | C72: KIT MAGNETE M.W. | D72: 4460VJU/14 | E72: NJP-85 | F72: 2014-02-04 | G72: 17.55
B73: OQJ-149/CP | C73: KIT COMPLETO GUARNIZIONI CILINDRO 125 | D73: 1597GUT/14 | E73: AON-152 | F73: 2014-02-04 | G73: 34.24
B74: EVW-340/RN | C74: OLFLEX FD CLASSIC 810 CY 4G0,5 | D74: 1618ITB/14 | E74: PQO-62 | F74: 2014-02-06 | G74: 9.72
B75: RVG-263/JX | C75: SERVOVALVOLA CON ROTORE DINAMICO | D75: 5864CUX/14 | E75: WPL-64 | F75: 2014-02-07 | G75: 133.22
B76: OCI-162/XK | C76: KIT COMPLETO GUARNIZIONI CILINDRO 80 CMPC | D76: 5703MRV/14 | E76: ALC-42 | F76: 2014-02-07 | G76: 22.02
B77: OYZ-311/GH | C77: COPERCHIO ELEMENTO LOGICO LFA 25 KWA-7X/ | D77: 3369HIU/14 | E77: ZSH-70 | F77: 2014-02-07 | G77: 7.12
B78: OQJ-149/CP | C78: KIT COMPLETO GUARNIZIONI CILINDRO 125 | D78: 2391WTQ/14 | E78: LGW-128 | F78: 2014-02-09 | G78: 35.2
B79: FRF-171/ZE | C79: KIT GUARNIZIONI LC25...6X/LC25DB/DR-5X | D79: 5773QVK/14 | E79: HGI-66 | F79: 2014-02-10 | G79: 35
B80: HOU-335/QO | C80: VALVOLA DI RITEGNO PILOTATA Z2FS 16-3X/S2 | D80: 3104WEA/14 | E80: FGK-95 | F80: 2014-02-10 | G80: 133.75
B81: EVW-340/RN | C81: OLFLEX FD CLASSIC 810 CY 4G0,5 | D81: 4997ZFK/14 | E81: LWN-118 | F81: 2014-02-11 | G81: 7.83
B82: EJJ-243/RK | C82: OLFLEX FD CLASSIC 810 7G0,5 | D82: 1866KKI/14 | E82: DAT-28 | F82: 2014-02-11 | G82: 7.8
B83: FRF-171/ZE | C83: KIT GUARNIZIONI LC25...6X/LC25DB/DR-5X | D83: 831XKM/14 | E83: GXJ-116 | F83: 2014-02-12 | G83: 31.85
B84: RVG-263/JX | C84: SERVOVALVOLA CON ROTORE DINAMICO | D84: 2062QWG/14 | E84: HQE-120 | F84: 2014-02-13 | G84: 115.79
B85: OCI-162/XK | C85: KIT COMPLETO GUARNIZIONI CILINDRO 80 CMPC | D85: 3454XQS/14 | E85: JJT-34 | F85: 2014-02-15 | G85: 18.75
B86: RVA-370/MO | C86: ELEMENTO LOGICO LC 40 DB20E7X/ | D86: 1128QDP/14 | E86: HTX-27 | F86: 2014-02-17 | G86: 13.06
B87: GTN-188/OI | C87: VALVOLA RITEGNO A PIASTRA Z1S 10 P2-3X/V | D87: 2314LLM/14 | E87: WYN-23 | F87: 2014-02-17 | G87: 42.3
B88: OQJ-149/CP | C88: KIT COMPLETO GUARNIZIONI CILINDRO 125 | D88: 358UAC/14 | E88: KWO-42 | F88: 2014-02-18 | G88: 27.2
B89: IAB-347/TY | C89: REGOLATORE DI FLUSSO Z2FS 10-3-3 X/ V | D89: 2812HEY/14 | E89: VEI-57 | F89: 2014-02-18 | G89: 116.64
B90: OYZ-311/GH | C90: COPERCHIO ELEMENTO LOGICO LFA 25 KWA-7X/ | D90: 2250YDH/14 | E90: NXL-121 | F90: 2014-02-19 | G90: 8.4
B91: KWO-343/SK | C91: VITI TCCEI 12.9 UNI 5931 BR. M20 X 140 | D91: 2348YEF/14 | E91: BSJ-70 | F91: 2014-02-20 | G91: 8.36
B92: HYM-126/TJ | C92: VALVOLA RIDUTTRICE DI PRESSIONE DA 40 MBAR | D92: 5150MBK/14 | E92: EIY-35 | F92: 2014-02-20 | G92: 151.94
B93: DBY-128/GN | C93: AMMONIACA ANIDRA UN BOMBOLA DA KG.25 | D93: 6303WNG/14 | E93: NZT-33 | F93: 2014-02-21 | G93: 21.42
B94: OCI-162/XK | C94: KIT COMPLETO GUARNIZIONI CILINDRO 80 CMPC | D94: 5726WTM/14 | E94: PXW-71 | F94: 2014-02-21 | G94: 24.2
B95: DBY-128/GN | C95: AMMONIACA ANIDRA UN BOMBOLA DA KG.25 | D95: 5550DED/14 | E95: OZV-16 | F95: 2014-02-25 | G95: 18.9
B96: KWO-343/SK | C96: VITI TCCEI 12.9 UNI 5931 BR. M20 X 140 | D96: 2583NJU/14 | E96: AAY-13 | F96: 2014-02-26 | G96: 9.12
B97: IAB-347/TY | C97: REGOLATORE DI FLUSSO Z2FS 10-3-3 X/ V | D97: 163WUB/14 | E97: ZPS-144 | F97: 2014-02-27 | G97: 105.84
B98: OYZ-311/GH | C98: COPERCHIO ELEMENTO LOGICO LFA 25 KWA-7X/ | D98: 3725UKL/14 | E98: DMM-146 | F98: 2014-02-27 | G98: 8.8
B99: LCJ-304/BX | C99: KIT REVISIONE CILINDRO M.W. | D99: 290DWO/14 | E99: VMY-134 | F99: 2014-02-27 | G99: 12.97
B100: RVA-370/MO | C100: ELEMENTO LOGICO LC 40 DB20E7X/ | D100: 3995BPS/14 | E100: XBI-85 | F100: 2014-02-27 | G100: 12.03
B101: RVA-370/MO | C101: ELEMENTO LOGICO LC 40 DB20E7X/ | D101: 4709VKD/14 | E101: AKI-75 | F101: 2014-02-27 | G101: 11.39
B102: FRF-171/ZE | C102: KIT GUARNIZIONI LC25...6X/LC25DB/DR-5X | D102: 2231MDV/14 | E102: XYL-55 | F102: 2014-02-28 | G102: 32.55
B103: IGF-330/RW | C103: RUOTE 65 SERIE RINFORZATA CON FRENO | D103: 3046SEC/14 | E103: NKK-35 | F103: 2014-02-28 | G103: 59.15
B104: EVW-340/RN | C104: OLFLEX FD CLASSIC 810 CY 4G0,5 | D104: 3532VJO/14 | E104: SBF-27 | F104: 2014-02-28 | G104: 8.28
B105: SYA-341/BM | C105: PIGNONI SEMPLICI 3/4 Z21 | D105: 2960INK/14 | E105: BKH-134 | F105: 2014-03-01 | G105: 34.34
B106: IAB-347/TY | C106: REGOLATORE DI FLUSSO Z2FS 10-3-3 X/ V | D106: 4937PTE/14 | E106: DUZ-113 | F106: 2014-03-01 | G106: 112.32
B107: FRF-171/ZE | C107: KIT GUARNIZIONI LC25...6X/LC25DB/DR-5X | D107: 5296VZJ/14 | E107: JFR-74 | F107: 2014-03-01 | G107: 31.15
B108: EJJ-243/RK | C108: OLFLEX FD CLASSIC 810 7G0,5 | D108: 4742HBW/14 | E108: ICU-113 | F108: 2014-03-02 | G108: 8.03
B109: LBW-277/ME | C109: KIT COMPLETO GUARNIZIONI PER CILINDRO 80 | D109: 2942HJE/14 | E109: KUN-151 | F109: 2014-03-02 | G109: 14
B110: BVD-350/EJ | C110: CARTUCCIA FILTRO DA 8 MICRON | D110: 3587XIM/14 | E110: QAA-14 | F110: 2014-03-05 | G110: 8.24
B111: LCJ-304/BX | C111: KIT REVISIONE CILINDRO M.W. | D111: 869UFB/14 | E111: UDF-49 | F111: 2014-03-05 | G111: 15.73
B112: OYZ-311/GH | C112: COPERCHIO ELEMENTO LOGICO LFA 25 KWA-7X/ | D112: 3078NXZ/14 | E112: RRE-140 | F112: 2014-03-05 | G112: 6.96
B113: LBW-277/ME | C113: KIT COMPLETO GUARNIZIONI PER CILINDRO 80 | D113: 5700OAH/14 | E113: WWL-93 | F113: 2014-03-05 | G113: 14.38
B114: HOU-335/QO | C114: VALVOLA DI RITEGNO PILOTATA Z2FS 16-3X/S2 | D114: 4510CYA/14 | E114: VYA-133 | F114: 2014-03-06 | G114: 118.75
B115: OYZ-311/GH | C115: COPERCHIO ELEMENTO LOGICO LFA 25 KWA-7X/ | D115: 5457ZSJ/14 | E115: ZEP-50 | F115: 2014-03-07 | G115: 7.2
B116: OQJ-149/CP | C116: KIT COMPLETO GUARNIZIONI CILINDRO 125 | D116: 4502ZMZ/14 | E116: OVP-105 | F116: 2014-03-08 | G116: 30.72
B117: LCJ-304/BX | C117: KIT REVISIONE CILINDRO M.W. | D117: 821MAP/14 | E117: VHD-46 | F117: 2014-03-09 | G117: 13.52
B118: OCI-162/XK | C118: KIT COMPLETO GUARNIZIONI CILINDRO 80 CMPC | D118: 1926PDA/14 | E118: PLI-114 | F118: 2014-03-09 | G118: 24.2
B119: OQJ-149/CP | C119: KIT COMPLETO GUARNIZIONI CILINDRO 125 | D119: 332YXC/14 | E119: RGH-140 | F119: 2014-03-09 | G119: 29.76
B120: FRF-171/ZE | C120: KIT GUARNIZIONI LC25...6X/LC25DB/DR-5X | D120: 5540LXZ/14 | E120: DDI-21 | F120: 2014-03-12 | G120: 35.35
B121: BVD-350/EJ | C121: CARTUCCIA FILTRO DA 8 MICRON | D121: 412GXB/14 | E121: FNG-82 | F121: 2014-03-12 | G121: 7.92
B122: SYA-341/BM | C122: PIGNONI SEMPLICI 3/4 Z21 | D122: 1637FKW/14 | E122: WPA-97 | F122: 2014-03-13 | G122: 31.19
B123: OYZ-311/GH | C123: COPERCHIO ELEMENTO LOGICO LFA 25 KWA-7X/ | D123: 542FWP/14 | E123: KDA-161 | F123: 2014-03-14 | G123: 7.36
B124: RVA-370/MO | C124: ELEMENTO LOGICO LC 40 DB20E7X/ | D124: 4613JXJ/14 | E124: ARN-90 | F124: 2014-03-15 | G124: 14.46
B125: QBI-332/YQ | C125: FORCELLA FEMMINA CON SNODO SGS/M16X1.5 | D125: 2054BYI/14 | E125: YMS-138 | F125: 2014-03-16 | G125: 35.75
B126: HYM-126/TJ | C126: VALVOLA RIDUTTRICE DI PRESSIONE DA 40 MBAR | D126: 873JOK/14 | E126: ZMP-94 | F126: 2014-03-17 | G126: 151.94
B127: GTN-188/OI | C127: VALVOLA RITEGNO A PIASTRA Z1S 10 P2-3X/V | D127: 5064CBU/14 | E127: TVJ-24 | F127: 2014-03-17 | G127: 40.05
B128: GTN-188/OI | C128: VALVOLA RITEGNO A PIASTRA Z1S 10 P2-3X/V | D128: 6097DRM/14 | E128: VCW-49 | F128: 2014-03-19 | G128: 51.75
B129: OYZ-311/GH | C129: COPERCHIO ELEMENTO LOGICO LFA 25 KWA-7X/ | D129: 863GLF/14 | E129: FHT-25 | F129: 2014-03-20 | G129: 7.2
B130: WTT-322/YR | C130: CURVA 45ｰ F.F. 1 ZINC." | D130: 1312WAW/14 | E130: ZGZ-28 | F130: 2014-03-20 | G130: 5.5
B131: EVW-340/RN | C131: OLFLEX FD CLASSIC 810 CY 4G0,5 | D131: 3169SKI/14 | E131: UMK-90 | F131: 2014-03-21 | G131: 8.82
B132: OYZ-311/GH | C132: COPERCHIO ELEMENTO LOGICO LFA 25 KWA-7X/ | D132: 795YOE/14 | E132: ERB-147 | F132: 2014-03-21 | G132: 7.76
B133: KWX-234/AH | C133: KIT REVISIONE CILINDRO M.W. | D133: 4881CKI/14 | E133: WFK-115 | F133: 2014-03-22 | G133: 51.51
B134: KWO-343/SK | C134: VITI TCCEI 12.9 UNI 5931 BR. M20 X 140 | D134: 546FOF/14 | E134: KLK-98 | F134: 2014-03-23 | G134: 9.31
B135: RVG-263/JX | C135: SERVOVALVOLA CON ROTORE DINAMICO | D135: 1106AUZ/14 | E135: NTE-72 | F135: 2014-03-23 | G135: 139.44
B136: LCJ-304/BX | C136: KIT REVISIONE CILINDRO M.W. | D136: 721WBX/14 | E136: YST-110 | F136: 2014-03-24 | G136: 14.63
B137: BVD-350/EJ | C137: CARTUCCIA FILTRO DA 8 MICRON | D137: 4000CVK/14 | E137: ORC-146 | F137: 2014-03-25 | G137: 6.8
B138: WTT-322/YR | C138: CURVA 45ｰ F.F. 1 ZINC." | D138: 2383SXB/14 | E138: LJI-32 | F138: 2014-03-26 | G138: 5.1
B139: SGY-295/PG | C139: PIGNONE SEMPL. 3/4 Z9" | D139: 463AYT/14 | E139: EOW-70 | F139: 2014-03-26 | G139: 29.64
B140: IAB-347/TY | C140: REGOLATORE DI FLUSSO Z2FS 10-3-3 X/ V | D140: 216GGX/14 | E140: PCZ-145 | F140: 2014-03-26 | G140: 116.64
B141: RVG-263/JX | C141: SERVOVALVOLA CON ROTORE DINAMICO | D141: 2417AXX/14 | E141: IYN-127 | F141: 2014-03-26 | G141: 118.28
B142: KWO-343/SK | C142: VITI TCCEI 12.9 UNI 5931 BR. M20 X 140 | D142: 3130LGL/14 | E142: OHE-57 | F142: 2014-03-27 | G142: 9.98
B143: SYA-341/BM | C143: PIGNONI SEMPLICI 3/4 Z21 | D143: 6028ILT/14 | E143: FOC-99 | F143: 2014-03-28 | G143: 27.09
B144: BVD-350/EJ | C144: CARTUCCIA FILTRO DA 8 MICRON | D144: 2227OJC/14 | E144: ENV-24 | F144: 2014-03-28 | G144: 8.56
B145: LBW-277/ME | C145: KIT COMPLETO GUARNIZIONI PER CILINDRO 80 | D145: 410EAY/14 | E145: ATI-156 | F145: 2014-03-28 | G145: 10.75
B146: LBW-277/ME | C146: KIT COMPLETO GUARNIZIONI PER CILINDRO 80 | D146: 4423SVH/14 | E146: BMM-30 | F146: 2014-03-29 | G146: 14
B147: BVD-350/EJ | C147: CARTUCCIA FILTRO DA 8 MICRON | D147: 3043VZH/14 | E147: NNO-141 | F147: 2014-03-29 | G147: 7.68
B148: IGF-330/RW | C148: RUOTE 65 SERIE RINFORZATA CON FRENO | D148: 4720ODJ/14 | E148: TNT-163 | F148: 2014-03-30 | G148: 72.8
B149: HYM-126/TJ | C149: VALVOLA RIDUTTRICE DI PRESSIONE DA 40 MBAR | D149: 2501BKD/14 | E149: IRD-108 | F149: 2014-03-31 | G149: 142
B150: IGF-330/RW | C150: RUOTE 65 SERIE RINFORZATA CON FRENO | D150: 5257UNY/14 | E150: MVI-97 | F150: 2014-03-31 | G150: 56.55
B151: HYM-126/TJ | C151: VALVOLA RIDUTTRICE DI PRESSIONE DA 40 MBAR | D151: 4008DHJ/14 | E151: CUR-12 | F151: 2014-04-01 | G151: 161.88
B152: RVG-263/JX | C152: SERVOVALVOLA CON ROTORE DINAMICO | D152: 1056GBK/14 | E152: MTG-100 | F152: 2014-04-02 | G152: 107.07
B153: HYM-126/TJ | C153: VALVOLA RIDUTTRICE DI PRESSIONE DA 40 MBAR | D153: 1328XWP/14 | E153: RMS-72 | F153: 2014-04-05 | G153: 132.06
B154: HOU-335/QO | C154: VALVOLA DI RITEGNO PILOTATA Z2FS 16-3X/S2 | D154: 3029TOB/14 | E154: DOA-55 | F154: 2014-04-05 | G154: 143.75
B155: LCJ-304/BX | C155: KIT REVISIONE CILINDRO M.W. | D155: 5084FMK/14 | E155: COA-105 | F155: 2014-04-05 | G155: 14.08
B156: QBI-332/YQ | C156: FORCELLA FEMMINA CON SNODO SGS/M16X1.5 | D156: 5632RFV/14 | E156: MDQ-124 | F156: 2014-04-05 | G156: 33.13
B157: WTT-322/YR | C157: CURVA 45ｰ F.F. 1 ZINC." | D157: 3561KNF/14 | E157: HYR-83 | F157: 2014-04-07 | G157: 5.6
B158: IAB-347/TY | C158: REGOLATORE DI FLUSSO Z2FS 10-3-3 X/ V | D158: 1245VXE/14 | E158: IHE-155 | F158: 2014-04-09 | G158: 116.64
B159: FRF-171/ZE | C159: KIT GUARNIZIONI LC25...6X/LC25DB/DR-5X | D159: 6407XIS/14 | E159: POF-99 | F159: 2014-04-10 | G159: 30.8
B160: HYM-126/TJ | C160: VALVOLA RIDUTTRICE DI PRESSIONE DA 40 MBAR | D160: 5840ZFB/14 | E160: FYB-123 | F160: 2014-04-11 | G160: 123.54
B161: IAB-347/TY | C161: REGOLATORE DI FLUSSO Z2FS 10-3-3 X/ V | D161: 4263LVE/14 | E161: IYH-18 | F161: 2014-04-12 | G161: 97.2
B162: KWO-343/SK | C162: VITI TCCEI 12.9 UNI 5931 BR. M20 X 140 | D162: 954CHN/14 | E162: DIV-115 | F162: 2014-04-13 | G162: 10.45
B163: GTN-188/OI | C163: VALVOLA RITEGNO A PIASTRA Z1S 10 P2-3X/V | D163: 2363ZWI/14 | E163: TGI-80 | F163: 2014-04-13 | G163: 50.85
B164: GTN-188/OI | C164: VALVOLA RITEGNO A PIASTRA Z1S 10 P2-3X/V | D164: 181AYN/14 | E164: MNF-118 | F164: 2014-04-14 | G164: 38.7
B165: NWC-213/WR | C165: KIT MAGNETE M.W. | D165: 3434LMM/14 | E165: CCN-63 | F165: 2014-04-14 | G165: 16.58
B166: RVA-370/MO | C166: ELEMENTO LOGICO LC 40 DB20E7X/ | D166: 1383ELO/14 | E166: ZLM-151 | F166: 2014-04-15 | G166: 12.67
B167: LBW-277/ME | C167: KIT COMPLETO GUARNIZIONI PER CILINDRO 80 | D167: 786TMG/14 | E167: FGB-33 | F167: 2014-04-16 | G167: 10.63
B168: GTN-188/OI | C168: VALVOLA RITEGNO A PIASTRA Z1S 10 P2-3X/V | D168: 4098FAP/14 | E168: YUT-111 | F168: 2014-04-17 | G168: 40.5
B169: EVW-340/RN | C169: OLFLEX FD CLASSIC 810 CY 4G0,5 | D169: 5626SEU/14 | E169: NKW-120 | F169: 2014-04-17 | G169: 10.26
B170: BVD-350/EJ | C170: CARTUCCIA FILTRO DA 8 MICRON | D170: 1993JIW/14 | E170: LFT-31 | F170: 2014-04-17 | G170: 8.88
B171: LBW-277/ME | C171: KIT COMPLETO GUARNIZIONI PER CILINDRO 80 | D171: 3924CEW/14 | E171: LYQ-18 | F171: 2014-04-17 | G171: 11.75
B172: GTN-188/OI | C172: VALVOLA RITEGNO A PIASTRA Z1S 10 P2-3X/V | D172: 491WFP/14 | E172: CFE-139 | F172: 2014-04-18 | G172: 47.25
B173: OQJ-149/CP | C173: KIT COMPLETO GUARNIZIONI CILINDRO 125 | D173: 5335VKY/14 | E173: FPE-50 | F173: 2014-04-18 | G173: 29.44
B174: SYA-341/BM | C174: PIGNONI SEMPLICI 3/4 Z21 | D174: 2054PTD/14 | E174: XLO-92 | F174: 2014-04-18 | G174: 33.71
B175: DBY-128/GN | C175: AMMONIACA ANIDRA UN BOMBOLA DA KG.25 | D175: 6229XAA/14 | E175: OQD-54 | F175: 2014-04-19 | G175: 21.42
B176: KWX-234/AH | C176: KIT REVISIONE CILINDRO M.W. | D176: 2976UZV/14 | E176: DXE-133 | F176: 2014-04-19 | G176: 57.12
B177: BVD-350/EJ | C177: CARTUCCIA FILTRO DA 8 MICRON | D177: 1030BUY/14 | E177: ADA-67 | F177: 2014-04-19 | G177: 8.56
B178: QBI-332/YQ | C178: FORCELLA FEMMINA CON SNODO SGS/M16X1.5 | D178: 1981JRF/14 | E178: UYP-144 | F178: 2014-04-20 | G178: 32.47
B179: BVD-350/EJ | C179: CARTUCCIA FILTRO DA 8 MICRON | D179: 924RKM/14 | E179: XUH-50 | F179: 2014-04-21 | G179: 8.72
B180: RVA-370/MO | C180: ELEMENTO LOGICO LC 40 DB20E7X/ | D180: 565CYP/14 | E180: OIE-28 | F180: 2014-04-21 | G180: 13.95
B181: SYA-341/BM | C181: PIGNONI SEMPLICI 3/4 Z21 | D181: 5071ZIV/14 | E181: YVD-101 | F181: 2014-04-21 | G181: 33.39
B182: IAB-347/TY | C182: REGOLATORE DI FLUSSO Z2FS 10-3-3 X/ V | D182: 5104FMV/14 | E182: ZJF-127 | F182: 2014-04-22 | G182: 91.8
B183: HOU-335/QO | C183: VALVOLA DI RITEGNO PILOTATA Z2FS 16-3X/S2 | D183: 2571JQO/14 | E183: PCJ-140 | F183: 2014-04-22 | G183: 142.5
B184: NWC-213/WR | C184: KIT MAGNETE M.W. | D184: 5882GMI/14 | E184: KKW-29 | F184: 2014-04-22 | G184: 17.75
B185: LBW-277/ME | C185: KIT COMPLETO GUARNIZIONI PER CILINDRO 80 | D185: 1384KJM/14 | E185: OWD-14 | F185: 2014-04-24 | G185: 13
B186: OQJ-149/CP | C186: KIT COMPLETO GUARNIZIONI CILINDRO 125 | D186: 3272AZP/14 | E186: KKL-54 | F186: 2014-04-26 | G186: 30.08
B187: GTN-188/OI | C187: VALVOLA RITEGNO A PIASTRA Z1S 10 P2-3X/V | D187: 501TUR/14 | E187: SMF-138 | F187: 2014-04-28 | G187: 50.85
B188: RVA-370/MO | C188: ELEMENTO LOGICO LC 40 DB20E7X/ | D188: 1764MUQ/14 | E188: HHE-135 | F188: 2014-04-28 | G188: 12.29
B189: EJJ-243/RK | C189: OLFLEX FD CLASSIC 810 7G0,5 | D189: 1256KYM/14 | E189: PRN-57 | F189: 2014-04-29 | G189: 7.8
B190: OYZ-311/GH | C190: COPERCHIO ELEMENTO LOGICO LFA 25 KWA-7X/ | D190: 2275SSI/14 | E190: KQM-134 | F190: 2014-04-29 | G190: 8.8
B191: WTT-322/YR | C191: CURVA 45ｰ F.F. 1 ZINC." | D191: 255DVY/14 | E191: JDT-88 | F191: 2014-05-01 | G191: 4.3
B192: BVD-350/EJ | C192: CARTUCCIA FILTRO DA 8 MICRON | D192: 5318EOI/14 | E192: MCM-115 | F192: 2014-05-03 | G192: 6.8
B193: OCI-162/XK | C193: KIT COMPLETO GUARNIZIONI CILINDRO 80 CMPC | D193: 4620ETG/14 | E193: INE-151 | F193: 2014-05-03 | G193: 22.89
B194: OQJ-149/CP | C194: KIT COMPLETO GUARNIZIONI CILINDRO 125 | D194: 5045ELQ/14 | E194: IKM-62 | F194: 2014-05-04 | G194: 28.16
B195: WTT-322/YR | C195: CURVA 45ｰ F.F. 1 ZINC." | D195: 3602UWO/14 | E195: KVT-94 | F195: 2014-05-04 | G195: 4.75
B196: LBW-277/ME | C196: KIT COMPLETO GUARNIZIONI PER CILINDRO 80 | D196: 6466QPI/14 | E196: ZIC-110 | F196: 2014-05-05 | G196: 14.25
B197: SYA-341/BM | C197: PIGNONI SEMPLICI 3/4 Z21 | D197: 1947JBD/14 | E197: DBP-26 | F197: 2014-05-05 | G197: 26.78
B198: KWO-343/SK | C198: VITI TCCEI 12.9 UNI 5931 BR. M20 X 140 | D198: 5359ZZB/14 | E198: ZAS-69 | F198: 2014-05-05 | G198: 10.45
B199: NWC-213/WR | C199: KIT MAGNETE M.W. | D199: 791HKX/14 | E199: CWC-121 | F199: 2014-05-07 | G199: 17.75
B200: HYM-126/TJ | C200: VALVOLA RIDUTTRICE DI PRESSIONE DA 40 MBAR | D200: 1099RIS/14 | E200: LPP-50 | F200: 2014-05-09 | G200: 147.68
B201: HOU-335/QO | C201: VALVOLA DI RITEGNO PILOTATA Z2FS 16-3X/S2 | D201: 5069GYZ/14 | E201: ZIM-84 | F201: 2014-05-10 | G201: 106.25
B202: HOU-335/QO | C202: VALVOLA DI RITEGNO PILOTATA Z2FS 16-3X/S2 | D202: 5370HZE/14 | E202: DMX-27 | F202: 2014-05-10 | G202: 132.5
B203: RVG-263/JX | C203: SERVOVALVOLA CON ROTORE DINAMICO | D203: 2083OAI/14 | E203: YWH-33 | F203: 2014-05-10 | G203: 126.99
... 260 more rows

Sheet Mister_x
B2: VALORIZZAZIONE GIACENZE DI MAGAZZINO AL 31/12/2014 SULLA SCORTA DELL'ULTIMO PREZZO DI ACQUISTO REGISTRATO
B4: COD. ART. | C4: DESCRIZIONE ARTICOLO | D4: STOCCAGGIO | E4: QUANTITA' | F4: DATA ACQUISTO | G4: ULTIMO PREZZO | H4: ID_ORDINE | I4: IMPORTO TOT.
B5: BVD-350/EJ | C5: CARTUCCIA FILTRO DA 8 MICRON | D5: C-36 | E5: 200 | F5: =Ultimo($B5,$B$34:$B$463,"F") -> 2014-12-15 | G5: =Ultimo($B5,$B$34:$B$463,"G") -> 8.08 | H5: =Ultimo($B5,$B$34:$B$463,"D") -> 4884KRQ/14 | I5: =E5*G5 -> 1616
B6: DBY-128/GN | C6: AMMONIACA ANIDRA IN BOMBOLA DA KG.25 | D6: F-45 | E6: 167 | F6: =Ultimo($B6,$B$34:$B$463,"F") -> 2014-12-20 | G6: =Ultimo($B6,$B$34:$B$463,"G") -> 22.26 | H6: =Ultimo($B6,$B$34:$B$463,"D") -> 778GDG/14 | I6: =E6*G6 -> 3717.42
B7: EJJ-243/RK | C7: OLFLEX FD CLASSIC 810 7G0,5 | D7: F-95 | E7: 207 | F7: 2014-11-18 | G7: 8.4 | H7: 3468LPW/14 | I7: =E7*G7 -> 1738.8
B8: EVW-340/RN | C8: OLFLEX FD CLASSIC 810 CY 4G0,5 | D8: C-72 | E8: 158 | F8: 2014-12-17 | G8: 9.54 | H8: 4578ZUM/14 | I8: 1507.32
B9: FRF-171/ZE | C9: KIT GUARNIZIONI LC25...6X/LC25DB/DR-5X | D9: I-45 | E9: 119 | F9: 2014-12-16 | G9: 30.8 | H9: 2789QUI/14 | I9: 3665.2
B10: GTN-188/OI | C10: VALVOLA RITEGNO A PIASTRA Z1S 10 P2-3X/V | D10: U-62 | E10: 202 | F10: 2014-11-23 | G10: 49.05 | H10: 2115JIJ/14 | I10: 9908.1
B11: HOU-335/QO | C11: VALVOLA DI RITEGNO PILOTATA Z2FS 16-3X/S2 | D11: R-51 | E11: 194 | F11: 2014-12-19 | G11: 126.25 | H11: 4507IXW/14 | I11: 24492.5
B12: HYM-126/TJ | C12: VALVOLA RIDUTTRICE DI PRESSIONE DA 40 MBAR | D12: S-46 | E12: 150 | F12: 2014-12-09 | G12: 156.2 | H12: 144AKV/14 | I12: 23430
B13: IAB-347/TY | C13: REGOLATORE DI FLUSSO Z2FS 10-3-3 X/ V | D13: N-68 | E13: 154 | F13: 2014-11-18 | G13: 110.16 | H13: 1847TYW/14 | I13: 16964.64
B14: IGF-330/RW | C14: RUOTE 65 SERIE RINFORZATA CON FRENO | D14: H-96 | E14: 157 | F14: 2014-12-07 | G14: 61.1 | H14: 3404VZV/14 | I14: 9592.7
B15: KWO-343/SK | C15: VITI TCCEI 12.9 UNI 5931 BR. M20 X 140 | D15: K-39 | E15: 208 | F15: 2014-11-04 | G15: 10.64 | H15: 2219TJQ/14 | I15: 2213.12
B16: KWX-234/AH | C16: KIT REVISIONE CILINDRO M.W. | D16: A-89 | E16: 213 | F16: 2014-11-22 | G16: 45.39 | H16: 4274GFQ/14 | I16: 9668.07
B17: LBW-277/ME | C17: KIT COMPLETO GUARNIZIONI PER CILINDRO 80 | D17: L-56 | E17: 209 | F17: 2014-12-17 | G17: 11 | H17: 4014TXL/14 | I17: 2299
B18: LCJ-304/BX | C18: KIT REVISIONE CILINDRO M.W. | D18: E-53 | E18: 160 | F18: 2014-11-28 | G18: 15.59 | H18: 292UGU/14 | I18: 2494.4
B19: NWC-213/WR | C19: KIT MAGNETE M.W. | D19: M-56 | E19: 118 | F19: 2014-11-25 | G19: 17.55 | H19: 5815OUM/14 | I19: 2070.9
B20: OCI-162/XK | C20: KIT COMPLETO GUARNIZIONI CILINDRO 80 CMPC | D20: J-51 | E20: 137 | F20: 2014-10-25 | G20: 24.42 | H20: 4457MUF/14 | I20: 3345.54
B21: OQJ-149/CP | C21: KIT COMPLETO GUARNIZIONI CILINDRO 125 | D21: G-68 | E21: 178 | F21: 2014-11-30 | G21: 29.44 | H21: 5863LMV/14 | I21: 5240.32
B22: OYZ-311/GH | C22: COPERCHIO ELEMENTO LOGICO LFA 25 KWA-7X/ | D22: U-91 | E22: 189 | F22: 2014-11-25 | G22: 8.08 | H22: 696TEN/14 | I22: 1527.12
B23: QBI-332/YQ | C23: FORCELLA FEMMINA CON SNODO SGS/M16X1.5 | D23: G-56 | E23: 230 | F23: 2014-11-21 | G23: 33.78 | H23: 856UJJ/14 | I23: 7769.4
B24: RVA-370/MO | C24: ELEMENTO LOGICO LC 40 DB20E7X/ | D24: O-82 | E24: 143 | F24: 2014-12-10 | G24: 11.78 | H24: 4325TQV/14 | I24: 1684.54
B25: RVG-263/JX | C25: SERVOVALVOLA CON ROTORE DINAMICO | D25: B-93 | E25: 194 | F25: 2014-12-20 | G25: 125.75 | H25: 1421TYJ/14 | I25: 24395.5
B26: SGY-295/PG | C26: PIGNONE SEMPL. 3/4 Z9" | D26: Y-76 | E26: 206 | F26: 2014-12-18 | G26: 27.08 | H26: 1602TDS/14 | I26: 5578.48
B27: SYA-341/BM | C27: PIGNONI SEMPLICI 3/4 Z21 | D27: W-83 | E27: 155 | F27: 2014-12-07 | G27: 27.41 | H27: 6241FLY/14 | I27: 4248.55
B28: WTT-322/YR | C28: CURVA 45ｰ F.F. 1 ZINC." | D28: C-37 | E28: 232 | F28: 2014-12-11 | G28: 5.45 | H28: 4768WGN/14 | I28: 1264.4
H30: TOTALE GIACENZE : | I30: =SUM(I5:I28) -> 170432.02
B32: TABELLA ACQUISTI EFFETTUATI NEL 2014
B33: COD. ART. | C33: DESCRIZIONE ARTICOLO | D33: ID_ORDINE | E33: COD.FORN. | F33: DATA ACQUISTO | G33: PREZZO UNITARIO | H33: QUANTITA'
B34: HYM-126/TJ | C34: VALVOLA RIDUTTRICE DI PRESSIONE DA 40 MBAR | D34: 14FYF/14 | E34: ISR-13 | F34: 2014-01-07 | G34: 139.16 | H34: 1
B35: WTT-322/YR | C35: CURVA 45ｰ F.F. 1 ZINC." | D35: 2108TZW/14 | E35: QVG-137 | F35: 2014-01-07 | G35: 5.7 | H35: 1
B36: WTT-322/YR | C36: CURVA 45ｰ F.F. 1 ZINC." | D36: 570YMT/14 | E36: COB-84 | F36: 2014-01-08 | G36: 5.15 | H36: 1
B37: IAB-347/TY | C37: REGOLATORE DI FLUSSO Z2FS 10-3-3 X/ V | D37: 6231GQD/14 | E37: EPH-38 | F37: 2014-01-09 | G37: 115.56 | H37: 1
B38: IGF-330/RW | C38: RUOTE 65 SERIE RINFORZATA CON FRENO | D38: 1798OPR/14 | E38: UKU-106 | F38: 2014-01-09 | G38: 57.2 | H38: 1
B39: EVW-340/RN | C39: OLFLEX FD CLASSIC 810 CY 4G0,5 | D39: 6223MRI/14 | E39: SFS-48 | F39: 2014-01-10 | G39: 9.99 | H39: 1
B40: HYM-126/TJ | C40: VALVOLA RIDUTTRICE DI PRESSIONE DA 40 MBAR | D40: 2906HMY/14 | E40: CBI-156 | F40: 2014-01-10 | G40: 151.94 | H40: 1
B41: LBW-277/ME | C41: KIT COMPLETO GUARNIZIONI PER CILINDRO 80 | D41: 426ANG/14 | E41: MOS-20 | F41: 2014-01-10 | G41: 13.38 | H41: 1
B42: RVA-370/MO | C42: ELEMENTO LOGICO LC 40 DB20E7X/ | D42: 3835FLC/14 | E42: QBL-116 | F42: 2014-01-10 | G42: 13.06 | H42: 1
B43: LBW-277/ME | C43: KIT COMPLETO GUARNIZIONI PER CILINDRO 80 | D43: 5893HLS/14 | E43: ZDS-34 | F43: 2014-01-12 | G43: 13.63 | H43: 1
B44: LCJ-304/BX | C44: KIT REVISIONE CILINDRO M.W. | D44: 5302XWG/14 | E44: HUT-145 | F44: 2014-01-14 | G44: 14.35 | H44: 1
B45: EVW-340/RN | C45: OLFLEX FD CLASSIC 810 CY 4G0,5 | D45: 1711IKG/14 | E45: MIT-152 | F45: 2014-01-15 | G45: 9.09 | H45: 1
B46: GTN-188/OI | C46: VALVOLA RITEGNO A PIASTRA Z1S 10 P2-3X/V | D46: 2064OAC/14 | E46: UZC-47 | F46: 2014-01-15 | G46: 44.1 | H46: 1
B47: KWX-234/AH | C47: KIT REVISIONE CILINDRO M.W. | D47: 4975PFC/14 | E47: KFF-148 | F47: 2014-01-15 | G47: 46.41 | H47: 1
B48: BVD-350/EJ | C48: CARTUCCIA FILTRO DA 8 MICRON | D48: 2421WLN/14 | E48: XUJ-96 | F48: 2014-01-16 | G48: 8.16 | H48: 1
B49: KWX-234/AH | C49: KIT REVISIONE CILINDRO M.W. | D49: 5825PKH/14 | E49: HUF-22 | F49: 2014-01-17 | G49: 44.37 | H49: 1
B50: IAB-347/TY | C50: REGOLATORE DI FLUSSO Z2FS 10-3-3 X/ V | D50: 3968TBJ/14 | E50: AMX-50 | F50: 2014-01-22 | G50: 98.28 | H50: 1
B51: SGY-295/PG | C51: PIGNONE SEMPL. 3/4 Z9" | D51: 4777BGM/14 | E51: KFT-104 | F51: 2014-01-22 | G51: 30.5 | H51: 1
B52: EJJ-243/RK | C52: OLFLEX FD CLASSIC 810 7G0,5 | D52: 921EWK/14 | E52: WXR-135 | F52: 2014-01-23 | G52: 7.05 | H52: 1
B53: EJJ-243/RK | C53: OLFLEX FD CLASSIC 810 7G0,5 | D53: 2565POU/14 | E53: ZSH-26 | F53: 2014-01-23 | G53: 7.35 | H53: 1
B54: EJJ-243/RK | C54: OLFLEX FD CLASSIC 810 7G0,5 | D54: 2180QRN/14 | E54: ZNM-56 | F54: 2014-01-24 | G54: 6.45 | H54: 1
B55: KWO-343/SK | C55: VITI TCCEI 12.9 UNI 5931 BR. M20 X 140 | D55: 2166TUS/14 | E55: VCQ-85 | F55: 2014-01-25 | G55: 8.08 | H55: 1
B56: DBY-128/GN | C56: AMMONIACA ANIDRA UN BOMBOLA DA KG.25 | D56: 5932SEV/14 | E56: HXC-107 | F56: 2014-01-26 | G56: 22.05 | H56: 1
B57: HOU-335/QO | C57: VALVOLA DI RITEGNO PILOTATA Z2FS 16-3X/S2 | D57: 2583ROH/14 | E57: WPG-45 | F57: 2014-01-26 | G57: 106.25 | H57: 1
B58: HYM-126/TJ | C58: VALVOLA RIDUTTRICE DI PRESSIONE DA 40 MBAR | D58: 4056WIP/14 | E58: GUT-17 | F58: 2014-01-26 | G58: 133.48 | H58: 1
B59: HYM-126/TJ | C59: VALVOLA RIDUTTRICE DI PRESSIONE DA 40 MBAR | D59: 2401JME/14 | E59: WHR-132 | F59: 2014-01-26 | G59: 150.52 | H59: 1
B60: OQJ-149/CP | C60: KIT COMPLETO GUARNIZIONI CILINDRO 125 | D60: 957IGN/14 | E60: HPU-136 | F60: 2014-01-28 | G60: 34.56 | H60: 1
B61: DBY-128/GN | C61: AMMONIACA ANIDRA UN BOMBOLA DA KG.25 | D61: 1672BQS/14 | E61: TAW-142 | F61: 2014-01-29 | G61: 18.27 | H61: 1
B62: SYA-341/BM | C62: PIGNONI SEMPLICI 3/4 Z21 | D62: 1237IOK/14 | E62: WHG-100 | F62: 2014-01-29 | G62: 30.87 | H62: 1
B63: GTN-188/OI | C63: VALVOLA RITEGNO A PIASTRA Z1S 10 P2-3X/V | D63: 2538VNU/14 | E63: TUP-30 | F63: 2014-01-30 | G63: 47.25 | H63: 1
B64: HYM-126/TJ | C64: VALVOLA RIDUTTRICE DI PRESSIONE DA 40 MBAR | D64: 956VGF/14 | E64: CNO-78 | F64: 2014-01-30 | G64: 129.22 | H64: 1
B65: SYA-341/BM | C65: PIGNONI SEMPLICI 3/4 Z21 | D65: 6483PMU/14 | E65: NNU-74 | F65: 2014-01-31 | G65: 26.78 | H65: 1
B66: GTN-188/OI | C66: VALVOLA RITEGNO A PIASTRA Z1S 10 P2-3X/V | D66: 4487VVQ/14 | E66: PDI-71 | F66: 2014-02-01 | G66: 50.85 | H66: 1
B67: WTT-322/YR | C67: CURVA 45ｰ F.F. 1 ZINC." | D67: 337HGO/14 | E67: BNS-97 | F67: 2014-02-02 | G67: 4.35 | H67: 1
B68: WTT-322/YR | C68: CURVA 45ｰ F.F. 1 ZINC." | D68: 715YFS/14 | E68: OJB-69 | F68: 2014-02-02 | G68: 4.6 | H68: 1
B69: FRF-171/ZE | C69: KIT GUARNIZIONI LC25...6X/LC25DB/DR-5X | D69: 3737EOM/14 | E69: BYK-95 | F69: 2014-02-03 | G69: 30.8 | H69: 1
B70: LCJ-304/BX | C70: KIT REVISIONE CILINDRO M.W. | D70: 3259GEI/14 | E70: YZM-138 | F70: 2014-02-04 | G70: 13.52 | H70: 1
B71: NWC-213/WR | C71: KIT MAGNETE M.W. | D71: 4460VJU/14 | E71: NJP-85 | F71: 2014-02-04 | G71: 17.55 | H71: 1
B72: OQJ-149/CP | C72: KIT COMPLETO GUARNIZIONI CILINDRO 125 | D72: 1597GUT/14 | E72: AON-152 | F72: 2014-02-04 | G72: 34.24 | H72: 1
B73: QBI-332/YQ | C73: FORCELLA FEMMINA CON SNODO SGS/M16X1.5 | D73: 3753CRB/14 | E73: PSY-128 | F73: 2014-02-04 | G73: 29.19 | H73: 1
B74: EVW-340/RN | C74: OLFLEX FD CLASSIC 810 CY 4G0,5 | D74: 1618ITB/14 | E74: PQO-62 | F74: 2014-02-06 | G74: 9.72 | H74: 1
B75: OCI-162/XK | C75: KIT COMPLETO GUARNIZIONI CILINDRO 80 CMPC | D75: 5703MRV/14 | E75: ALC-42 | F75: 2014-02-07 | G75: 22.02 | H75: 1
B76: OYZ-311/GH | C76: COPERCHIO ELEMENTO LOGICO LFA 25 KWA-7X/ | D76: 3369HIU/14 | E76: ZSH-70 | F76: 2014-02-07 | G76: 7.12 | H76: 1
B77: RVG-263/JX | C77: SERVOVALVOLA CON ROTORE DINAMICO | D77: 5864CUX/14 | E77: WPL-64 | F77: 2014-02-07 | G77: 133.22 | H77: 1
B78: OQJ-149/CP | C78: KIT COMPLETO GUARNIZIONI CILINDRO 125 | D78: 2391WTQ/14 | E78: LGW-128 | F78: 2014-02-09 | G78: 35.2 | H78: 1
B79: FRF-171/ZE | C79: KIT GUARNIZIONI LC25...6X/LC25DB/DR-5X | D79: 5773QVK/14 | E79: HGI-66 | F79: 2014-02-10 | G79: 35 | H79: 1
B80: HOU-335/QO | C80: VALVOLA DI RITEGNO PILOTATA Z2FS 16-3X/S2 | D80: 3104WEA/14 | E80: FGK-95 | F80: 2014-02-10 | G80: 133.75 | H80: 1
B81: EJJ-243/RK | C81: OLFLEX FD CLASSIC 810 7G0,5 | D81: 1866KKI/14 | E81: DAT-28 | F81: 2014-02-11 | G81: 7.8 | H81: 1
B82: EVW-340/RN | C82: OLFLEX FD CLASSIC 810 CY 4G0,5 | D82: 4997ZFK/14 | E82: LWN-118 | F82: 2014-02-11 | G82: 7.83 | H82: 1
B83: FRF-171/ZE | C83: KIT GUARNIZIONI LC25...6X/LC25DB/DR-5X | D83: 831XKM/14 | E83: GXJ-116 | F83: 2014-02-12 | G83: 31.85 | H83: 1
B84: RVG-263/JX | C84: SERVOVALVOLA CON ROTORE DINAMICO | D84: 2062QWG/14 | E84: HQE-120 | F84: 2014-02-13 | G84: 115.79 | H84: 1
B85: OCI-162/XK | C85: KIT COMPLETO GUARNIZIONI CILINDRO 80 CMPC | D85: 3454XQS/14 | E85: JJT-34 | F85: 2014-02-15 | G85: 18.75 | H85: 1
B86: GTN-188/OI | C86: VALVOLA RITEGNO A PIASTRA Z1S 10 P2-3X/V | D86: 2314LLM/14 | E86: WYN-23 | F86: 2014-02-17 | G86: 42.3 | H86: 1
B87: RVA-370/MO | C87: ELEMENTO LOGICO LC 40 DB20E7X/ | D87: 1128QDP/14 | E87: HTX-27 | F87: 2014-02-17 | G87: 13.06 | H87: 1
B88: IAB-347/TY | C88: REGOLATORE DI FLUSSO Z2FS 10-3-3 X/ V | D88: 2812HEY/14 | E88: VEI-57 | F88: 2014-02-18 | G88: 116.64 | H88: 1
B89: OQJ-149/CP | C89: KIT COMPLETO GUARNIZIONI CILINDRO 125 | D89: 358UAC/14 | E89: KWO-42 | F89: 2014-02-18 | G89: 27.2 | H89: 1
B90: OYZ-311/GH | C90: COPERCHIO ELEMENTO LOGICO LFA 25 KWA-7X/ | D90: 2250YDH/14 | E90: NXL-121 | F90: 2014-02-19 | G90: 8.4 | H90: 1
B91: HYM-126/TJ | C91: VALVOLA RIDUTTRICE DI PRESSIONE DA 40 MBAR | D91: 5150MBK/14 | E91: EIY-35 | F91: 2014-02-20 | G91: 151.94 | H91: 1
B92: KWO-343/SK | C92: VITI TCCEI 12.9 UNI 5931 BR. M20 X 140 | D92: 2348YEF/14 | E92: BSJ-70 | F92: 2014-02-20 | G92: 8.36 | H92: 1
B93: DBY-128/GN | C93: AMMONIACA ANIDRA UN BOMBOLA DA KG.25 | D93: 6303WNG/14 | E93: NZT-33 | F93: 2014-02-21 | G93: 21.42 | H93: 1
B94: OCI-162/XK | C94: KIT COMPLETO GUARNIZIONI CILINDRO 80 CMPC | D94: 5726WTM/14 | E94: PXW-71 | F94: 2014-02-21 | G94: 24.2 | H94: 1
B95: DBY-128/GN | C95: AMMONIACA ANIDRA UN BOMBOLA DA KG.25 | D95: 5550DED/14 | E95: OZV-16 | F95: 2014-02-25 | G95: 18.9 | H95: 1
B96: KWO-343/SK | C96: VITI TCCEI 12.9 UNI 5931 BR. M20 X 140 | D96: 2583NJU/14 | E96: AAY-13 | F96: 2014-02-26 | G96: 9.12 | H96: 1
B97: IAB-347/TY | C97: REGOLATORE DI FLUSSO Z2FS 10-3-3 X/ V | D97: 163WUB/14 | E97: ZPS-144 | F97: 2014-02-27 | G97: 105.84 | H97: 1
B98: LCJ-304/BX | C98: KIT REVISIONE CILINDRO M.W. | D98: 290DWO/14 | E98: VMY-134 | F98: 2014-02-27 | G98: 12.97 | H98: 1
B99: OYZ-311/GH | C99: COPERCHIO ELEMENTO LOGICO LFA 25 KWA-7X/ | D99: 3725UKL/14 | E99: DMM-146 | F99: 2014-02-27 | G99: 8.8 | H99: 1
B100: RVA-370/MO | C100: ELEMENTO LOGICO LC 40 DB20E7X/ | D100: 4709VKD/14 | E100: AKI-75 | F100: 2014-02-27 | G100: 11.39 | H100: 1
B101: RVA-370/MO | C101: ELEMENTO LOGICO LC 40 DB20E7X/ | D101: 3995BPS/14 | E101: XBI-85 | F101: 2014-02-27 | G101: 12.03 | H101: 1
B102: EVW-340/RN | C102: OLFLEX FD CLASSIC 810 CY 4G0,5 | D102: 3532VJO/14 | E102: SBF-27 | F102: 2014-02-28 | G102: 8.28 | H102: 1
B103: FRF-171/ZE | C103: KIT GUARNIZIONI LC25...6X/LC25DB/DR-5X | D103: 2231MDV/14 | E103: XYL-55 | F103: 2014-02-28 | G103: 32.55 | H103: 1
B104: IGF-330/RW | C104: RUOTE 65 SERIE RINFORZATA CON FRENO | D104: 3046SEC/14 | E104: NKK-35 | F104: 2014-02-28 | G104: 59.15 | H104: 1
B105: FRF-171/ZE | C105: KIT GUARNIZIONI LC25...6X/LC25DB/DR-5X | D105: 5296VZJ/14 | E105: JFR-74 | F105: 2014-03-01 | G105: 31.15 | H105: 1
B106: IAB-347/TY | C106: REGOLATORE DI FLUSSO Z2FS 10-3-3 X/ V | D106: 4937PTE/14 | E106: DUZ-113 | F106: 2014-03-01 | G106: 112.32 | H106: 1
B107: SYA-341/BM | C107: PIGNONI SEMPLICI 3/4 Z21 | D107: 2960INK/14 | E107: BKH-134 | F107: 2014-03-01 | G107: 34.34 | H107: 1
B108: EJJ-243/RK | C108: OLFLEX FD CLASSIC 810 7G0,5 | D108: 4742HBW/14 | E108: ICU-113 | F108: 2014-03-02 | G108: 8.03 | H108: 1
B109: LBW-277/ME | C109: KIT COMPLETO GUARNIZIONI PER CILINDRO 80 | D109: 2942HJE/14 | E109: KUN-151 | F109: 2014-03-02 | G109: 14 | H109: 1
B110: BVD-350/EJ | C110: CARTUCCIA FILTRO DA 8 MICRON | D110: 3587XIM/14 | E110: QAA-14 | F110: 2014-03-05 | G110: 8.24 | H110: 1
B111: LBW-277/ME | C111: KIT COMPLETO GUARNIZIONI PER CILINDRO 80 | D111: 5700OAH/14 | E111: WWL-93 | F111: 2014-03-05 | G111: 14.38 | H111: 1
B112: LCJ-304/BX | C112: KIT REVISIONE CILINDRO M.W. | D112: 869UFB/14 | E112: UDF-49 | F112: 2014-03-05 | G112: 15.73 | H112: 1
B113: OYZ-311/GH | C113: COPERCHIO ELEMENTO LOGICO LFA 25 KWA-7X/ | D113: 3078NXZ/14 | E113: RRE-140 | F113: 2014-03-05 | G113: 6.96 | H113: 1
B114: HOU-335/QO | C114: VALVOLA DI RITEGNO PILOTATA Z2FS 16-3X/S2 | D114: 4510CYA/14 | E114: VYA-133 | F114: 2014-03-06 | G114: 118.75 | H114: 1
B115: OYZ-311/GH | C115: COPERCHIO ELEMENTO LOGICO LFA 25 KWA-7X/ | D115: 5457ZSJ/14 | E115: ZEP-50 | F115: 2014-03-07 | G115: 7.2 | H115: 1
B116: OQJ-149/CP | C116: KIT COMPLETO GUARNIZIONI CILINDRO 125 | D116: 4502ZMZ/14 | E116: OVP-105 | F116: 2014-03-08 | G116: 30.72 | H116: 1
B117: LCJ-304/BX | C117: KIT REVISIONE CILINDRO M.W. | D117: 821MAP/14 | E117: VHD-46 | F117: 2014-03-09 | G117: 13.52 | H117: 1
B118: OCI-162/XK | C118: KIT COMPLETO GUARNIZIONI CILINDRO 80 CMPC | D118: 1926PDA/14 | E118: PLI-114 | F118: 2014-03-09 | G118: 24.2 | H118: 1
B119: OQJ-149/CP | C119: KIT COMPLETO GUARNIZIONI CILINDRO 125 | D119: 332YXC/14 | E119: RGH-140 | F119: 2014-03-09 | G119: 29.76 | H119: 1
B120: BVD-350/EJ | C120: CARTUCCIA FILTRO DA 8 MICRON | D120: 412GXB/14 | E120: FNG-82 | F120: 2014-03-12 | G120: 7.92 | H120: 1
B121: FRF-171/ZE | C121: KIT GUARNIZIONI LC25...6X/LC25DB/DR-5X | D121: 5540LXZ/14 | E121: DDI-21 | F121: 2014-03-12 | G121: 35.35 | H121: 1
B122: SYA-341/BM | C122: PIGNONI SEMPLICI 3/4 Z21 | D122: 1637FKW/14 | E122: WPA-97 | F122: 2014-03-13 | G122: 31.19 | H122: 1
B123: OYZ-311/GH | C123: COPERCHIO ELEMENTO LOGICO LFA 25 KWA-7X/ | D123: 542FWP/14 | E123: KDA-161 | F123: 2014-03-14 | G123: 7.36 | H123: 1
B124: RVA-370/MO | C124: ELEMENTO LOGICO LC 40 DB20E7X/ | D124: 4613JXJ/14 | E124: ARN-90 | F124: 2014-03-15 | G124: 14.46 | H124: 1
B125: QBI-332/YQ | C125: FORCELLA FEMMINA CON SNODO SGS/M16X1.5 | D125: 2054BYI/14 | E125: YMS-138 | F125: 2014-03-16 | G125: 35.75 | H125: 1
B126: GTN-188/OI | C126: VALVOLA RITEGNO A PIASTRA Z1S 10 P2-3X/V | D126: 5064CBU/14 | E126: TVJ-24 | F126: 2014-03-17 | G126: 40.05 | H126: 1
B127: HYM-126/TJ | C127: VALVOLA RIDUTTRICE DI PRESSIONE DA 40 MBAR | D127: 873JOK/14 | E127: ZMP-94 | F127: 2014-03-17 | G127: 151.94 | H127: 1
B128: GTN-188/OI | C128: VALVOLA RITEGNO A PIASTRA Z1S 10 P2-3X/V | D128: 6097DRM/14 | E128: VCW-49 | F128: 2014-03-19 | G128: 51.75 | H128: 1
B129: OYZ-311/GH | C129: COPERCHIO ELEMENTO LOGICO LFA 25 KWA-7X/ | D129: 863GLF/14 | E129: FHT-25 | F129: 2014-03-20 | G129: 7.2 | H129: 1
B130: WTT-322/YR | C130: CURVA 45ｰ F.F. 1 ZINC." | D130: 1312WAW/14 | E130: ZGZ-28 | F130: 2014-03-20 | G130: 5.5 | H130: 1
B131: EVW-340/RN | C131: OLFLEX FD CLASSIC 810 CY 4G0,5 | D131: 3169SKI/14 | E131: UMK-90 | F131: 2014-03-21 | G131: 8.82 | H131: 1
B132: OYZ-311/GH | C132: COPERCHIO ELEMENTO LOGICO LFA 25 KWA-7X/ | D132: 795YOE/14 | E132: ERB-147 | F132: 2014-03-21 | G132: 7.76 | H132: 1
B133: KWX-234/AH | C133: KIT REVISIONE CILINDRO M.W. | D133: 4881CKI/14 | E133: WFK-115 | F133: 2014-03-22 | G133: 51.51 | H133: 1
B134: KWO-343/SK | C134: VITI TCCEI 12.9 UNI 5931 BR. M20 X 140 | D134: 546FOF/14 | E134: KLK-98 | F134: 2014-03-23 | G134: 9.31 | H134: 1
B135: RVG-263/JX | C135: SERVOVALVOLA CON ROTORE DINAMICO | D135: 1106AUZ/14 | E135: NTE-72 | F135: 2014-03-23 | G135: 139.44 | H135: 1
B136: LCJ-304/BX | C136: KIT REVISIONE CILINDRO M.W. | D136: 721WBX/14 | E136: YST-110 | F136: 2014-03-24 | G136: 14.63 | H136: 1
B137: BVD-350/EJ | C137: CARTUCCIA FILTRO DA 8 MICRON | D137: 4000CVK/14 | E137: ORC-146 | F137: 2014-03-25 | G137: 6.8 | H137: 1
B138: IAB-347/TY | C138: REGOLATORE DI FLUSSO Z2FS 10-3-3 X/ V | D138: 216GGX/14 | E138: PCZ-145 | F138: 2014-03-26 | G138: 116.64 | H138: 1
B139: RVG-263/JX | C139: SERVOVALVOLA CON ROTORE DINAMICO | D139: 2417AXX/14 | E139: IYN-127 | F139: 2014-03-26 | G139: 118.28 | H139: 1
B140: SGY-295/PG | C140: PIGNONE SEMPL. 3/4 Z9" | D140: 463AYT/14 | E140: EOW-70 | F140: 2014-03-26 | G140: 29.64 | H140: 1
B141: WTT-322/YR | C141: CURVA 45ｰ F.F. 1 ZINC." | D141: 2383SXB/14 | E141: LJI-32 | F141: 2014-03-26 | G141: 5.1 | H141: 1
B142: KWO-343/SK | C142: VITI TCCEI 12.9 UNI 5931 BR. M20 X 140 | D142: 3130LGL/14 | E142: OHE-57 | F142: 2014-03-27 | G142: 9.98 | H142: 1
B143: BVD-350/EJ | C143: CARTUCCIA FILTRO DA 8 MICRON | D143: 2227OJC/14 | E143: ENV-24 | F143: 2014-03-28 | G143: 8.56 | H143: 1
B144: LBW-277/ME | C144: KIT COMPLETO GUARNIZIONI PER CILINDRO 80 | D144: 410EAY/14 | E144: ATI-156 | F144: 2014-03-28 | G144: 10.75 | H144: 1
B145: SYA-341/BM | C145: PIGNONI SEMPLICI 3/4 Z21 | D145: 6028ILT/14 | E145: FOC-99 | F145: 2014-03-28 | G145: 27.09 | H145: 1
B146: BVD-350/EJ | C146: CARTUCCIA FILTRO DA 8 MICRON | D146: 3043VZH/14 | E146: NNO-141 | F146: 2014-03-29 | G146: 7.68 | H146: 1
B147: LBW-277/ME | C147: KIT COMPLETO GUARNIZIONI PER CILINDRO 80 | D147: 4423SVH/14 | E147: BMM-30 | F147: 2014-03-29 | G147: 14 | H147: 1
B148: IGF-330/RW | C148: RUOTE 65 SERIE RINFORZATA CON FRENO | D148: 4720ODJ/14 | E148: TNT-163 | F148: 2014-03-30 | G148: 72.8 | H148: 1
B149: HYM-126/TJ | C149: VALVOLA RIDUTTRICE DI PRESSIONE DA 40 MBAR | D149: 2501BKD/14 | E149: IRD-108 | F149: 2014-03-31 | G149: 142 | H149: 1
B150: IGF-330/RW | C150: RUOTE 65 SERIE RINFORZATA CON FRENO | D150: 5257UNY/14 | E150: MVI-97 | F150: 2014-03-31 | G150: 56.55 | H150: 1
B151: HYM-126/TJ | C151: VALVOLA RIDUTTRICE DI PRESSIONE DA 40 MBAR | D151: 4008DHJ/14 | E151: CUR-12 | F151: 2014-04-01 | G151: 161.88 | H151: 1
B152: RVG-263/JX | C152: SERVOVALVOLA CON ROTORE DINAMICO | D152: 1056GBK/14 | E152: MTG-100 | F152: 2014-04-02 | G152: 107.07 | H152: 1
B153: HOU-335/QO | C153: VALVOLA DI RITEGNO PILOTATA Z2FS 16-3X/S2 | D153: 3029TOB/14 | E153: DOA-55 | F153: 2014-04-05 | G153: 143.75 | H153: 1
B154: HYM-126/TJ | C154: VALVOLA RIDUTTRICE DI PRESSIONE DA 40 MBAR | D154: 1328XWP/14 | E154: RMS-72 | F154: 2014-04-05 | G154: 132.06 | H154: 1
B155: LCJ-304/BX | C155: KIT REVISIONE CILINDRO M.W. | D155: 5084FMK/14 | E155: COA-105 | F155: 2014-04-05 | G155: 14.08 | H155: 1
B156: QBI-332/YQ | C156: FORCELLA FEMMINA CON SNODO SGS/M16X1.5 | D156: 5632RFV/14 | E156: MDQ-124 | F156: 2014-04-05 | G156: 33.13 | H156: 1
B157: WTT-322/YR | C157: CURVA 45ｰ F.F. 1 ZINC." | D157: 3561KNF/14 | E157: HYR-83 | F157: 2014-04-07 | G157: 5.6 | H157: 1
B158: IAB-347/TY | C158: REGOLATORE DI FLUSSO Z2FS 10-3-3 X/ V | D158: 1245VXE/14 | E158: IHE-155 | F158: 2014-04-09 | G158: 116.64 | H158: 1
B159: FRF-171/ZE | C159: KIT GUARNIZIONI LC25...6X/LC25DB/DR-5X | D159: 6407XIS/14 | E159: POF-99 | F159: 2014-04-10 | G159: 30.8 | H159: 1
B160: HYM-126/TJ | C160: VALVOLA RIDUTTRICE DI PRESSIONE DA 40 MBAR | D160: 5840ZFB/14 | E160: FYB-123 | F160: 2014-04-11 | G160: 123.54 | H160: 1
B161: IAB-347/TY | C161: REGOLATORE DI FLUSSO Z2FS 10-3-3 X/ V | D161: 4263LVE/14 | E161: IYH-18 | F161: 2014-04-12 | G161: 97.2 | H161: 1
B162: GTN-188/OI | C162: VALVOLA RITEGNO A PIASTRA Z1S 10 P2-3X/V | D162: 2363ZWI/14 | E162: TGI-80 | F162: 2014-04-13 | G162: 50.85 | H162: 1
B163: KWO-343/SK | C163: VITI TCCEI 12.9 UNI 5931 BR. M20 X 140 | D163: 954CHN/14 | E163: DIV-115 | F163: 2014-04-13 | G163: 10.45 | H163: 1
B164: GTN-188/OI | C164: VALVOLA RITEGNO A PIASTRA Z1S 10 P2-3X/V | D164: 181AYN/14 | E164: MNF-118 | F164: 2014-04-14 | G164: 38.7 | H164: 1
B165: NWC-213/WR | C165: KIT MAGNETE M.W. | D165: 3434LMM/14 | E165: CCN-63 | F165: 2014-04-14 | G165: 16.58 | H165: 1
B166: RVA-370/MO | C166: ELEMENTO LOGICO LC 40 DB20E7X/ | D166: 1383ELO/14 | E166: ZLM-151 | F166: 2014-04-15 | G166: 12.67 | H166: 1
B167: LBW-277/ME | C167: KIT COMPLETO GUARNIZIONI PER CILINDRO 80 | D167: 786TMG/14 | E167: FGB-33 | F167: 2014-04-16 | G167: 10.63 | H167: 1
B168: BVD-350/EJ | C168: CARTUCCIA FILTRO DA 8 MICRON | D168: 1993JIW/14 | E168: LFT-31 | F168: 2014-04-17 | G168: 8.88 | H168: 1
B169: EVW-340/RN | C169: OLFLEX FD CLASSIC 810 CY 4G0,5 | D169: 5626SEU/14 | E169: NKW-120 | F169: 2014-04-17 | G169: 10.26 | H169: 1
B170: GTN-188/OI | C170: VALVOLA RITEGNO A PIASTRA Z1S 10 P2-3X/V | D170: 4098FAP/14 | E170: YUT-111 | F170: 2014-04-17 | G170: 40.5 | H170: 1
B171: LBW-277/ME | C171: KIT COMPLETO GUARNIZIONI PER CILINDRO 80 | D171: 3924CEW/14 | E171: LYQ-18 | F171: 2014-04-17 | G171: 11.75 | H171: 1
B172: GTN-188/OI | C172: VALVOLA RITEGNO A PIASTRA Z1S 10 P2-3X/V | D172: 491WFP/14 | E172: CFE-139 | F172: 2014-04-18 | G172: 47.25 | H172: 1
B173: OQJ-149/CP | C173: KIT COMPLETO GUARNIZIONI CILINDRO 125 | D173: 5335VKY/14 | E173: FPE-50 | F173: 2014-04-18 | G173: 29.44 | H173: 1
B174: SYA-341/BM | C174: PIGNONI SEMPLICI 3/4 Z21 | D174: 2054PTD/14 | E174: XLO-92 | F174: 2014-04-18 | G174: 33.71 | H174: 1
B175: BVD-350/EJ | C175: CARTUCCIA FILTRO DA 8 MICRON | D175: 1030BUY/14 | E175: ADA-67 | F175: 2014-04-19 | G175: 8.56 | H175: 1
B176: DBY-128/GN | C176: AMMONIACA ANIDRA UN BOMBOLA DA KG.25 | D176: 6229XAA/14 | E176: OQD-54 | F176: 2014-04-19 | G176: 21.42 | H176: 1
B177: KWX-234/AH | C177: KIT REVISIONE CILINDRO M.W. | D177: 2976UZV/14 | E177: DXE-133 | F177: 2014-04-19 | G177: 57.12 | H177: 1
B178: QBI-332/YQ | C178: FORCELLA FEMMINA CON SNODO SGS/M16X1.5 | D178: 1981JRF/14 | E178: UYP-144 | F178: 2014-04-20 | G178: 32.47 | H178: 1
B179: BVD-350/EJ | C179: CARTUCCIA FILTRO DA 8 MICRON | D179: 924RKM/14 | E179: XUH-50 | F179: 2014-04-21 | G179: 8.72 | H179: 1
B180: RVA-370/MO | C180: ELEMENTO LOGICO LC 40 DB20E7X/ | D180: 565CYP/14 | E180: OIE-28 | F180: 2014-04-21 | G180: 13.95 | H180: 1
B181: SYA-341/BM | C181: PIGNONI SEMPLICI 3/4 Z21 | D181: 5071ZIV/14 | E181: YVD-101 | F181: 2014-04-21 | G181: 33.39 | H181: 1
B182: HOU-335/QO | C182: VALVOLA DI RITEGNO PILOTATA Z2FS 16-3X/S2 | D182: 2571JQO/14 | E182: PCJ-140 | F182: 2014-04-22 | G182: 142.5 | H182: 1
B183: IAB-347/TY | C183: REGOLATORE DI FLUSSO Z2FS 10-3-3 X/ V | D183: 5104FMV/14 | E183: ZJF-127 | F183: 2014-04-22 | G183: 91.8 | H183: 1
B184: NWC-213/WR | C184: KIT MAGNETE M.W. | D184: 5882GMI/14 | E184: KKW-29 | F184: 2014-04-22 | G184: 17.75 | H184: 1
B185: LBW-277/ME | C185: KIT COMPLETO GUARNIZIONI PER CILINDRO 80 | D185: 1384KJM/14 | E185: OWD-14 | F185: 2014-04-24 | G185: 13 | H185: 1
B186: OQJ-149/CP | C186: KIT COMPLETO GUARNIZIONI CILINDRO 125 | D186: 3272AZP/14 | E186: KKL-54 | F186: 2014-04-26 | G186: 30.08 | H186: 1
B187: GTN-188/OI | C187: VALVOLA RITEGNO A PIASTRA Z1S 10 P2-3X/V | D187: 501TUR/14 | E187: SMF-138 | F187: 2014-04-28 | G187: 50.85 | H187: 1
B188: RVA-370/MO | C188: ELEMENTO LOGICO LC 40 DB20E7X/ | D188: 1764MUQ/14 | E188: HHE-135 | F188: 2014-04-28 | G188: 12.29 | H188: 1
B189: EJJ-243/RK | C189: OLFLEX FD CLASSIC 810 7G0,5 | D189: 1256KYM/14 | E189: PRN-57 | F189: 2014-04-29 | G189: 7.8 | H189: 1
B190: OYZ-311/GH | C190: COPERCHIO ELEMENTO LOGICO LFA 25 KWA-7X/ | D190: 2275SSI/14 | E190: KQM-134 | F190: 2014-04-29 | G190: 8.8 | H190: 1
B191: WTT-322/YR | C191: CURVA 45ｰ F.F. 1 ZINC." | D191: 255DVY/14 | E191: JDT-88 | F191: 2014-05-01 | G191: 4.3 | H191: 1
B192: BVD-350/EJ | C192: CARTUCCIA FILTRO DA 8 MICRON | D192: 5318EOI/14 | E192: MCM-115 | F192: 2014-05-03 | G192: 6.8 | H192: 1
B193: OCI-162/XK | C193: KIT COMPLETO GUARNIZIONI CILINDRO 80 CMPC | D193: 4620ETG/14 | E193: INE-151 | F193: 2014-05-03 | G193: 22.89 | H193: 1
B194: OQJ-149/CP | C194: KIT COMPLETO GUARNIZIONI CILINDRO 125 | D194: 5045ELQ/14 | E194: IKM-62 | F194: 2014-05-04 | G194: 28.16 | H194: 1
B195: WTT-322/YR | C195: CURVA 45ｰ F.F. 1 ZINC." | D195: 3602UWO/14 | E195: KVT-94 | F195: 2014-05-04 | G195: 4.75 | H195: 1
B196: KWO-343/SK | C196: VITI TCCEI 12.9 UNI 5931 BR. M20 X 140 | D196: 5359ZZB/14 | E196: ZAS-69 | F196: 2014-05-05 | G196: 10.45 | H196: 1
B197: LBW-277/ME | C197: KIT COMPLETO GUARNIZIONI PER CILINDRO 80 | D197: 6466QPI/14 | E197: ZIC-110 | F197: 2014-05-05 | G197: 14.25 | H197: 1
B198: SYA-341/BM | C198: PIGNONI SEMPLICI 3/4 Z21 | D198: 1947JBD/14 | E198: DBP-26 | F198: 2014-05-05 | G198: 26.78 | H198: 1
B199: NWC-213/WR | C199: KIT MAGNETE M.W. | D199: 791HKX/14 | E199: CWC-121 | F199: 2014-05-07 | G199: 17.75 | H199: 1
B200: HYM-126/TJ | C200: VALVOLA RIDUTTRICE DI PRESSIONE DA 40 MBAR | D200: 1099RIS/14 | E200: LPP-50 | F200: 2014-05-09 | G200: 147.68 | H200: 1
B201: HOU-335/QO | C201: VALVOLA DI RITEGNO PILOTATA Z2FS 16-3X/S2 | D201: 5370HZE/14 | E201: DMX-27 | F201: 2014-05-10 | G201: 132.5 | H201: 1
B202: HOU-335/QO | C202: VALVOLA DI RITEGNO PILOTATA Z2FS 16-3X/S2 | D202: 5069GYZ/14 | E202: ZIM-84 | F202: 2014-05-10 | G202: 106.25 | H202: 1
B203: RVG-263/JX | C203: SERVOVALVOLA CON ROTORE DINAMICO | D203: 2083OAI/14 | E203: YWH-33 | F203: 2014-05-10 | G203: 126.99 | H203: 1
B204: KWO-343/SK | C204: VITI TCCEI 12.9 UNI 5931 BR. M20 X 140 | D204: 2426WEP/14 | E204: SOD-141 | F204: 2014-05-11 | G204: 9.98 | H204: 1
... 259 more rows

Sheet Foglio2

Sheet Foglio3
